Department ,Entity,Date of Payment,Expense Type,Expense Area,Supplier,Transaction Number,Amount
UNITED KINGDOM ATOMIC ENERGY AUTHORITY,UNITED KINGDOM ATOMIC ENERGY AUTHORITY,31/10/2012,EFDA SECONDEE CONTRACT,,COMMISSARIAT L ENERGIE ATOMIQUE CEA,5100280612,36931.04
UNITED KINGDOM ATOMIC ENERGY AUTHORITY,UNITED KINGDOM ATOMIC ENERGY AUTHORITY,31/10/2012,EFDA SECONDEE CONTRACT,,FOM,5100280776,6987.35
UNITED KINGDOM ATOMIC ENERGY AUTHORITY,UNITED KINGDOM ATOMIC ENERGY AUTHORITY,07/11/2012,EFDA SECONDEE CONTRACT,,FOM,5100280777,11347.94
UNITED KINGDOM ATOMIC ENERGY AUTHORITY,UNITED KINGDOM ATOMIC ENERGY AUTHORITY,31/10/2012,EFDA SECONDEE CONTRACT,,UPPSALA UNIVERSITY,5100280904,3542.41
UNITED KINGDOM ATOMIC ENERGY AUTHORITY,UNITED KINGDOM ATOMIC ENERGY AUTHORITY,29/10/2012,HIRED STAFF,FUSION,PELICAN SOFTWARE LTD,5100281054,5212.6
UNITED KINGDOM ATOMIC ENERGY AUTHORITY,UNITED KINGDOM ATOMIC ENERGY AUTHORITY,29/10/2012,HIRED STAFF,FUSION,PELICAN SOFTWARE LTD,5100281056,5742.62
UNITED KINGDOM ATOMIC ENERGY AUTHORITY,UNITED KINGDOM ATOMIC ENERGY AUTHORITY,29/10/2012,HIRED STAFF,FUSION,PELICAN SOFTWARE LTD,5100281058,5590.44
UNITED KINGDOM ATOMIC ENERGY AUTHORITY,UNITED KINGDOM ATOMIC ENERGY AUTHORITY,29/10/2012,HIRED STAFF,FUSION,RULLION ENGINEERING PERSONNEL LTD,5100281160,-222997.19
UNITED KINGDOM ATOMIC ENERGY AUTHORITY,UNITED KINGDOM ATOMIC ENERGY AUTHORITY,29/10/2012,HIRED STAFF,FUSION,RULLION ENGINEERING PERSONNEL LTD,5100281161,887634.08
UNITED KINGDOM ATOMIC ENERGY AUTHORITY,UNITED KINGDOM ATOMIC ENERGY AUTHORITY,29/10/2012,HIRED STAFF,FUSION,RULLION ENGINEERING PERSONNEL LTD,5100281162,-1666.6
UNITED KINGDOM ATOMIC ENERGY AUTHORITY,UNITED KINGDOM ATOMIC ENERGY AUTHORITY,29/10/2012,PROFESSIONAL SERVICES,FUSION,QUEENS UNIVERSITY BELFAST,5100281284,21878.64
UNITED KINGDOM ATOMIC ENERGY AUTHORITY,UNITED KINGDOM ATOMIC ENERGY AUTHORITY,21/11/2012,EFDA SECONDEE CONTRACT,,TECHNICAL RESEARCH CENTRE,5100281361,7089.09
UNITED KINGDOM ATOMIC ENERGY AUTHORITY,UNITED KINGDOM ATOMIC ENERGY AUTHORITY,05/11/2012,HIRED STAFF,FUSION,GENTLE ASSOCIATES LTD,5100281418,4849.46
UNITED KINGDOM ATOMIC ENERGY AUTHORITY,UNITED KINGDOM ATOMIC ENERGY AUTHORITY,12/11/2012,HIRED STAFF,FUSION,TESSELLA PLC,5100281792,7331.31
UNITED KINGDOM ATOMIC ENERGY AUTHORITY,UNITED KINGDOM ATOMIC ENERGY AUTHORITY,14/11/2012,HIRED STAFF,FUSION,TESSELLA PLC,5100281793,12561.12
UNITED KINGDOM ATOMIC ENERGY AUTHORITY,UNITED KINGDOM ATOMIC ENERGY AUTHORITY,12/11/2012,HIRED STAFF,FUSION,TESSELLA PLC,5100281794,5549.49
UNITED KINGDOM ATOMIC ENERGY AUTHORITY,UNITED KINGDOM ATOMIC ENERGY AUTHORITY,12/11/2012,HIRED STAFF,FUSION,TESSELLA PLC,5100281795,11427.9
UNITED KINGDOM ATOMIC ENERGY AUTHORITY,UNITED KINGDOM ATOMIC ENERGY AUTHORITY,12/11/2012,TRAVEL,SUPPORT SERVICES,CAPITA BUSINESS TRAVEL,5100282000,28302.92
UNITED KINGDOM ATOMIC ENERGY AUTHORITY,UNITED KINGDOM ATOMIC ENERGY AUTHORITY,14/11/2012,HIRED STAFF,FUSION,BLACK DIAMOND UMBRELLA LTD,5100282003,836.25
UNITED KINGDOM ATOMIC ENERGY AUTHORITY,UNITED KINGDOM ATOMIC ENERGY AUTHORITY,14/11/2012,HIRED STAFF,FUSION,BLACK DIAMOND UMBRELLA LTD,5100282004,836.25
UNITED KINGDOM ATOMIC ENERGY AUTHORITY,UNITED KINGDOM ATOMIC ENERGY AUTHORITY,14/11/2012,HIRED STAFF,FUSION,BLACK DIAMOND UMBRELLA LTD,5100282005,836.25
UNITED KINGDOM ATOMIC ENERGY AUTHORITY,UNITED KINGDOM ATOMIC ENERGY AUTHORITY,14/11/2012,HIRED STAFF,FUSION,BLACK DIAMOND UMBRELLA LTD,5100282006,669
UNITED KINGDOM ATOMIC ENERGY AUTHORITY,UNITED KINGDOM ATOMIC ENERGY AUTHORITY,14/11/2012,HIRED STAFF,FUSION,BLACK DIAMOND UMBRELLA LTD,5100282007,2336.25
UNITED KINGDOM ATOMIC ENERGY AUTHORITY,UNITED KINGDOM ATOMIC ENERGY AUTHORITY,14/11/2012,HIRED STAFF,FUSION,BLACK DIAMOND UMBRELLA LTD,5100282008,1174.88
UNITED KINGDOM ATOMIC ENERGY AUTHORITY,UNITED KINGDOM ATOMIC ENERGY AUTHORITY,14/11/2012,HIRED STAFF,FUSION,BLACK DIAMOND UMBRELLA LTD,5100282009,1174.88
UNITED KINGDOM ATOMIC ENERGY AUTHORITY,UNITED KINGDOM ATOMIC ENERGY AUTHORITY,14/11/2012,HIRED STAFF,FUSION,BLACK DIAMOND UMBRELLA LTD,5100282010,1174.88
UNITED KINGDOM ATOMIC ENERGY AUTHORITY,UNITED KINGDOM ATOMIC ENERGY AUTHORITY,14/11/2012,HIRED STAFF,FUSION,BLACK DIAMOND UMBRELLA LTD,5100282011,1174.88
UNITED KINGDOM ATOMIC ENERGY AUTHORITY,UNITED KINGDOM ATOMIC ENERGY AUTHORITY,14/11/2012,HIRED STAFF,FUSION,BLACK DIAMOND UMBRELLA LTD,5100282012,861.58
UNITED KINGDOM ATOMIC ENERGY AUTHORITY,UNITED KINGDOM ATOMIC ENERGY AUTHORITY,14/11/2012,HIRED STAFF,FUSION,BLACK DIAMOND UMBRELLA LTD,5100282013,3986.55
UNITED KINGDOM ATOMIC ENERGY AUTHORITY,UNITED KINGDOM ATOMIC ENERGY AUTHORITY,14/11/2012,HIRED STAFF,FUSION,BLACK DIAMOND UMBRELLA LTD,5100282014,4539.16
UNITED KINGDOM ATOMIC ENERGY AUTHORITY,UNITED KINGDOM ATOMIC ENERGY AUTHORITY,19/11/2012,PROFESSIONAL SERVICES,FUSION,OXFORD TECHNOLOGIES LTD (CB),5100282111,3969
UNITED KINGDOM ATOMIC ENERGY AUTHORITY,UNITED KINGDOM ATOMIC ENERGY AUTHORITY,19/11/2012,PROFESSIONAL SERVICES,FUSION,OXFORD TECHNOLOGIES LTD (CB),5100282112,4023.6
UNITED KINGDOM ATOMIC ENERGY AUTHORITY,UNITED KINGDOM ATOMIC ENERGY AUTHORITY,19/11/2012,PROFESSIONAL SERVICES,FUSION,OXFORD TECHNOLOGIES LTD (CB),5100282113,9101.08
UNITED KINGDOM ATOMIC ENERGY AUTHORITY,UNITED KINGDOM ATOMIC ENERGY AUTHORITY,19/11/2012,PROFESSIONAL SERVICES,FUSION,OXFORD TECHNOLOGIES LTD (CB),5100282114,6744.92
UNITED KINGDOM ATOMIC ENERGY AUTHORITY,UNITED KINGDOM ATOMIC ENERGY AUTHORITY,19/11/2012,PROFESSIONAL SERVICES,FUSION,OXFORD TECHNOLOGIES LTD (CB),5100282115,5183.63
UNITED KINGDOM ATOMIC ENERGY AUTHORITY,UNITED KINGDOM ATOMIC ENERGY AUTHORITY,19/11/2012,PROFESSIONAL SERVICES,FUSION,OXFORD TECHNOLOGIES LTD (CB),5100282116,5245.21
UNITED KINGDOM ATOMIC ENERGY AUTHORITY,UNITED KINGDOM ATOMIC ENERGY AUTHORITY,19/11/2012,PROFESSIONAL SERVICES,FUSION,OXFORD TECHNOLOGIES LTD,5100282117,243.77
UNITED KINGDOM ATOMIC ENERGY AUTHORITY,UNITED KINGDOM ATOMIC ENERGY AUTHORITY,19/11/2012,PROFESSIONAL SERVICES,FUSION,OXFORD TECHNOLOGIES LTD,5100282118,189.6
UNITED KINGDOM ATOMIC ENERGY AUTHORITY,UNITED KINGDOM ATOMIC ENERGY AUTHORITY,19/11/2012,PROFESSIONAL SERVICES,FUSION,OXFORD TECHNOLOGIES LTD,5100282119,460.45
UNITED KINGDOM ATOMIC ENERGY AUTHORITY,UNITED KINGDOM ATOMIC ENERGY AUTHORITY,21/11/2012,HIRED STAFF,FUSION,PELICAN SOFTWARE LTD,5100282163,6558.46
UNITED KINGDOM ATOMIC ENERGY AUTHORITY,UNITED KINGDOM ATOMIC ENERGY AUTHORITY,19/11/2012,HIRED STAFF,FUSION,PELICAN SOFTWARE LTD,5100282166,5815.55
UNITED KINGDOM ATOMIC ENERGY AUTHORITY,UNITED KINGDOM ATOMIC ENERGY AUTHORITY,21/11/2012,HIRED STAFF,FUSION,PELICAN SOFTWARE LTD,5100282167,5631.83
UNITED KINGDOM ATOMIC ENERGY AUTHORITY,UNITED KINGDOM ATOMIC ENERGY AUTHORITY,21/11/2012,PERFECT COLOURS LIMITED,,STATIONERY,5100282220,11199
UNITED KINGDOM ATOMIC ENERGY AUTHORITY,UNITED KINGDOM ATOMIC ENERGY AUTHORITY,31/10/2012,OTHER EXTERNAL COSTS,FUSION,VISITOR EXPENSES,1900057524,167.05
UNITED KINGDOM ATOMIC ENERGY AUTHORITY,UNITED KINGDOM ATOMIC ENERGY AUTHORITY,31/10/2012,OTHER EXTERNAL COSTS,FUSION,Robert AJ Matthews Ltd,1900057525,100.00
UNITED KINGDOM ATOMIC ENERGY AUTHORITY,UNITED KINGDOM ATOMIC ENERGY AUTHORITY,01/11/2012,TRAINING COURSE FEES,FUSION,EMPLOYEE EXPENSES,100665319,175.00
UNITED KINGDOM ATOMIC ENERGY AUTHORITY,UNITED KINGDOM ATOMIC ENERGY AUTHORITY,08/11/2012,TAXIS,FUSION,EMPLOYEE EXPENSES,100665467,11.89
UNITED KINGDOM ATOMIC ENERGY AUTHORITY,UNITED KINGDOM ATOMIC ENERGY AUTHORITY,08/11/2012,SUBSISTENCE,FUSION,EMPLOYEE EXPENSES,100665467,70.05
UNITED KINGDOM ATOMIC ENERGY AUTHORITY,UNITED KINGDOM ATOMIC ENERGY AUTHORITY,08/11/2012,MILEAGE ALLOWANCE,FUSION,EMPLOYEE EXPENSES,100665467,56.00
UNITED KINGDOM ATOMIC ENERGY AUTHORITY,UNITED KINGDOM ATOMIC ENERGY AUTHORITY,08/11/2012,ROAD TRAVEL,FUSION,EMPLOYEE EXPENSES,100665467,8.00
UNITED KINGDOM ATOMIC ENERGY AUTHORITY,UNITED KINGDOM ATOMIC ENERGY AUTHORITY,08/11/2012,ROAD TRAVEL,FUSION,EMPLOYEE EXPENSES,100665468,16.00
UNITED KINGDOM ATOMIC ENERGY AUTHORITY,UNITED KINGDOM ATOMIC ENERGY AUTHORITY,01/11/2012,EFDA TRAVEL EXPENSES,FUSION,EMPLOYEE EXPENSES,100665325,86.82
UNITED KINGDOM ATOMIC ENERGY AUTHORITY,UNITED KINGDOM ATOMIC ENERGY AUTHORITY,01/11/2012,EFDA TRAVEL EXPENSES,FUSION,EMPLOYEE EXPENSES,100665326,"2,174.68"
UNITED KINGDOM ATOMIC ENERGY AUTHORITY,UNITED KINGDOM ATOMIC ENERGY AUTHORITY,01/11/2012,EFDA TRAVEL EXPENSES,FUSION,EMPLOYEE EXPENSES,100665327,"1,073.00"
UNITED KINGDOM ATOMIC ENERGY AUTHORITY,UNITED KINGDOM ATOMIC ENERGY AUTHORITY,01/11/2012,EFDA TRAVEL EXPENSES,FUSION,EMPLOYEE EXPENSES,100665328,272.99
UNITED KINGDOM ATOMIC ENERGY AUTHORITY,UNITED KINGDOM ATOMIC ENERGY AUTHORITY,01/11/2012,EFDA TRAVEL EXPENSES,FUSION,EMPLOYEE EXPENSES,100665329,113.28
UNITED KINGDOM ATOMIC ENERGY AUTHORITY,UNITED KINGDOM ATOMIC ENERGY AUTHORITY,04/11/2012,EFDA TRAVEL EXPENSES,FUSION,EMPLOYEE EXPENSES,100665439,460.99
UNITED KINGDOM ATOMIC ENERGY AUTHORITY,UNITED KINGDOM ATOMIC ENERGY AUTHORITY,08/11/2012,EFDA TRAVEL EXPENSES,FUSION,EMPLOYEE EXPENSES,100665469,"1,518.26"
UNITED KINGDOM ATOMIC ENERGY AUTHORITY,UNITED KINGDOM ATOMIC ENERGY AUTHORITY,15/11/2012,EFDA TRAVEL EXPENSES,FUSION,EMPLOYEE EXPENSES,100669615,433.57
UNITED KINGDOM ATOMIC ENERGY AUTHORITY,UNITED KINGDOM ATOMIC ENERGY AUTHORITY,15/11/2012,EFDA TRAVEL EXPENSES,FUSION,EMPLOYEE EXPENSES,100669616,29.67
UNITED KINGDOM ATOMIC ENERGY AUTHORITY,UNITED KINGDOM ATOMIC ENERGY AUTHORITY,15/11/2012,EFDA TRAVEL EXPENSES,FUSION,EMPLOYEE EXPENSES,100669617,548.08
UNITED KINGDOM ATOMIC ENERGY AUTHORITY,UNITED KINGDOM ATOMIC ENERGY AUTHORITY,17/11/2012,EFDA TRAVEL EXPENSES,FUSION,EMPLOYEE EXPENSES,100669723,"1,205.09"
UNITED KINGDOM ATOMIC ENERGY AUTHORITY,UNITED KINGDOM ATOMIC ENERGY AUTHORITY,29/10/2012,PUBLICATIONS,FUSION,IOP PUBLISHING LTD,5100281215,2370
UNITED KINGDOM ATOMIC ENERGY AUTHORITY,UNITED KINGDOM ATOMIC ENERGY AUTHORITY,19/11/2012,PUBLICATIONS,FUSION,IOP PUBLISHING LTD,5100282175,1031.25
UNITED KINGDOM ATOMIC ENERGY AUTHORITY,UNITED KINGDOM ATOMIC ENERGY AUTHORITY,15/11/2012,BOOKS & PUBLICATIONS,FUSION,PURCHASE CARDS,100669627,289.26
UNITED KINGDOM ATOMIC ENERGY AUTHORITY,UNITED KINGDOM ATOMIC ENERGY AUTHORITY,31/10/2012,OTHER EXTERNAL COSTS,FUSION,VISITOR EXPENSES,1900057523,2565.14
UNITED KINGDOM ATOMIC ENERGY AUTHORITY,UNITED KINGDOM ATOMIC ENERGY AUTHORITY,12/11/2012,OTHER EXTERNAL COSTS,FUSION,VISITOR EXPENSES,1900057548,91.63
UNITED KINGDOM ATOMIC ENERGY AUTHORITY,UNITED KINGDOM ATOMIC ENERGY AUTHORITY,05/11/2012,LEGAL FEES,SUPPORT SERVICES,CATER LEYDON MILLARD LTD,5100281464,1242.5
UNITED KINGDOM ATOMIC ENERGY AUTHORITY,UNITED KINGDOM ATOMIC ENERGY AUTHORITY,05/11/2012,LEGAL FEES,SUPPORT SERVICES,CATER LEYDON MILLARD LTD,5100281466,35
UNITED KINGDOM ATOMIC ENERGY AUTHORITY,UNITED KINGDOM ATOMIC ENERGY AUTHORITY,07/11/2012,THE VALIDIUM GROUP LIMITED,SUPPORT SERVICES,PROFESSIONAL SERVICES,5100281748,5126
UNITED KINGDOM ATOMIC ENERGY AUTHORITY,UNITED KINGDOM ATOMIC ENERGY AUTHORITY,21/11/2012,PROFESSIONAL SUBSCRIPTION,SUPPORT SERVICES,REED BUSINESS INFORMATION LTD,5100281850,4125
UNITED KINGDOM ATOMIC ENERGY AUTHORITY,UNITED KINGDOM ATOMIC ENERGY AUTHORITY,12/11/2012,PROFESSIONAL SERVICES,SUPPORT SERVICES,BDO LLP,5100281964,2049
UNITED KINGDOM ATOMIC ENERGY AUTHORITY,UNITED KINGDOM ATOMIC ENERGY AUTHORITY,19/11/2012,NUCLEAR INDUSTRY ASSOCIATION,SUPPORT SERVICES,PROFESSIONAL SERVICES,5100282215,1762
UNITED KINGDOM ATOMIC ENERGY AUTHORITY,UNITED KINGDOM ATOMIC ENERGY AUTHORITY,08/11/2012,TAXIS,SUPPORT SERVICES,EMPLOYEE EXPENSES,100665464,33.00
UNITED KINGDOM ATOMIC ENERGY AUTHORITY,UNITED KINGDOM ATOMIC ENERGY AUTHORITY,08/11/2012,SUBSISTENCE,SUPPORT SERVICES,EMPLOYEE EXPENSES,100665464,35.00
UNITED KINGDOM ATOMIC ENERGY AUTHORITY,UNITED KINGDOM ATOMIC ENERGY AUTHORITY,08/11/2012,SUBSISTENCE,SUPPORT SERVICES,EMPLOYEE EXPENSES,100665464,73.75
UNITED KINGDOM ATOMIC ENERGY AUTHORITY,UNITED KINGDOM ATOMIC ENERGY AUTHORITY,15/11/2012,MILEAGE ALLOWANCE,SUPPORT SERVICES,EMPLOYEE EXPENSES,100669620,8.80
UNITED KINGDOM ATOMIC ENERGY AUTHORITY,UNITED KINGDOM ATOMIC ENERGY AUTHORITY,05/11/2012,PERSONAL PROTECTIVE EQUIPMENT,SUPPORT SERVICES,BUCK & HICKMAN LTD,5100280435,22.65
UNITED KINGDOM ATOMIC ENERGY AUTHORITY,UNITED KINGDOM ATOMIC ENERGY AUTHORITY,31/10/2012,TRAINING COURSE FEES,SUPPORT SERVICES,CANON FIRE PROTECTION,5100280556,320
UNITED KINGDOM ATOMIC ENERGY AUTHORITY,UNITED KINGDOM ATOMIC ENERGY AUTHORITY,19/11/2012,PROFESSIONAL SERVICES,SUPPORT SERVICES,CSS WORKSAFE,5100280821,1500
UNITED KINGDOM ATOMIC ENERGY AUTHORITY,UNITED KINGDOM ATOMIC ENERGY AUTHORITY,29/10/2012,PERSONAL PROTECTIVE EQUIPMENT,SUPPORT SERVICES,ARCO WESSEX,5100280932,47.67
UNITED KINGDOM ATOMIC ENERGY AUTHORITY,UNITED KINGDOM ATOMIC ENERGY AUTHORITY,05/11/2012,TRAINING COSTS,SUPPORT SERVICES,SCA TRAINING & CONSULTANCY SERVICES,5100280969,190
UNITED KINGDOM ATOMIC ENERGY AUTHORITY,UNITED KINGDOM ATOMIC ENERGY AUTHORITY,29/10/2012,F&F,SUPPORT SERVICES,EFG MATTHEWS OFFICE FURNITURE LTD,5100281066,319.68
UNITED KINGDOM ATOMIC ENERGY AUTHORITY,UNITED KINGDOM ATOMIC ENERGY AUTHORITY,29/10/2012,SITE SUPPORT SERVICES,SUPPORT SERVICES,SCION ESTATES,5100281128,264.32
UNITED KINGDOM ATOMIC ENERGY AUTHORITY,UNITED KINGDOM ATOMIC ENERGY AUTHORITY,29/10/2012,IT MANAGED SERVICE,SUPPORT SERVICES,CSC COMPUTER SCIENCES LIMITED,5100281139,4560.37
UNITED KINGDOM ATOMIC ENERGY AUTHORITY,UNITED KINGDOM ATOMIC ENERGY AUTHORITY,29/10/2012,PERSONAL PROTECTIVE EQUIPMENT,SUPPORT SERVICES,ARCO WESSEX,5100281223,-4.8
UNITED KINGDOM ATOMIC ENERGY AUTHORITY,UNITED KINGDOM ATOMIC ENERGY AUTHORITY,07/11/2012,PROFESSIONAL SERVICES,SUPPORT SERVICES,FREYA CONSULTING,5100281305,1350
UNITED KINGDOM ATOMIC ENERGY AUTHORITY,UNITED KINGDOM ATOMIC ENERGY AUTHORITY,05/11/2012,PERSONAL PROTECTIVE EQUIPMENT,SUPPORT SERVICES,ARCO WESSEX,5100281382,34.11
UNITED KINGDOM ATOMIC ENERGY AUTHORITY,UNITED KINGDOM ATOMIC ENERGY AUTHORITY,05/11/2012,TRAINING COURSE FEES,SUPPORT SERVICES,OXFORD BROOKES UNIVERSITY,5100281403,3760
UNITED KINGDOM ATOMIC ENERGY AUTHORITY,UNITED KINGDOM ATOMIC ENERGY AUTHORITY,05/11/2012,TRAINING COURSE FEES,SUPPORT SERVICES,OXFORD BROOKES UNIVERSITY,5100281404,940
UNITED KINGDOM ATOMIC ENERGY AUTHORITY,UNITED KINGDOM ATOMIC ENERGY AUTHORITY,05/11/2012,PROFESSIONAL SERVICES,SUPPORT SERVICES,QUANTUM CORPORATE COACHING LTD,5100281406,6115
UNITED KINGDOM ATOMIC ENERGY AUTHORITY,UNITED KINGDOM ATOMIC ENERGY AUTHORITY,07/11/2012,PROFESSIONAL SERVICES,SUPPORT SERVICES,QUANTUM CORPORATE COACHING LTD,5100281407,3408
UNITED KINGDOM ATOMIC ENERGY AUTHORITY,UNITED KINGDOM ATOMIC ENERGY AUTHORITY,05/11/2012,IT MANAGED SERVICE,SUPPORT SERVICES,CSC COMPUTER SCIENCES LIMITED,5100281410,13493.38
UNITED KINGDOM ATOMIC ENERGY AUTHORITY,UNITED KINGDOM ATOMIC ENERGY AUTHORITY,05/11/2012,IT MANAGED SERVICE,SUPPORT SERVICES,CSC COMPUTER SCIENCES LIMITED,5100281411,21832.62
UNITED KINGDOM ATOMIC ENERGY AUTHORITY,UNITED KINGDOM ATOMIC ENERGY AUTHORITY,07/11/2012,PROFESSIONAL SERVICES,SUPPORT SERVICES,NUCLEAR MANAGEMENT CONSULTANCE LTD,5100281424,800
UNITED KINGDOM ATOMIC ENERGY AUTHORITY,UNITED KINGDOM ATOMIC ENERGY AUTHORITY,07/11/2012,TRAINING COURSE FEES,SUPPORT SERVICES,LLOYDS BRITISH TRAINING PLC,5100281459,470
UNITED KINGDOM ATOMIC ENERGY AUTHORITY,UNITED KINGDOM ATOMIC ENERGY AUTHORITY,19/11/2012,INSPECTION SERVICES,SUPPORT SERVICES,ASHDALE ENGINEERING,5100281568,250
UNITED KINGDOM ATOMIC ENERGY AUTHORITY,UNITED KINGDOM ATOMIC ENERGY AUTHORITY,12/11/2012,PROFESSIONAL SERVICES,SUPPORT SERVICES,ESR TECHNOLOGY LTD,5100281569,2090
UNITED KINGDOM ATOMIC ENERGY AUTHORITY,UNITED KINGDOM ATOMIC ENERGY AUTHORITY,12/11/2012,MATERIALS & SPARES,SUPPORT SERVICES,ALPHA PACKAGING,5100281603,266
UNITED KINGDOM ATOMIC ENERGY AUTHORITY,UNITED KINGDOM ATOMIC ENERGY AUTHORITY,12/11/2012,TRAINING COSTS,SUPPORT SERVICES,SCRIPTORIA LIMITED,5100281641,557.1
UNITED KINGDOM ATOMIC ENERGY AUTHORITY,UNITED KINGDOM ATOMIC ENERGY AUTHORITY,12/11/2012,TRAINING COSTS,SUPPORT SERVICES,SCRIPTORIA LIMITED,5100281643,4310.83
UNITED KINGDOM ATOMIC ENERGY AUTHORITY,UNITED KINGDOM ATOMIC ENERGY AUTHORITY,12/11/2012,BOOKS & PUBLICATIONS,SUPPORT SERVICES,THE BRITISH LIBRARY,5100281696,54.2
UNITED KINGDOM ATOMIC ENERGY AUTHORITY,UNITED KINGDOM ATOMIC ENERGY AUTHORITY,12/11/2012,BOOKS & PUBLICATIONS,SUPPORT SERVICES,THE BRITISH LIBRARY,5100281697,6.8
UNITED KINGDOM ATOMIC ENERGY AUTHORITY,UNITED KINGDOM ATOMIC ENERGY AUTHORITY,14/11/2012,TRAINING COURSE FEES,SUPPORT SERVICES,PETER METCALF MANAGEMENT COACH,5100281712,350
UNITED KINGDOM ATOMIC ENERGY AUTHORITY,UNITED KINGDOM ATOMIC ENERGY AUTHORITY,12/11/2012,STATIONERY,SUPPORT SERVICES,LYRECO UK LIMITED,5100281774,217.52
UNITED KINGDOM ATOMIC ENERGY AUTHORITY,UNITED KINGDOM ATOMIC ENERGY AUTHORITY,12/11/2012,F&F,SUPPORT SERVICES,EFG MATTHEWS OFFICE FURNITURE LTD,5100281843,364.5
UNITED KINGDOM ATOMIC ENERGY AUTHORITY,UNITED KINGDOM ATOMIC ENERGY AUTHORITY,12/11/2012,F&F,SUPPORT SERVICES,EFG MATTHEWS OFFICE FURNITURE LTD,5100281845,473.12
UNITED KINGDOM ATOMIC ENERGY AUTHORITY,UNITED KINGDOM ATOMIC ENERGY AUTHORITY,12/11/2012,F&F,SUPPORT SERVICES,EFG MATTHEWS OFFICE FURNITURE LTD,5100281846,644
UNITED KINGDOM ATOMIC ENERGY AUTHORITY,UNITED KINGDOM ATOMIC ENERGY AUTHORITY,12/11/2012,MATERIALS & SPARES,SUPPORT SERVICES,FARNELL ELECTRONIC,5100281893,121.51
UNITED KINGDOM ATOMIC ENERGY AUTHORITY,UNITED KINGDOM ATOMIC ENERGY AUTHORITY,19/11/2012,TRAINING COSTS,SUPPORT SERVICES,SWETS INFORMATION SERVICES LTD,5100282015,805.37
UNITED KINGDOM ATOMIC ENERGY AUTHORITY,UNITED KINGDOM ATOMIC ENERGY AUTHORITY,19/11/2012,TRAINING COSTS,SUPPORT SERVICES,SWETS INFORMATION SERVICES LTD,5100282016,5527.94
UNITED KINGDOM ATOMIC ENERGY AUTHORITY,UNITED KINGDOM ATOMIC ENERGY AUTHORITY,19/11/2012,TRAINING COSTS,SUPPORT SERVICES,SWETS INFORMATION SERVICES LTD,5100282017,3111.22
UNITED KINGDOM ATOMIC ENERGY AUTHORITY,UNITED KINGDOM ATOMIC ENERGY AUTHORITY,14/11/2012,PERSONAL PROTECTIVE EQUIPMENT,SUPPORT SERVICES,ARCO LTD,5100282027,35.39
UNITED KINGDOM ATOMIC ENERGY AUTHORITY,UNITED KINGDOM ATOMIC ENERGY AUTHORITY,19/11/2012,INSPECTION SERVICES,SUPPORT SERVICES,ASHDALE ENGINEERING,5100282053,450
UNITED KINGDOM ATOMIC ENERGY AUTHORITY,UNITED KINGDOM ATOMIC ENERGY AUTHORITY,19/11/2012,PROFESSIONAL SERVICES,SUPPORT SERVICES,DISCLOSURE SCOTLAND,5100282087,275
UNITED KINGDOM ATOMIC ENERGY AUTHORITY,UNITED KINGDOM ATOMIC ENERGY AUTHORITY,19/11/2012,SOFTWARE,SUPPORT SERVICES,ACMS UK,5100282089,1300
UNITED KINGDOM ATOMIC ENERGY AUTHORITY,UNITED KINGDOM ATOMIC ENERGY AUTHORITY,19/11/2012,PROFESSIONAL SERVICES,SUPPORT SERVICES,CSS WORKSAFE,5100282138,750
UNITED KINGDOM ATOMIC ENERGY AUTHORITY,UNITED KINGDOM ATOMIC ENERGY AUTHORITY,19/11/2012,BOOKS & PUBLICATIONS,SUPPORT SERVICES,BRITISH STANDARDS INSTITUTION,5100282142,187
UNITED KINGDOM ATOMIC ENERGY AUTHORITY,UNITED KINGDOM ATOMIC ENERGY AUTHORITY,19/11/2012,RECRUITMENT ADVERTISING,SUPPORT SERVICES,TMP (UK) LTD,5100282143,13407.38
UNITED KINGDOM ATOMIC ENERGY AUTHORITY,UNITED KINGDOM ATOMIC ENERGY AUTHORITY,19/11/2012,TRAINING COSTS,SUPPORT SERVICES,HEMSLEY FRASER TRAINING GROUP,5100282161,795
UNITED KINGDOM ATOMIC ENERGY AUTHORITY,UNITED KINGDOM ATOMIC ENERGY AUTHORITY,19/11/2012,SAFETY STORES,SUPPORT SERVICES,ROSPA,5100282162,595
UNITED KINGDOM ATOMIC ENERGY AUTHORITY,UNITED KINGDOM ATOMIC ENERGY AUTHORITY,19/11/2012,CAR HIRE,SUPPORT SERVICES,LEASEDRIVE VELO,5100282226,40.51
UNITED KINGDOM ATOMIC ENERGY AUTHORITY,UNITED KINGDOM ATOMIC ENERGY AUTHORITY,05/11/2012,CHARITABLE DONATIONS,SUPPORT SERVICES,Footsteps Foundation,1900057531,50.00
UNITED KINGDOM ATOMIC ENERGY AUTHORITY,UNITED KINGDOM ATOMIC ENERGY AUTHORITY,06/11/2012,RECRUITMENT ADVERTISING,SUPPORT SERVICES,Newsquest Media Group,1900057541,5874.23
UNITED KINGDOM ATOMIC ENERGY AUTHORITY,UNITED KINGDOM ATOMIC ENERGY AUTHORITY,22/11/2012,CHARITABLE DONATIONS,SUPPORT SERVICES,The Batt C.E. Primary School,1900057565,300.00
UNITED KINGDOM ATOMIC ENERGY AUTHORITY,UNITED KINGDOM ATOMIC ENERGY AUTHORITY,31/10/2012,MILEAGE ALLOWANCE,SUPPORT SERVICES,EMPLOYEE EXPENSES,100665279,42.00
UNITED KINGDOM ATOMIC ENERGY AUTHORITY,UNITED KINGDOM ATOMIC ENERGY AUTHORITY,01/11/2012,MILEAGE ALLOWANCE,SUPPORT SERVICES,EMPLOYEE EXPENSES,100665333,41.60
UNITED KINGDOM ATOMIC ENERGY AUTHORITY,UNITED KINGDOM ATOMIC ENERGY AUTHORITY,04/11/2012,TAXIS,SUPPORT SERVICES,EMPLOYEE EXPENSES,100665422,12.25
UNITED KINGDOM ATOMIC ENERGY AUTHORITY,UNITED KINGDOM ATOMIC ENERGY AUTHORITY,04/11/2012,SUBSISTENCE,SUPPORT SERVICES,EMPLOYEE EXPENSES,100665422,5.00
UNITED KINGDOM ATOMIC ENERGY AUTHORITY,UNITED KINGDOM ATOMIC ENERGY AUTHORITY,04/11/2012,ROAD TRAVEL,SUPPORT SERVICES,EMPLOYEE EXPENSES,100665422,3.80
UNITED KINGDOM ATOMIC ENERGY AUTHORITY,UNITED KINGDOM ATOMIC ENERGY AUTHORITY,04/11/2012,SUBSISTENCE,SUPPORT SERVICES,EMPLOYEE EXPENSES,100665423,25.00
UNITED KINGDOM ATOMIC ENERGY AUTHORITY,UNITED KINGDOM ATOMIC ENERGY AUTHORITY,04/11/2012,PROFESSIONAL SUBSCRIPTION,SUPPORT SERVICES,EMPLOYEE EXPENSES,100665432,230.00
UNITED KINGDOM ATOMIC ENERGY AUTHORITY,UNITED KINGDOM ATOMIC ENERGY AUTHORITY,08/11/2012,MILEAGE ALLOWANCE,SUPPORT SERVICES,EMPLOYEE EXPENSES,100665457,8.40
UNITED KINGDOM ATOMIC ENERGY AUTHORITY,UNITED KINGDOM ATOMIC ENERGY AUTHORITY,08/11/2012,PROFESSIONAL SUBSCRIPTION,SUPPORT SERVICES,EMPLOYEE EXPENSES,100665478,230.00
UNITED KINGDOM ATOMIC ENERGY AUTHORITY,UNITED KINGDOM ATOMIC ENERGY AUTHORITY,10/11/2012,SUBSISTENCE,SUPPORT SERVICES,EMPLOYEE EXPENSES,100665489,7.42
UNITED KINGDOM ATOMIC ENERGY AUTHORITY,UNITED KINGDOM ATOMIC ENERGY AUTHORITY,10/11/2012,MILEAGE ALLOWANCE,SUPPORT SERVICES,EMPLOYEE EXPENSES,100665489,11.20
UNITED KINGDOM ATOMIC ENERGY AUTHORITY,UNITED KINGDOM ATOMIC ENERGY AUTHORITY,10/11/2012,ROAD TRAVEL,SUPPORT SERVICES,EMPLOYEE EXPENSES,100665489,4.75
UNITED KINGDOM ATOMIC ENERGY AUTHORITY,UNITED KINGDOM ATOMIC ENERGY AUTHORITY,15/11/2012,MILEAGE ALLOWANCE,SUPPORT SERVICES,EMPLOYEE EXPENSES,100669621,41.60
UNITED KINGDOM ATOMIC ENERGY AUTHORITY,UNITED KINGDOM ATOMIC ENERGY AUTHORITY,17/11/2012,MILEAGE ALLOWANCE,SUPPORT SERVICES,EMPLOYEE EXPENSES,100669712,10.40
UNITED KINGDOM ATOMIC ENERGY AUTHORITY,UNITED KINGDOM ATOMIC ENERGY AUTHORITY,17/11/2012,ROAD TRAVEL,SUPPORT SERVICES,EMPLOYEE EXPENSES,100669713,1.50
UNITED KINGDOM ATOMIC ENERGY AUTHORITY,UNITED KINGDOM ATOMIC ENERGY AUTHORITY,17/11/2012,ROAD TRAVEL,SUPPORT SERVICES,EMPLOYEE EXPENSES,100669714,3.40
UNITED KINGDOM ATOMIC ENERGY AUTHORITY,UNITED KINGDOM ATOMIC ENERGY AUTHORITY,17/11/2012,ROAD TRAVEL,SUPPORT SERVICES,EMPLOYEE EXPENSES,100669715,1.50
UNITED KINGDOM ATOMIC ENERGY AUTHORITY,UNITED KINGDOM ATOMIC ENERGY AUTHORITY,17/11/2012,SUBSISTENCE,SUPPORT SERVICES,EMPLOYEE EXPENSES,100669717,1.57
UNITED KINGDOM ATOMIC ENERGY AUTHORITY,UNITED KINGDOM ATOMIC ENERGY AUTHORITY,17/11/2012,MILEAGE ALLOWANCE,SUPPORT SERVICES,EMPLOYEE EXPENSES,100669717,4.80
UNITED KINGDOM ATOMIC ENERGY AUTHORITY,UNITED KINGDOM ATOMIC ENERGY AUTHORITY,17/11/2012,ROAD TRAVEL,SUPPORT SERVICES,EMPLOYEE EXPENSES,100669717,5.42
UNITED KINGDOM ATOMIC ENERGY AUTHORITY,UNITED KINGDOM ATOMIC ENERGY AUTHORITY,23/11/2012,SUBSISTENCE,SUPPORT SERVICES,EMPLOYEE EXPENSES,100669779,27.69
UNITED KINGDOM ATOMIC ENERGY AUTHORITY,UNITED KINGDOM ATOMIC ENERGY AUTHORITY,23/11/2012,SUBSISTENCE,SUPPORT SERVICES,EMPLOYEE EXPENSES,100669779,124.71
UNITED KINGDOM ATOMIC ENERGY AUTHORITY,UNITED KINGDOM ATOMIC ENERGY AUTHORITY,15/11/2012,IT EQUIPMENT: NON CAPITAL,SUPPORT SERVICES,PURCHASE CARDS,100669637,46.74
UNITED KINGDOM ATOMIC ENERGY AUTHORITY,UNITED KINGDOM ATOMIC ENERGY AUTHORITY,15/11/2012,CATERING SUPPLIES,SUPPORT SERVICES,PURCHASE CARDS,100669650,261.47
UNITED KINGDOM ATOMIC ENERGY AUTHORITY,UNITED KINGDOM ATOMIC ENERGY AUTHORITY,15/11/2012,STATIONERY,SUPPORT SERVICES,PURCHASE CARDS,100669639,83.33
UNITED KINGDOM ATOMIC ENERGY AUTHORITY,UNITED KINGDOM ATOMIC ENERGY AUTHORITY,15/11/2012,BOOKS & PUBLICATIONS,SUPPORT SERVICES,PURCHASE CARDS,100669628,98.97
UNITED KINGDOM ATOMIC ENERGY AUTHORITY,UNITED KINGDOM ATOMIC ENERGY AUTHORITY,15/11/2012,BOOKS & PUBLICATIONS,SUPPORT SERVICES,PURCHASE CARDS,100669628,107.02
UNITED KINGDOM ATOMIC ENERGY AUTHORITY,UNITED KINGDOM ATOMIC ENERGY AUTHORITY,15/11/2012,BOOKS & PUBLICATIONS,SUPPORT SERVICES,PURCHASE CARDS,100669632,29.50
UNITED KINGDOM ATOMIC ENERGY AUTHORITY,UNITED KINGDOM ATOMIC ENERGY AUTHORITY,15/11/2012,BOOKS & PUBLICATIONS,SUPPORT SERVICES,PURCHASE CARDS,100669632,32.30
UNITED KINGDOM ATOMIC ENERGY AUTHORITY,UNITED KINGDOM ATOMIC ENERGY AUTHORITY,15/11/2012,OTHER EXTERNAL COSTS,SUPPORT SERVICES,PURCHASE CARDS,100669623,100.00
UNITED KINGDOM ATOMIC ENERGY AUTHORITY,UNITED KINGDOM ATOMIC ENERGY AUTHORITY,15/11/2012,OTHER EXTERNAL COSTS,SUPPORT SERVICES,PURCHASE CARDS,100669630,49.35
UNITED KINGDOM ATOMIC ENERGY AUTHORITY,UNITED KINGDOM ATOMIC ENERGY AUTHORITY,15/11/2012,OTHER EXTERNAL COSTS,SUPPORT SERVICES,PURCHASE CARDS,100669630,5.00
UNITED KINGDOM ATOMIC ENERGY AUTHORITY,UNITED KINGDOM ATOMIC ENERGY AUTHORITY,15/11/2012,OTHER EXTERNAL COSTS,SUPPORT SERVICES,PURCHASE CARDS,100669630,4.61
UNITED KINGDOM ATOMIC ENERGY AUTHORITY,UNITED KINGDOM ATOMIC ENERGY AUTHORITY,15/11/2012,OTHER EXTERNAL COSTS,SUPPORT SERVICES,PURCHASE CARDS,100669630,7.06
UNITED KINGDOM ATOMIC ENERGY AUTHORITY,UNITED KINGDOM ATOMIC ENERGY AUTHORITY,15/11/2012,OTHER EXTERNAL COSTS,SUPPORT SERVICES,PURCHASE CARDS,100669639,92.24
UNITED KINGDOM ATOMIC ENERGY AUTHORITY,UNITED KINGDOM ATOMIC ENERGY AUTHORITY,15/11/2012,OTHER EXTERNAL COSTS,SUPPORT SERVICES,PURCHASE CARDS,100669639,27.66
UNITED KINGDOM ATOMIC ENERGY AUTHORITY,UNITED KINGDOM ATOMIC ENERGY AUTHORITY,15/11/2012,OTHER EXTERNAL COSTS,SUPPORT SERVICES,PURCHASE CARDS,100669642,208.85
UNITED KINGDOM ATOMIC ENERGY AUTHORITY,UNITED KINGDOM ATOMIC ENERGY AUTHORITY,15/11/2012,OTHER EXTERNAL COSTS,SUPPORT SERVICES,PURCHASE CARDS,100669647,"1,500.00"
UNITED KINGDOM ATOMIC ENERGY AUTHORITY,UNITED KINGDOM ATOMIC ENERGY AUTHORITY,15/11/2012,OTHER EXTERNAL COSTS,SUPPORT SERVICES,PURCHASE CARDS,100669647,179.00
UNITED KINGDOM ATOMIC ENERGY AUTHORITY,UNITED KINGDOM ATOMIC ENERGY AUTHORITY,29/10/2012,STATIONERY,FUSION,Premier Paper Group Ltd,5100280481,405.37
UNITED KINGDOM ATOMIC ENERGY AUTHORITY,UNITED KINGDOM ATOMIC ENERGY AUTHORITY,29/10/2012,STATIONERY,FUSION,FULTON PAPER,5100281035,87.5
UNITED KINGDOM ATOMIC ENERGY AUTHORITY,UNITED KINGDOM ATOMIC ENERGY AUTHORITY,29/10/2012,STATIONERY,FUSION,FINE PRINT SERVICES,5100281052,295
UNITED KINGDOM ATOMIC ENERGY AUTHORITY,UNITED KINGDOM ATOMIC ENERGY AUTHORITY,05/11/2012,STATIONERY,FUSION,Thomas Leach Ltd,5100281399,459
UNITED KINGDOM ATOMIC ENERGY AUTHORITY,UNITED KINGDOM ATOMIC ENERGY AUTHORITY,05/11/2012,PRINTING & GRAPHICS,FUSION,AWARDFRAMERS INTERNATIONAL,5100281417,115
UNITED KINGDOM ATOMIC ENERGY AUTHORITY,UNITED KINGDOM ATOMIC ENERGY AUTHORITY,05/11/2012,STATIONERY,FUSION,FINE PRINT SERVICES,5100281420,335
UNITED KINGDOM ATOMIC ENERGY AUTHORITY,UNITED KINGDOM ATOMIC ENERGY AUTHORITY,05/11/2012,STATIONERY,FUSION,FINE PRINT SERVICES,5100281421,635
UNITED KINGDOM ATOMIC ENERGY AUTHORITY,UNITED KINGDOM ATOMIC ENERGY AUTHORITY,07/11/2012,STATIONERY,FUSION,Premier Paper Group Ltd,5100281456,432
UNITED KINGDOM ATOMIC ENERGY AUTHORITY,UNITED KINGDOM ATOMIC ENERGY AUTHORITY,31/10/2012,OPERATING LEASE,FUSION,ANNODATA BUSINESS COMMUNICATIONS,5100281461,-3195
UNITED KINGDOM ATOMIC ENERGY AUTHORITY,UNITED KINGDOM ATOMIC ENERGY AUTHORITY,31/10/2012,OPERATING LEASE,FUSION,ANNODATA BUSINESS COMMUNICATIONS,5100281462,3195
UNITED KINGDOM ATOMIC ENERGY AUTHORITY,UNITED KINGDOM ATOMIC ENERGY AUTHORITY,05/11/2012,STATIONERY,FUSION,MPS SERVICES LTD,5100281507,199
UNITED KINGDOM ATOMIC ENERGY AUTHORITY,UNITED KINGDOM ATOMIC ENERGY AUTHORITY,05/11/2012,OPERATING LEASE,FUSION,ANNODATA BUSINESS COMMUNICATIONS,5100281508,2646
UNITED KINGDOM ATOMIC ENERGY AUTHORITY,UNITED KINGDOM ATOMIC ENERGY AUTHORITY,12/11/2012,STATIONERY,FUSION,Premier Paper Group Ltd,5100281751,285.6
UNITED KINGDOM ATOMIC ENERGY AUTHORITY,UNITED KINGDOM ATOMIC ENERGY AUTHORITY,19/11/2012,BUILDING REPAIRS,FUSION,KNOWLES & SONS (OXFORD) LTD,5100281757,123.33
UNITED KINGDOM ATOMIC ENERGY AUTHORITY,UNITED KINGDOM ATOMIC ENERGY AUTHORITY,14/11/2012,STATIONERY,FUSION,FULTON PAPER,5100281780,3500
UNITED KINGDOM ATOMIC ENERGY AUTHORITY,UNITED KINGDOM ATOMIC ENERGY AUTHORITY,12/11/2012,OPERATING LEASE,FUSION,ANNODATA BUSINESS COMMUNICATIONS,5100281832,5719.55
UNITED KINGDOM ATOMIC ENERGY AUTHORITY,UNITED KINGDOM ATOMIC ENERGY AUTHORITY,12/11/2012,OPERATING LEASE,FUSION,ANNODATA BUSINESS COMMUNICATIONS,5100281833,16763.69
UNITED KINGDOM ATOMIC ENERGY AUTHORITY,UNITED KINGDOM ATOMIC ENERGY AUTHORITY,12/11/2012,OPERATING LEASE,FUSION,ANNODATA BUSINESS COMMUNICATIONS,5100281958,-1644.3
UNITED KINGDOM ATOMIC ENERGY AUTHORITY,UNITED KINGDOM ATOMIC ENERGY AUTHORITY,12/11/2012,OPERATING LEASE,FUSION,ANNODATA BUSINESS COMMUNICATIONS,5100281959,1569.56
UNITED KINGDOM ATOMIC ENERGY AUTHORITY,UNITED KINGDOM ATOMIC ENERGY AUTHORITY,19/11/2012,STATIONERY,FUSION,COLOURCOM,5100282024,347.96
UNITED KINGDOM ATOMIC ENERGY AUTHORITY,UNITED KINGDOM ATOMIC ENERGY AUTHORITY,14/11/2012,STATIONERY,FUSION,FLAPS ENVELOPES LTD,5100282065,372.25
UNITED KINGDOM ATOMIC ENERGY AUTHORITY,UNITED KINGDOM ATOMIC ENERGY AUTHORITY,19/11/2012,SOFTWARE,FUSION,PUGH COMPUTERS LTD,5100282070,25
UNITED KINGDOM ATOMIC ENERGY AUTHORITY,UNITED KINGDOM ATOMIC ENERGY AUTHORITY,19/11/2012,STATIONERY,FUSION,COLOURCOM,5100282080,256.95
UNITED KINGDOM ATOMIC ENERGY AUTHORITY,UNITED KINGDOM ATOMIC ENERGY AUTHORITY,19/11/2012,STATIONERY,FUSION,COLOURCOM,5100282082,250.95
UNITED KINGDOM ATOMIC ENERGY AUTHORITY,UNITED KINGDOM ATOMIC ENERGY AUTHORITY,19/11/2012,STATIONERY,FUSION,COLOURCOM,5100282084,-99.95
UNITED KINGDOM ATOMIC ENERGY AUTHORITY,UNITED KINGDOM ATOMIC ENERGY AUTHORITY,19/11/2012,STATIONERY,FUSION,COLOURCOM,5100282085,799.6
UNITED KINGDOM ATOMIC ENERGY AUTHORITY,UNITED KINGDOM ATOMIC ENERGY AUTHORITY,19/11/2012,STATIONERY,FUSION,COLOURCOM,5100282086,80.98
UNITED KINGDOM ATOMIC ENERGY AUTHORITY,UNITED KINGDOM ATOMIC ENERGY AUTHORITY,19/11/2012,PRINTING & GRAPHICS,FUSION,AWARDFRAMERS INTERNATIONAL,5100282136,45
UNITED KINGDOM ATOMIC ENERGY AUTHORITY,UNITED KINGDOM ATOMIC ENERGY AUTHORITY,19/11/2012,PROFILE VIDEO LIMITED,FUSION,STATIONERY,5100282195,225
UNITED KINGDOM ATOMIC ENERGY AUTHORITY,UNITED KINGDOM ATOMIC ENERGY AUTHORITY,21/11/2012,STATIONERY,FUSION,Premier Paper Group Ltd,5100282236,319.34
UNITED KINGDOM ATOMIC ENERGY AUTHORITY,UNITED KINGDOM ATOMIC ENERGY AUTHORITY,21/11/2012,STATIONERY,FUSION,ARTISAN LITHO PRINT  DESIGN,5100282262,192
UNITED KINGDOM ATOMIC ENERGY AUTHORITY,UNITED KINGDOM ATOMIC ENERGY AUTHORITY,31/10/2012,PRINTING & GRAPHICS,FUSION,Lamport Gilbert Ltd,1900057521,448.00
UNITED KINGDOM ATOMIC ENERGY AUTHORITY,UNITED KINGDOM ATOMIC ENERGY AUTHORITY,31/10/2012,PRINTING & GRAPHICS,FUSION,Jam Jar Print Ltd,1900057522,292.00
UNITED KINGDOM ATOMIC ENERGY AUTHORITY,UNITED KINGDOM ATOMIC ENERGY AUTHORITY,08/11/2012,PRINTING & GRAPHICS,FUSION,Flashbay Ltd,1900057546,1289.00
UNITED KINGDOM ATOMIC ENERGY AUTHORITY,UNITED KINGDOM ATOMIC ENERGY AUTHORITY,23/11/2012,PRINTING & GRAPHICS,FUSION,RHL Ltd,1900057571,668.00
UNITED KINGDOM ATOMIC ENERGY AUTHORITY,UNITED KINGDOM ATOMIC ENERGY AUTHORITY,15/11/2012,IT EQUIPMENT: NON CAPITAL,FUSION,PURCHASE CARDS,100669636,66.66
UNITED KINGDOM ATOMIC ENERGY AUTHORITY,UNITED KINGDOM ATOMIC ENERGY AUTHORITY,15/11/2012,IT EQUIPMENT: NON CAPITAL,FUSION,PURCHASE CARDS,100669636,112.20
UNITED KINGDOM ATOMIC ENERGY AUTHORITY,UNITED KINGDOM ATOMIC ENERGY AUTHORITY,15/11/2012,IT EQUIPMENT: NON CAPITAL,FUSION,PURCHASE CARDS,100669636,119.81
UNITED KINGDOM ATOMIC ENERGY AUTHORITY,UNITED KINGDOM ATOMIC ENERGY AUTHORITY,15/11/2012,SOFTWARE - NON-CAP,FUSION,PURCHASE CARDS,100669636,146.56
UNITED KINGDOM ATOMIC ENERGY AUTHORITY,UNITED KINGDOM ATOMIC ENERGY AUTHORITY,15/11/2012,SOFTWARE - NON-CAP,FUSION,PURCHASE CARDS,100669636,26.22
UNITED KINGDOM ATOMIC ENERGY AUTHORITY,UNITED KINGDOM ATOMIC ENERGY AUTHORITY,15/11/2012,SOFTWARE - NON-CAP,FUSION,PURCHASE CARDS,100669636,32.13
UNITED KINGDOM ATOMIC ENERGY AUTHORITY,UNITED KINGDOM ATOMIC ENERGY AUTHORITY,15/11/2012,SOFTWARE - NON-CAP,FUSION,PURCHASE CARDS,100669636,57.81
UNITED KINGDOM ATOMIC ENERGY AUTHORITY,UNITED KINGDOM ATOMIC ENERGY AUTHORITY,15/11/2012,STATIONERY,FUSION,PURCHASE CARDS,100669636,44.40
UNITED KINGDOM ATOMIC ENERGY AUTHORITY,UNITED KINGDOM ATOMIC ENERGY AUTHORITY,15/11/2012,STATIONERY,FUSION,PURCHASE CARDS,100669636,113.80
UNITED KINGDOM ATOMIC ENERGY AUTHORITY,UNITED KINGDOM ATOMIC ENERGY AUTHORITY,15/11/2012,RENT OF VEHICLE & EQUIPMENT,FUSION,PURCHASE CARDS,100669636,136.99
UNITED KINGDOM ATOMIC ENERGY AUTHORITY,UNITED KINGDOM ATOMIC ENERGY AUTHORITY,15/11/2012,OTHER EXTERNAL COSTS,FUSION,PURCHASE CARDS,100669636,2.32
UNITED KINGDOM ATOMIC ENERGY AUTHORITY,UNITED KINGDOM ATOMIC ENERGY AUTHORITY,15/11/2012,OTHER EXTERNAL COSTS,FUSION,PURCHASE CARDS,100669636,78.00
UNITED KINGDOM ATOMIC ENERGY AUTHORITY,UNITED KINGDOM ATOMIC ENERGY AUTHORITY,15/11/2012,OTHER EXTERNAL COSTS,FUSION,PURCHASE CARDS,100669636,78.00
UNITED KINGDOM ATOMIC ENERGY AUTHORITY,UNITED KINGDOM ATOMIC ENERGY AUTHORITY,07/11/2012,TAXIS,FUSION,PRYORS TAXIS,5100281587,6524.58
UNITED KINGDOM ATOMIC ENERGY AUTHORITY,UNITED KINGDOM ATOMIC ENERGY AUTHORITY,12/11/2012,TAXIS,FUSION,HAROLDS CARS,5100281661,740.21
UNITED KINGDOM ATOMIC ENERGY AUTHORITY,UNITED KINGDOM ATOMIC ENERGY AUTHORITY,05/11/2012,ELECTRICITY,FUSION,NATIONAL GRID TRANSCO,5100281463,3412.84
UNITED KINGDOM ATOMIC ENERGY AUTHORITY,UNITED KINGDOM ATOMIC ENERGY AUTHORITY,12/11/2012,UTILITIES/ELECTRICITY,FUSION,BRITISH ENERGY GENERATION LTD,5100281743,25.34
UNITED KINGDOM ATOMIC ENERGY AUTHORITY,UNITED KINGDOM ATOMIC ENERGY AUTHORITY,07/11/2012,UTILITIES/ELECTRICITY,FUSION,EDF ENERGY,5100281744,124617.24
UNITED KINGDOM ATOMIC ENERGY AUTHORITY,UNITED KINGDOM ATOMIC ENERGY AUTHORITY,29/10/2012,MATERIALS & SPARES,FUSION,FARNELL ELECTRONIC,5100281084,172.39
UNITED KINGDOM ATOMIC ENERGY AUTHORITY,UNITED KINGDOM ATOMIC ENERGY AUTHORITY,29/10/2012,MATERIALS & SPARES,FUSION,FARNELL ELECTRONIC,5100281187,59.66
UNITED KINGDOM ATOMIC ENERGY AUTHORITY,UNITED KINGDOM ATOMIC ENERGY AUTHORITY,29/10/2012,MATERIALS & SPARES,FUSION,FARNELL ELECTRONIC,5100281188,24.12
UNITED KINGDOM ATOMIC ENERGY AUTHORITY,UNITED KINGDOM ATOMIC ENERGY AUTHORITY,05/11/2012,MATERIALS & SPARES,FUSION,FARNELL ELECTRONIC,5100281442,48.99
UNITED KINGDOM ATOMIC ENERGY AUTHORITY,UNITED KINGDOM ATOMIC ENERGY AUTHORITY,07/11/2012,MATERIALS & SPARES,FUSION,PMD (UK) LTD,5100281476,76
UNITED KINGDOM ATOMIC ENERGY AUTHORITY,UNITED KINGDOM ATOMIC ENERGY AUTHORITY,07/11/2012,MATERIALS & SPARES,FUSION,PMD (UK) LTD,5100281478,47.9
UNITED KINGDOM ATOMIC ENERGY AUTHORITY,UNITED KINGDOM ATOMIC ENERGY AUTHORITY,07/11/2012,MATERIALS & SPARES,FUSION,PMD (UK) LTD,5100281479,494
UNITED KINGDOM ATOMIC ENERGY AUTHORITY,UNITED KINGDOM ATOMIC ENERGY AUTHORITY,07/11/2012,MATERIALS & SPARES,FUSION,PMD (UK) LTD,5100281483,114
UNITED KINGDOM ATOMIC ENERGY AUTHORITY,UNITED KINGDOM ATOMIC ENERGY AUTHORITY,07/11/2012,MATERIALS & SPARES,FUSION,PMD (UK) LTD,5100281484,30.4
UNITED KINGDOM ATOMIC ENERGY AUTHORITY,UNITED KINGDOM ATOMIC ENERGY AUTHORITY,12/11/2012,MATERIALS & SPARES,FUSION,RS COMPONENTS LTD,5100281583,56.58
UNITED KINGDOM ATOMIC ENERGY AUTHORITY,UNITED KINGDOM ATOMIC ENERGY AUTHORITY,12/11/2012,MATERIALS & SPARES,FUSION,RS COMPONENTS LTD,5100281632,226.49
UNITED KINGDOM ATOMIC ENERGY AUTHORITY,UNITED KINGDOM ATOMIC ENERGY AUTHORITY,12/11/2012,MATERIALS & SPARES,FUSION,RS COMPONENTS LTD,5100281652,41.38
UNITED KINGDOM ATOMIC ENERGY AUTHORITY,UNITED KINGDOM ATOMIC ENERGY AUTHORITY,21/11/2012,MATERIALS & SPARES,FUSION,RS COMPONENTS LTD,5100282133,522.24
UNITED KINGDOM ATOMIC ENERGY AUTHORITY,UNITED KINGDOM ATOMIC ENERGY AUTHORITY,19/11/2012,MATERIALS & SPARES,FUSION,PMD (UK) LTD,5100282200,190
UNITED KINGDOM ATOMIC ENERGY AUTHORITY,UNITED KINGDOM ATOMIC ENERGY AUTHORITY,01/11/2012,SUBSISTENCE,FUSION,EMPLOYEE EXPENSES,100665332,231.04
UNITED KINGDOM ATOMIC ENERGY AUTHORITY,UNITED KINGDOM ATOMIC ENERGY AUTHORITY,15/11/2012,PLANT & EQUIPMENT,FUSION,PURCHASE CARDS,100669631,130.98
UNITED KINGDOM ATOMIC ENERGY AUTHORITY,UNITED KINGDOM ATOMIC ENERGY AUTHORITY,21/11/2012,MATERIALS & SPARES,FUSION,METALFAST (A DIVISION OF,5100278286,22.5
UNITED KINGDOM ATOMIC ENERGY AUTHORITY,UNITED KINGDOM ATOMIC ENERGY AUTHORITY,21/11/2012,PLANT & EQUIPMENT,FUSION,NTI,5100280683,110689.05
UNITED KINGDOM ATOMIC ENERGY AUTHORITY,UNITED KINGDOM ATOMIC ENERGY AUTHORITY,05/11/2012,MATERIALS & SPARES,FUSION,BUDGET FORKTRUCKS LTD,5100281129,390
UNITED KINGDOM ATOMIC ENERGY AUTHORITY,UNITED KINGDOM ATOMIC ENERGY AUTHORITY,05/11/2012,MATERIALS & SPARES,FUSION,BUDGET FORKTRUCKS LTD,5100281130,268.67
UNITED KINGDOM ATOMIC ENERGY AUTHORITY,UNITED KINGDOM ATOMIC ENERGY AUTHORITY,29/10/2012,PROFESSIONAL SERVICES,FUSION,SWAGELOK LONDON,5100281138,181.55
UNITED KINGDOM ATOMIC ENERGY AUTHORITY,UNITED KINGDOM ATOMIC ENERGY AUTHORITY,29/10/2012,CAR HIRE,FUSION,LEASEDRIVE VELO,5100281207,36.44
UNITED KINGDOM ATOMIC ENERGY AUTHORITY,UNITED KINGDOM ATOMIC ENERGY AUTHORITY,31/10/2012,MATERIALS & SPARES,FUSION,ALPHA ENGINEERING SUPPLIES,5100281245,4.21
UNITED KINGDOM ATOMIC ENERGY AUTHORITY,UNITED KINGDOM ATOMIC ENERGY AUTHORITY,31/10/2012,MATERIALS & SPARES,FUSION,ALPHA ENGINEERING SUPPLIES,5100281246,32.37
UNITED KINGDOM ATOMIC ENERGY AUTHORITY,UNITED KINGDOM ATOMIC ENERGY AUTHORITY,31/10/2012,MATERIALS & SPARES,FUSION,ALPHA ENGINEERING SUPPLIES,5100281248,319.32
UNITED KINGDOM ATOMIC ENERGY AUTHORITY,UNITED KINGDOM ATOMIC ENERGY AUTHORITY,29/10/2012,GASES,FUSION,BOC LTD,5100281250,57.12
UNITED KINGDOM ATOMIC ENERGY AUTHORITY,UNITED KINGDOM ATOMIC ENERGY AUTHORITY,05/11/2012,MATERIALS & SPARES,FUSION,TVH,5100281262,279.55
UNITED KINGDOM ATOMIC ENERGY AUTHORITY,UNITED KINGDOM ATOMIC ENERGY AUTHORITY,29/10/2012,CAR HIRE,FUSION,LEASEDRIVE VELO,5100281280,8.2
UNITED KINGDOM ATOMIC ENERGY AUTHORITY,UNITED KINGDOM ATOMIC ENERGY AUTHORITY,05/11/2012,BSA MACHINE TOOLS LTD,FUSION,REPAIRS & MAINTENANCE,5100281402,532.5
UNITED KINGDOM ATOMIC ENERGY AUTHORITY,UNITED KINGDOM ATOMIC ENERGY AUTHORITY,05/11/2012,PROFESSIONAL SERVICES,FUSION,BNS NUCLEAR SERVICES,5100281423,107014.81
UNITED KINGDOM ATOMIC ENERGY AUTHORITY,UNITED KINGDOM ATOMIC ENERGY AUTHORITY,05/11/2012,ABILOCK LTD,FUSION,PLANT & EQUIPMENT,5100281506,98.5
UNITED KINGDOM ATOMIC ENERGY AUTHORITY,UNITED KINGDOM ATOMIC ENERGY AUTHORITY,05/11/2012,MATERIALS & SPARES,FUSION,THIRD DIMENSION,5100281526,3307
UNITED KINGDOM ATOMIC ENERGY AUTHORITY,UNITED KINGDOM ATOMIC ENERGY AUTHORITY,05/11/2012,MATERIALS & SPARES,FUSION,CROMWELL LTD,5100281578,338.79
UNITED KINGDOM ATOMIC ENERGY AUTHORITY,UNITED KINGDOM ATOMIC ENERGY AUTHORITY,05/11/2012,MATERIALS & SPARES,FUSION,CROMWELL LTD,5100281579,192.58
UNITED KINGDOM ATOMIC ENERGY AUTHORITY,UNITED KINGDOM ATOMIC ENERGY AUTHORITY,05/11/2012,CLEANING,FUSION,HYDROBLAST,5100281585,415
UNITED KINGDOM ATOMIC ENERGY AUTHORITY,UNITED KINGDOM ATOMIC ENERGY AUTHORITY,05/11/2012,CLEANING,FUSION,HYDROBLAST,5100281586,410
UNITED KINGDOM ATOMIC ENERGY AUTHORITY,UNITED KINGDOM ATOMIC ENERGY AUTHORITY,07/11/2012,MATERIALS & SPARES,FUSION,ALPHA ENGINEERING SUPPLIES,5100281615,478.8
UNITED KINGDOM ATOMIC ENERGY AUTHORITY,UNITED KINGDOM ATOMIC ENERGY AUTHORITY,12/11/2012,PLANT & EQUIPMENT,FUSION,HEWDEN,5100281717,920
UNITED KINGDOM ATOMIC ENERGY AUTHORITY,UNITED KINGDOM ATOMIC ENERGY AUTHORITY,19/11/2012,GASES,FUSION,BOC LTD,5100281738,329.11
UNITED KINGDOM ATOMIC ENERGY AUTHORITY,UNITED KINGDOM ATOMIC ENERGY AUTHORITY,12/11/2012,HIRED STAFF,FUSION,MORSON INTERNATIONAL,5100281750,332855.41
UNITED KINGDOM ATOMIC ENERGY AUTHORITY,UNITED KINGDOM ATOMIC ENERGY AUTHORITY,12/11/2012,MATERIALS & SPARES,FUSION,RS COMPONENTS LTD,5100281991,191.82
UNITED KINGDOM ATOMIC ENERGY AUTHORITY,UNITED KINGDOM ATOMIC ENERGY AUTHORITY,19/11/2012,MATERIALS & SPARES,FUSION,OXFORD BOLTS & BEARINGS,5100282075,401.86
UNITED KINGDOM ATOMIC ENERGY AUTHORITY,UNITED KINGDOM ATOMIC ENERGY AUTHORITY,21/11/2012,MATERIALS & SPARES,FUSION,UNIVERSAL ACCESS & POWER PLANT LTD,5100282094,622.1
UNITED KINGDOM ATOMIC ENERGY AUTHORITY,UNITED KINGDOM ATOMIC ENERGY AUTHORITY,19/11/2012,CLEANING,FUSION,HYDROBLAST,5100282120,481
UNITED KINGDOM ATOMIC ENERGY AUTHORITY,UNITED KINGDOM ATOMIC ENERGY AUTHORITY,19/11/2012,CLEANING,FUSION,HYDROBLAST,5100282121,210
UNITED KINGDOM ATOMIC ENERGY AUTHORITY,UNITED KINGDOM ATOMIC ENERGY AUTHORITY,19/11/2012,MATERIALS & SPARES,FUSION,TVH,5100282139,328.1
UNITED KINGDOM ATOMIC ENERGY AUTHORITY,UNITED KINGDOM ATOMIC ENERGY AUTHORITY,21/11/2012,MATERIALS & SPARES,FUSION,RS COMPONENTS LTD,5100282145,161.96
UNITED KINGDOM ATOMIC ENERGY AUTHORITY,UNITED KINGDOM ATOMIC ENERGY AUTHORITY,21/11/2012,MATERIALS & SPARES,FUSION,ALPHA ENGINEERING SUPPLIES,5100282151,56.4
UNITED KINGDOM ATOMIC ENERGY AUTHORITY,UNITED KINGDOM ATOMIC ENERGY AUTHORITY,19/11/2012,MATERIALS & SPARES,FUSION,SCREWFIX DIRECT LTD,5100282159,33.62
UNITED KINGDOM ATOMIC ENERGY AUTHORITY,UNITED KINGDOM ATOMIC ENERGY AUTHORITY,21/11/2012,REPAIRS & MAINTENANCE,FUSION,R & H TESTING SERVICES LTD,5100282185,35
UNITED KINGDOM ATOMIC ENERGY AUTHORITY,UNITED KINGDOM ATOMIC ENERGY AUTHORITY,15/11/2012,PLANT & EQUIPMENT,FUSION,PURCHASE CARDS,100669644,118.21
UNITED KINGDOM ATOMIC ENERGY AUTHORITY,UNITED KINGDOM ATOMIC ENERGY AUTHORITY,15/11/2012,PLANT & EQUIPMENT,FUSION,PURCHASE CARDS,100669644,264.16
UNITED KINGDOM ATOMIC ENERGY AUTHORITY,UNITED KINGDOM ATOMIC ENERGY AUTHORITY,07/11/2012,PLANT & EQUIPMENT,FUSION,CECOM S.N.C.,5100280804,15383.33
UNITED KINGDOM ATOMIC ENERGY AUTHORITY,UNITED KINGDOM ATOMIC ENERGY AUTHORITY,07/11/2012,PLANT & EQUIPMENT,FUSION,CECOM S.N.C.,5100280805,1288.66
UNITED KINGDOM ATOMIC ENERGY AUTHORITY,UNITED KINGDOM ATOMIC ENERGY AUTHORITY,29/10/2012,MATERIALS & SPARES,FUSION,SCREWFIX DIRECT LTD,5100281047,171.2
UNITED KINGDOM ATOMIC ENERGY AUTHORITY,UNITED KINGDOM ATOMIC ENERGY AUTHORITY,29/10/2012,MATERIALS & SPARES,FUSION,TVH,5100281261,411.1
UNITED KINGDOM ATOMIC ENERGY AUTHORITY,UNITED KINGDOM ATOMIC ENERGY AUTHORITY,29/10/2012,MATERIALS & SPARES,FUSION,RS COMPONENTS LTD,5100281264,154.32
UNITED KINGDOM ATOMIC ENERGY AUTHORITY,UNITED KINGDOM ATOMIC ENERGY AUTHORITY,29/10/2012,MATERIALS & SPARES,FUSION,OXFORD BOLTS & BEARINGS,5100281286,1356.57
UNITED KINGDOM ATOMIC ENERGY AUTHORITY,UNITED KINGDOM ATOMIC ENERGY AUTHORITY,29/10/2012,MATERIALS & SPARES,FUSION,OXFORD BOLTS & BEARINGS,5100281288,32
UNITED KINGDOM ATOMIC ENERGY AUTHORITY,UNITED KINGDOM ATOMIC ENERGY AUTHORITY,05/11/2012,MATERIALS & SPARES,FUSION,WOODSTOCK INDUSTRIAL SUPPLIES LTD,5100281329,281.88
UNITED KINGDOM ATOMIC ENERGY AUTHORITY,UNITED KINGDOM ATOMIC ENERGY AUTHORITY,05/11/2012,MATERIALS & SPARES,FUSION,METALFAST (A DIVISION OF,5100281448,-117
UNITED KINGDOM ATOMIC ENERGY AUTHORITY,UNITED KINGDOM ATOMIC ENERGY AUTHORITY,12/11/2012,MATERIALS & SPARES,FUSION,GPB PROTOTYPES LTD,5100281670,628
UNITED KINGDOM ATOMIC ENERGY AUTHORITY,UNITED KINGDOM ATOMIC ENERGY AUTHORITY,12/11/2012,MATERIALS & SPARES,FUSION,ALLWELD SUPPLIES,5100281699,101.53
UNITED KINGDOM ATOMIC ENERGY AUTHORITY,UNITED KINGDOM ATOMIC ENERGY AUTHORITY,12/11/2012,MATERIALS & SPARES,FUSION,ALLWELD SUPPLIES,5100281700,181.5
UNITED KINGDOM ATOMIC ENERGY AUTHORITY,UNITED KINGDOM ATOMIC ENERGY AUTHORITY,12/11/2012,MATERIALS & SPARES,FUSION,RS COMPONENTS LTD,5100281817,163.89
UNITED KINGDOM ATOMIC ENERGY AUTHORITY,UNITED KINGDOM ATOMIC ENERGY AUTHORITY,12/11/2012,MATERIALS & SPARES,FUSION,OXFORD BOLTS & BEARINGS,5100281844,43.43
UNITED KINGDOM ATOMIC ENERGY AUTHORITY,UNITED KINGDOM ATOMIC ENERGY AUTHORITY,12/11/2012,PERSONAL PROTECTIVE EQUIPMENT,FUSION,BUCK & HICKMAN LTD,5100281862,116.34
UNITED KINGDOM ATOMIC ENERGY AUTHORITY,UNITED KINGDOM ATOMIC ENERGY AUTHORITY,12/11/2012,MATERIALS & SPARES,FUSION,RS COMPONENTS LTD,5100281933,136.94
UNITED KINGDOM ATOMIC ENERGY AUTHORITY,UNITED KINGDOM ATOMIC ENERGY AUTHORITY,12/11/2012,MATERIALS & SPARES,FUSION,RS COMPONENTS LTD,5100281969,153.81
UNITED KINGDOM ATOMIC ENERGY AUTHORITY,UNITED KINGDOM ATOMIC ENERGY AUTHORITY,12/11/2012,MATERIALS & SPARES,FUSION,RS COMPONENTS LTD,5100281971,174.08
UNITED KINGDOM ATOMIC ENERGY AUTHORITY,UNITED KINGDOM ATOMIC ENERGY AUTHORITY,12/11/2012,MATERIALS & SPARES,FUSION,RS COMPONENTS LTD,5100281980,67.63
UNITED KINGDOM ATOMIC ENERGY AUTHORITY,UNITED KINGDOM ATOMIC ENERGY AUTHORITY,19/11/2012,GASES,FUSION,BOC LTD,5100282021,146.54
UNITED KINGDOM ATOMIC ENERGY AUTHORITY,UNITED KINGDOM ATOMIC ENERGY AUTHORITY,19/11/2012,PLANT & EQUIPMENT,FUSION,MILLHILL TOOLS LTD,5100282055,36
UNITED KINGDOM ATOMIC ENERGY AUTHORITY,UNITED KINGDOM ATOMIC ENERGY AUTHORITY,19/11/2012,PLANT & EQUIPMENT,FUSION,MILLHILL TOOLS LTD,5100282056,49.95
UNITED KINGDOM ATOMIC ENERGY AUTHORITY,UNITED KINGDOM ATOMIC ENERGY AUTHORITY,19/11/2012,PLANT & EQUIPMENT,FUSION,MILLHILL TOOLS LTD,5100282057,115.17
UNITED KINGDOM ATOMIC ENERGY AUTHORITY,UNITED KINGDOM ATOMIC ENERGY AUTHORITY,19/11/2012,PLANT & EQUIPMENT,FUSION,MILLHILL TOOLS LTD,5100282058,44.85
UNITED KINGDOM ATOMIC ENERGY AUTHORITY,UNITED KINGDOM ATOMIC ENERGY AUTHORITY,19/11/2012,MATERIALS & SPARES,FUSION,METALFAST (A DIVISION OF,5100282059,175
UNITED KINGDOM ATOMIC ENERGY AUTHORITY,UNITED KINGDOM ATOMIC ENERGY AUTHORITY,19/11/2012,MATERIALS & SPARES,FUSION,SCREWFIX DIRECT LTD,5100282158,78.1
UNITED KINGDOM ATOMIC ENERGY AUTHORITY,UNITED KINGDOM ATOMIC ENERGY AUTHORITY,09/11/2012,OTHER EXTERNAL COSTS,FUSION,D Bader Sohne GmbH ,1900057547,95.07
UNITED KINGDOM ATOMIC ENERGY AUTHORITY,UNITED KINGDOM ATOMIC ENERGY AUTHORITY,15/11/2012,BOOKS & PUBLICATIONS,FUSION,PURCHASE CARDS,100669631,12.74
UNITED KINGDOM ATOMIC ENERGY AUTHORITY,UNITED KINGDOM ATOMIC ENERGY AUTHORITY,05/11/2012,PERSONAL PROTECTIVE EQUIPMENT,FUSION,ARCO WESSEX,5100281254,120.88
UNITED KINGDOM ATOMIC ENERGY AUTHORITY,UNITED KINGDOM ATOMIC ENERGY AUTHORITY,07/11/2012,TRAINING COURSE FEES,FUSION,CU Services Ltd,1900057542,1500.00
UNITED KINGDOM ATOMIC ENERGY AUTHORITY,UNITED KINGDOM ATOMIC ENERGY AUTHORITY,15/11/2012,TRAINING COURSE FEES,FUSION,PURCHASE CARDS,100669631,327.50
UNITED KINGDOM ATOMIC ENERGY AUTHORITY,UNITED KINGDOM ATOMIC ENERGY AUTHORITY,15/11/2012,OTHER EXTERNAL COSTS,FUSION,PURCHASE CARDS,100669630,7.00
UNITED KINGDOM ATOMIC ENERGY AUTHORITY,UNITED KINGDOM ATOMIC ENERGY AUTHORITY,15/11/2012,OTHER EXTERNAL COSTS,FUSION,PURCHASE CARDS,100669630,5.00
UNITED KINGDOM ATOMIC ENERGY AUTHORITY,UNITED KINGDOM ATOMIC ENERGY AUTHORITY,15/11/2012,OTHER EXTERNAL COSTS,FUSION,PURCHASE CARDS,100669647,300.00
UNITED KINGDOM ATOMIC ENERGY AUTHORITY,UNITED KINGDOM ATOMIC ENERGY AUTHORITY,29/10/2012,MATERIALS & SPARES,FUSION,RS COMPONENTS LTD,5100281020,237.53
UNITED KINGDOM ATOMIC ENERGY AUTHORITY,UNITED KINGDOM ATOMIC ENERGY AUTHORITY,29/10/2012,MATERIALS & SPARES,FUSION,RS COMPONENTS LTD,5100281022,121.95
UNITED KINGDOM ATOMIC ENERGY AUTHORITY,UNITED KINGDOM ATOMIC ENERGY AUTHORITY,29/10/2012,MATERIALS & SPARES,FUSION,FARNELL ELECTRONIC,5100281143,333.67
UNITED KINGDOM ATOMIC ENERGY AUTHORITY,UNITED KINGDOM ATOMIC ENERGY AUTHORITY,29/10/2012,MATERIALS & SPARES,FUSION,FARNELL ELECTRONIC,5100281144,611.64
UNITED KINGDOM ATOMIC ENERGY AUTHORITY,UNITED KINGDOM ATOMIC ENERGY AUTHORITY,29/10/2012,MATERIALS & SPARES,FUSION,FARNELL ELECTRONIC,5100281145,129.21
UNITED KINGDOM ATOMIC ENERGY AUTHORITY,UNITED KINGDOM ATOMIC ENERGY AUTHORITY,29/10/2012,MATERIALS & SPARES,FUSION,FARNELL ELECTRONIC,5100281146,104.84
UNITED KINGDOM ATOMIC ENERGY AUTHORITY,UNITED KINGDOM ATOMIC ENERGY AUTHORITY,29/10/2012,MATERIALS & SPARES,FUSION,FARNELL ELECTRONIC,5100281198,57.3
UNITED KINGDOM ATOMIC ENERGY AUTHORITY,UNITED KINGDOM ATOMIC ENERGY AUTHORITY,29/10/2012,MATERIALS & SPARES,FUSION,FARNELL ELECTRONIC,5100281199,175.48
UNITED KINGDOM ATOMIC ENERGY AUTHORITY,UNITED KINGDOM ATOMIC ENERGY AUTHORITY,29/10/2012,PERSONAL PROTECTIVE EQUIPMENT,FUSION,ARCO LTD,5100281256,32.79
UNITED KINGDOM ATOMIC ENERGY AUTHORITY,UNITED KINGDOM ATOMIC ENERGY AUTHORITY,29/10/2012,PROFESSIONAL SERVICES,FUSION,METRO ENGINEERING AND PLATING WORKS,5100281273,100
UNITED KINGDOM ATOMIC ENERGY AUTHORITY,UNITED KINGDOM ATOMIC ENERGY AUTHORITY,29/10/2012,MATERIALS & SPARES,FUSION,RS COMPONENTS LTD,5100281276,361.41
UNITED KINGDOM ATOMIC ENERGY AUTHORITY,UNITED KINGDOM ATOMIC ENERGY AUTHORITY,05/11/2012,MATERIALS & SPARES,FUSION,RS COMPONENTS LTD,5100281312,283.88
UNITED KINGDOM ATOMIC ENERGY AUTHORITY,UNITED KINGDOM ATOMIC ENERGY AUTHORITY,05/11/2012,MATERIALS & SPARES,FUSION,RS COMPONENTS LTD,5100281346,184.9
UNITED KINGDOM ATOMIC ENERGY AUTHORITY,UNITED KINGDOM ATOMIC ENERGY AUTHORITY,31/10/2012,PERSONAL PROTECTIVE EQUIPMENT,FUSION,ARCO LTD,5100281350,19.88
UNITED KINGDOM ATOMIC ENERGY AUTHORITY,UNITED KINGDOM ATOMIC ENERGY AUTHORITY,31/10/2012,PERSONAL PROTECTIVE EQUIPMENT,FUSION,ARCO LTD,5100281352,69.54
UNITED KINGDOM ATOMIC ENERGY AUTHORITY,UNITED KINGDOM ATOMIC ENERGY AUTHORITY,05/11/2012,MATERIALS & SPARES,FUSION,FARNELL ELECTRONIC,5100281432,41.33
UNITED KINGDOM ATOMIC ENERGY AUTHORITY,UNITED KINGDOM ATOMIC ENERGY AUTHORITY,05/11/2012,MATERIALS & SPARES,FUSION,FARNELL ELECTRONIC,5100281433,110.12
UNITED KINGDOM ATOMIC ENERGY AUTHORITY,UNITED KINGDOM ATOMIC ENERGY AUTHORITY,05/11/2012,MATERIALS & SPARES,FUSION,FARNELL ELECTRONIC,5100281450,18.8
UNITED KINGDOM ATOMIC ENERGY AUTHORITY,UNITED KINGDOM ATOMIC ENERGY AUTHORITY,05/11/2012,MATERIALS & SPARES,FUSION,FARNELL ELECTRONIC,5100281451,1136.32
UNITED KINGDOM ATOMIC ENERGY AUTHORITY,UNITED KINGDOM ATOMIC ENERGY AUTHORITY,05/11/2012,MATERIALS & SPARES,FUSION,METALFAST (A DIVISION OF,5100281505,144
UNITED KINGDOM ATOMIC ENERGY AUTHORITY,UNITED KINGDOM ATOMIC ENERGY AUTHORITY,14/11/2012,PLANT & EQUIPMENT,FUSION,POWELL & CO,5100281555,179.35
UNITED KINGDOM ATOMIC ENERGY AUTHORITY,UNITED KINGDOM ATOMIC ENERGY AUTHORITY,12/11/2012,PROFESSIONAL SERVICES,FUSION,METRO ENGINEERING AND PLATING WORKS,5100281571,100
UNITED KINGDOM ATOMIC ENERGY AUTHORITY,UNITED KINGDOM ATOMIC ENERGY AUTHORITY,12/11/2012,PROFESSIONAL SERVICES,FUSION,METRO ENGINEERING AND PLATING WORKS,5100281572,20
UNITED KINGDOM ATOMIC ENERGY AUTHORITY,UNITED KINGDOM ATOMIC ENERGY AUTHORITY,05/11/2012,MATERIALS & SPARES,FUSION,METALFAST (A DIVISION OF,5100281605,126
UNITED KINGDOM ATOMIC ENERGY AUTHORITY,UNITED KINGDOM ATOMIC ENERGY AUTHORITY,12/11/2012,MATERIALS & SPARES,FUSION,RS COMPONENTS LTD,5100281629,173.94
UNITED KINGDOM ATOMIC ENERGY AUTHORITY,UNITED KINGDOM ATOMIC ENERGY AUTHORITY,12/11/2012,MATERIALS & SPARES,FUSION,RS COMPONENTS LTD,5100281640,106.31
UNITED KINGDOM ATOMIC ENERGY AUTHORITY,UNITED KINGDOM ATOMIC ENERGY AUTHORITY,19/11/2012,GASES,FUSION,BOC LTD,5100281735,4.58
UNITED KINGDOM ATOMIC ENERGY AUTHORITY,UNITED KINGDOM ATOMIC ENERGY AUTHORITY,12/11/2012,MATERIALS & SPARES,FUSION,FARNELL ELECTRONIC,5100281830,346.98
UNITED KINGDOM ATOMIC ENERGY AUTHORITY,UNITED KINGDOM ATOMIC ENERGY AUTHORITY,12/11/2012,MATERIALS & SPARES,FUSION,FARNELL ELECTRONIC,5100281831,596.44
UNITED KINGDOM ATOMIC ENERGY AUTHORITY,UNITED KINGDOM ATOMIC ENERGY AUTHORITY,12/11/2012,MATERIALS & SPARES,FUSION,CROMWELL LTD,5100281856,91.99
UNITED KINGDOM ATOMIC ENERGY AUTHORITY,UNITED KINGDOM ATOMIC ENERGY AUTHORITY,12/11/2012,MATERIALS & SPARES,FUSION,FARNELL ELECTRONIC,5100281915,463.75
UNITED KINGDOM ATOMIC ENERGY AUTHORITY,UNITED KINGDOM ATOMIC ENERGY AUTHORITY,12/11/2012,MATERIALS & SPARES,FUSION,RS COMPONENTS LTD,5100281919,374.36
UNITED KINGDOM ATOMIC ENERGY AUTHORITY,UNITED KINGDOM ATOMIC ENERGY AUTHORITY,12/11/2012,MATERIALS & SPARES,FUSION,RS COMPONENTS LTD,5100281932,98.04
UNITED KINGDOM ATOMIC ENERGY AUTHORITY,UNITED KINGDOM ATOMIC ENERGY AUTHORITY,12/11/2012,MATERIALS & SPARES,FUSION,RS COMPONENTS LTD,5100281936,703.88
UNITED KINGDOM ATOMIC ENERGY AUTHORITY,UNITED KINGDOM ATOMIC ENERGY AUTHORITY,12/11/2012,MATERIALS & SPARES,FUSION,RS COMPONENTS LTD,5100281957,21.87
UNITED KINGDOM ATOMIC ENERGY AUTHORITY,UNITED KINGDOM ATOMIC ENERGY AUTHORITY,12/11/2012,MATERIALS & SPARES,FUSION,RS COMPONENTS LTD,5100281988,83.39
UNITED KINGDOM ATOMIC ENERGY AUTHORITY,UNITED KINGDOM ATOMIC ENERGY AUTHORITY,19/11/2012,MATERIALS & SPARES,FUSION,RS COMPONENTS LTD,5100282098,25.51
UNITED KINGDOM ATOMIC ENERGY AUTHORITY,UNITED KINGDOM ATOMIC ENERGY AUTHORITY,19/11/2012,MATERIALS & SPARES,FUSION,NORBAIN,5100282101,557.2
UNITED KINGDOM ATOMIC ENERGY AUTHORITY,UNITED KINGDOM ATOMIC ENERGY AUTHORITY,19/11/2012,MATERIALS & SPARES,FUSION,FARNELL ELECTRONIC,5100282214,60.61
UNITED KINGDOM ATOMIC ENERGY AUTHORITY,UNITED KINGDOM ATOMIC ENERGY AUTHORITY,15/11/2012,IT EQUIPMENT: NON CAPITAL,FUSION,PURCHASE CARDS,100669637,99.70
UNITED KINGDOM ATOMIC ENERGY AUTHORITY,UNITED KINGDOM ATOMIC ENERGY AUTHORITY,15/11/2012,PLANT & EQUIPMENT,FUSION,PURCHASE CARDS,100669631,591.54
UNITED KINGDOM ATOMIC ENERGY AUTHORITY,UNITED KINGDOM ATOMIC ENERGY AUTHORITY,29/10/2012,CAR HIRE,FUSION,LEASEDRIVE VELO,5100281036,6.56
UNITED KINGDOM ATOMIC ENERGY AUTHORITY,UNITED KINGDOM ATOMIC ENERGY AUTHORITY,07/11/2012,PROFESSIONAL SERVICES,FUSION,DESIGNRULE LTD,5100281392,6800
UNITED KINGDOM ATOMIC ENERGY AUTHORITY,UNITED KINGDOM ATOMIC ENERGY AUTHORITY,12/11/2012,IT EQUIPMENT NON CAPITAL,FUSION,Scanning & Data Solutions Ltd,5100281709,10081.36
UNITED KINGDOM ATOMIC ENERGY AUTHORITY,UNITED KINGDOM ATOMIC ENERGY AUTHORITY,12/11/2012,PRINTING & GRAPHICS,FUSION,KIP UK SERVICE CENTRE,5100281756,352.2
UNITED KINGDOM ATOMIC ENERGY AUTHORITY,UNITED KINGDOM ATOMIC ENERGY AUTHORITY,29/10/2012,CAR HIRE,FUSION,LEASEDRIVE VELO,5100281208,34.39
UNITED KINGDOM ATOMIC ENERGY AUTHORITY,UNITED KINGDOM ATOMIC ENERGY AUTHORITY,19/11/2012,PLANT SPARES,FUSION,CONDEC INDUSTRIAL MAINTENANCE,5100282020,1420
UNITED KINGDOM ATOMIC ENERGY AUTHORITY,UNITED KINGDOM ATOMIC ENERGY AUTHORITY,15/11/2012,PLANT & EQUIPMENT,FUSION,PURCHASE CARDS,100669650,151.33
UNITED KINGDOM ATOMIC ENERGY AUTHORITY,UNITED KINGDOM ATOMIC ENERGY AUTHORITY,05/11/2012,KEMPSTON CONTROLS,FUSION,COMPUTER REPAIRS,5100281009,6948.55
UNITED KINGDOM ATOMIC ENERGY AUTHORITY,UNITED KINGDOM ATOMIC ENERGY AUTHORITY,29/10/2012,MATERIALS & SPARES,FUSION,FARNELL ELECTRONIC,5100281182,60.08
UNITED KINGDOM ATOMIC ENERGY AUTHORITY,UNITED KINGDOM ATOMIC ENERGY AUTHORITY,05/11/2012,BUILDING REPAIRS,FUSION,KNOWLES & SONS (OXFORD) LTD,5100281492,110
UNITED KINGDOM ATOMIC ENERGY AUTHORITY,UNITED KINGDOM ATOMIC ENERGY AUTHORITY,07/11/2012,TRAINING COSTS,FUSION,UNIVERSITY OF THE WEST OF ENGLAND,5100281537,1734
UNITED KINGDOM ATOMIC ENERGY AUTHORITY,UNITED KINGDOM ATOMIC ENERGY AUTHORITY,21/11/2012,SOFTWARE,FUSION,COMPUTER SIMULATION TECHNOLOGY,5100281742,240.1
UNITED KINGDOM ATOMIC ENERGY AUTHORITY,UNITED KINGDOM ATOMIC ENERGY AUTHORITY,14/11/2012,PERSONAL PROTECTIVE EQUIPMENT,FUSION,ARCO WESSEX,5100282023,35.39
UNITED KINGDOM ATOMIC ENERGY AUTHORITY,UNITED KINGDOM ATOMIC ENERGY AUTHORITY,19/11/2012,PERSONAL PROTECTIVE EQUIPMENT,FUSION,ARCO WESSEX,5100282041,106.17
UNITED KINGDOM ATOMIC ENERGY AUTHORITY,UNITED KINGDOM ATOMIC ENERGY AUTHORITY,19/11/2012,TRAINING COSTS,FUSION,UNIVERSITY OF THE WEST OF ENGLAND,5100282164,1734
UNITED KINGDOM ATOMIC ENERGY AUTHORITY,UNITED KINGDOM ATOMIC ENERGY AUTHORITY,08/11/2012,TRAINING COURSE FEES,FUSION,Doulos Ltd,1900057545,4490.00
UNITED KINGDOM ATOMIC ENERGY AUTHORITY,UNITED KINGDOM ATOMIC ENERGY AUTHORITY,31/10/2012,MILEAGE ALLOWANCE,FUSION,EMPLOYEE EXPENSES,100665282,59.20
UNITED KINGDOM ATOMIC ENERGY AUTHORITY,UNITED KINGDOM ATOMIC ENERGY AUTHORITY,31/10/2012,TAXIS,FUSION,EMPLOYEE EXPENSES,100665283,25.40
UNITED KINGDOM ATOMIC ENERGY AUTHORITY,UNITED KINGDOM ATOMIC ENERGY AUTHORITY,31/10/2012,SUBSISTENCE,FUSION,EMPLOYEE EXPENSES,100665283,101.04
UNITED KINGDOM ATOMIC ENERGY AUTHORITY,UNITED KINGDOM ATOMIC ENERGY AUTHORITY,31/10/2012,ROAD TRAVEL,FUSION,EMPLOYEE EXPENSES,100665283,2.80
UNITED KINGDOM ATOMIC ENERGY AUTHORITY,UNITED KINGDOM ATOMIC ENERGY AUTHORITY,08/11/2012,MILEAGE ALLOWANCE,FUSION,EMPLOYEE EXPENSES,100665477,62.00
UNITED KINGDOM ATOMIC ENERGY AUTHORITY,UNITED KINGDOM ATOMIC ENERGY AUTHORITY,10/11/2012,MILEAGE ALLOWANCE,FUSION,EMPLOYEE EXPENSES,100665500,59.20
UNITED KINGDOM ATOMIC ENERGY AUTHORITY,UNITED KINGDOM ATOMIC ENERGY AUTHORITY,10/11/2012,MILEAGE ALLOWANCE,FUSION,EMPLOYEE EXPENSES,100665503,62.00
UNITED KINGDOM ATOMIC ENERGY AUTHORITY,UNITED KINGDOM ATOMIC ENERGY AUTHORITY,10/11/2012,PROFESSIONAL SUBSCRIPTION,FUSION,EMPLOYEE EXPENSES,100665503,15.80
UNITED KINGDOM ATOMIC ENERGY AUTHORITY,UNITED KINGDOM ATOMIC ENERGY AUTHORITY,15/11/2012,MILEAGE ALLOWANCE,FUSION,EMPLOYEE EXPENSES,100669618,59.20
UNITED KINGDOM ATOMIC ENERGY AUTHORITY,UNITED KINGDOM ATOMIC ENERGY AUTHORITY,15/11/2012,MILEAGE ALLOWANCE,FUSION,EMPLOYEE EXPENSES,100669619,62.00
UNITED KINGDOM ATOMIC ENERGY AUTHORITY,UNITED KINGDOM ATOMIC ENERGY AUTHORITY,22/11/2012,MILEAGE ALLOWANCE,FUSION,EMPLOYEE EXPENSES,100669765,59.20
UNITED KINGDOM ATOMIC ENERGY AUTHORITY,UNITED KINGDOM ATOMIC ENERGY AUTHORITY,22/11/2012,MILEAGE ALLOWANCE,FUSION,EMPLOYEE EXPENSES,100669766,62.00
UNITED KINGDOM ATOMIC ENERGY AUTHORITY,UNITED KINGDOM ATOMIC ENERGY AUTHORITY,15/11/2012,STATIONERY,FUSION,PURCHASE CARDS,100669629,88.68
UNITED KINGDOM ATOMIC ENERGY AUTHORITY,UNITED KINGDOM ATOMIC ENERGY AUTHORITY,12/11/2012,GASES,FUSION,AIR PRODUCTS PLC,5100280943,18.3
UNITED KINGDOM ATOMIC ENERGY AUTHORITY,UNITED KINGDOM ATOMIC ENERGY AUTHORITY,14/11/2012,MATERIALS & SPARES,FUSION,RS COMPONENTS LTD,5100281018,47.28
UNITED KINGDOM ATOMIC ENERGY AUTHORITY,UNITED KINGDOM ATOMIC ENERGY AUTHORITY,29/10/2012,PLANT & EQUIPMENT,FUSION,PFEIFFER VACUUM UK,5100281051,7395
UNITED KINGDOM ATOMIC ENERGY AUTHORITY,UNITED KINGDOM ATOMIC ENERGY AUTHORITY,29/10/2012,MATERIALS & SPARES,FUSION,RS COMPONENTS LTD,5100281233,0.87
UNITED KINGDOM ATOMIC ENERGY AUTHORITY,UNITED KINGDOM ATOMIC ENERGY AUTHORITY,29/10/2012,PLANT & EQUIPMENT,FUSION,LONDON FLUID SYSTEM,5100281234,906.6
UNITED KINGDOM ATOMIC ENERGY AUTHORITY,UNITED KINGDOM ATOMIC ENERGY AUTHORITY,05/11/2012,MATERIALS & SPARES,FUSION,RS COMPONENTS LTD,5100281311,52.46
UNITED KINGDOM ATOMIC ENERGY AUTHORITY,UNITED KINGDOM ATOMIC ENERGY AUTHORITY,05/11/2012,MATERIALS & SPARES,FUSION,RS COMPONENTS LTD,5100281316,85.54
UNITED KINGDOM ATOMIC ENERGY AUTHORITY,UNITED KINGDOM ATOMIC ENERGY AUTHORITY,05/11/2012,PLANT & EQUIPMENT,FUSION,NOR-CAL UK LTD,5100281324,112.7
UNITED KINGDOM ATOMIC ENERGY AUTHORITY,UNITED KINGDOM ATOMIC ENERGY AUTHORITY,05/11/2012,MATERIALS & SPARES,FUSION,RS COMPONENTS LTD,5100281379,10.66
UNITED KINGDOM ATOMIC ENERGY AUTHORITY,UNITED KINGDOM ATOMIC ENERGY AUTHORITY,05/11/2012,MATERIALS & SPARES,FUSION,FARNELL ELECTRONIC,5100281430,45.61
UNITED KINGDOM ATOMIC ENERGY AUTHORITY,UNITED KINGDOM ATOMIC ENERGY AUTHORITY,12/11/2012,MATERIALS & SPARES,FUSION,RS COMPONENTS LTD,5100281648,489.87
UNITED KINGDOM ATOMIC ENERGY AUTHORITY,UNITED KINGDOM ATOMIC ENERGY AUTHORITY,12/11/2012,MATERIALS & SPARES,FUSION,NEWBURY ELECTRONICS,5100281664,4906.8
UNITED KINGDOM ATOMIC ENERGY AUTHORITY,UNITED KINGDOM ATOMIC ENERGY AUTHORITY,14/11/2012,GASES,FUSION,BOC LTD,5100281728,223.52
UNITED KINGDOM ATOMIC ENERGY AUTHORITY,UNITED KINGDOM ATOMIC ENERGY AUTHORITY,12/11/2012,MATERIALS & SPARES,FUSION,RS COMPONENTS LTD,5100281808,9.44
UNITED KINGDOM ATOMIC ENERGY AUTHORITY,UNITED KINGDOM ATOMIC ENERGY AUTHORITY,12/11/2012,MATERIALS & SPARES,FUSION,RS COMPONENTS LTD,5100281819,66.66
UNITED KINGDOM ATOMIC ENERGY AUTHORITY,UNITED KINGDOM ATOMIC ENERGY AUTHORITY,12/11/2012,MATERIALS & SPARES,FUSION,RS COMPONENTS LTD,5100281916,27.42
UNITED KINGDOM ATOMIC ENERGY AUTHORITY,UNITED KINGDOM ATOMIC ENERGY AUTHORITY,12/11/2012,MATERIALS & SPARES,FUSION,RS COMPONENTS LTD,5100281931,266.98
UNITED KINGDOM ATOMIC ENERGY AUTHORITY,UNITED KINGDOM ATOMIC ENERGY AUTHORITY,12/11/2012,MATERIALS & SPARES,FUSION,RS COMPONENTS LTD,5100281950,7.17
UNITED KINGDOM ATOMIC ENERGY AUTHORITY,UNITED KINGDOM ATOMIC ENERGY AUTHORITY,12/11/2012,MATERIALS & SPARES,FUSION,RS COMPONENTS LTD,5100281995,103.66
UNITED KINGDOM ATOMIC ENERGY AUTHORITY,UNITED KINGDOM ATOMIC ENERGY AUTHORITY,12/11/2012,MATERIALS & SPARES,FUSION,RS COMPONENTS LTD,5100281998,81.45
UNITED KINGDOM ATOMIC ENERGY AUTHORITY,UNITED KINGDOM ATOMIC ENERGY AUTHORITY,19/11/2012,PLANT SPARES,FUSION,AURIGA EUROPE PLC,5100282045,120
UNITED KINGDOM ATOMIC ENERGY AUTHORITY,UNITED KINGDOM ATOMIC ENERGY AUTHORITY,19/11/2012,MATERIALS & SPARES,FUSION,RS COMPONENTS LTD,5100282135,44.99
UNITED KINGDOM ATOMIC ENERGY AUTHORITY,UNITED KINGDOM ATOMIC ENERGY AUTHORITY,21/11/2012,PLANT & EQUIPMENT,FUSION,LEMO UK LTD,5100282177,265
UNITED KINGDOM ATOMIC ENERGY AUTHORITY,UNITED KINGDOM ATOMIC ENERGY AUTHORITY,19/11/2012,MATERIALS & SPARES,FUSION,FARNELL ELECTRONIC,5100282201,5.43
UNITED KINGDOM ATOMIC ENERGY AUTHORITY,UNITED KINGDOM ATOMIC ENERGY AUTHORITY,19/11/2012,MATERIALS & SPARES,FUSION,FARNELL ELECTRONIC,5100282207,0.7
UNITED KINGDOM ATOMIC ENERGY AUTHORITY,UNITED KINGDOM ATOMIC ENERGY AUTHORITY,07/11/2012,PRINTING & GRAPHICS,FUSION,JESSOPS,5100279099,116.32
UNITED KINGDOM ATOMIC ENERGY AUTHORITY,UNITED KINGDOM ATOMIC ENERGY AUTHORITY,07/11/2012,MATERIALS & SPARES,FUSION,FARNELL ELECTRONIC,5100279997,444.37
UNITED KINGDOM ATOMIC ENERGY AUTHORITY,UNITED KINGDOM ATOMIC ENERGY AUTHORITY,14/11/2012,MATERIALS & SPARES,FUSION,SPINNER GMBH,5100280923,9265.68
UNITED KINGDOM ATOMIC ENERGY AUTHORITY,UNITED KINGDOM ATOMIC ENERGY AUTHORITY,29/10/2012,MATERIALS & SPARES,FUSION,RS COMPONENTS LTD,5100281027,333.67
UNITED KINGDOM ATOMIC ENERGY AUTHORITY,UNITED KINGDOM ATOMIC ENERGY AUTHORITY,29/10/2012,MATERIALS & SPARES,FUSION,FARNELL ELECTRONIC,5100281080,129.58
UNITED KINGDOM ATOMIC ENERGY AUTHORITY,UNITED KINGDOM ATOMIC ENERGY AUTHORITY,31/10/2012,MATERIALS & SPARES,FUSION,FARNELL ELECTRONIC,5100281107,13.76
UNITED KINGDOM ATOMIC ENERGY AUTHORITY,UNITED KINGDOM ATOMIC ENERGY AUTHORITY,05/11/2012,PLANT & EQUIPMENT,FUSION,EDMUNDSON ELECTRICALS LTD,5100281241,110.24
UNITED KINGDOM ATOMIC ENERGY AUTHORITY,UNITED KINGDOM ATOMIC ENERGY AUTHORITY,05/11/2012,PLANT & EQUIPMENT,FUSION,NATIONAL INSTRUMENTS LTD,5100281321,2949
UNITED KINGDOM ATOMIC ENERGY AUTHORITY,UNITED KINGDOM ATOMIC ENERGY AUTHORITY,07/11/2012,LABCENTRE ELECTRONICS LIMITED,FUSION,COMPUTER REPAIRS,5100281338,1295
UNITED KINGDOM ATOMIC ENERGY AUTHORITY,UNITED KINGDOM ATOMIC ENERGY AUTHORITY,07/11/2012,MATERIALS & SPARES,FUSION,RS COMPONENTS LTD,5100281344,91.66
UNITED KINGDOM ATOMIC ENERGY AUTHORITY,UNITED KINGDOM ATOMIC ENERGY AUTHORITY,05/11/2012,MATERIALS & SPARES,FUSION,RS COMPONENTS LTD,5100281389,273.21
UNITED KINGDOM ATOMIC ENERGY AUTHORITY,UNITED KINGDOM ATOMIC ENERGY AUTHORITY,07/11/2012,MATERIALS & SPARES,FUSION,FARNELL ELECTRONIC,5100281438,374.26
UNITED KINGDOM ATOMIC ENERGY AUTHORITY,UNITED KINGDOM ATOMIC ENERGY AUTHORITY,07/11/2012,PROFESSIONAL SERVICES,FUSION,FORTRESS INTERLOCKS LTD,5100281467,945.83
UNITED KINGDOM ATOMIC ENERGY AUTHORITY,UNITED KINGDOM ATOMIC ENERGY AUTHORITY,07/11/2012,MATERIALS & SPARES,FUSION,KEY INDUSTRIAL EQUIPMENT LTD,5100281535,6085.91
UNITED KINGDOM ATOMIC ENERGY AUTHORITY,UNITED KINGDOM ATOMIC ENERGY AUTHORITY,07/11/2012,MATERIALS & SPARES,FUSION,NEWBURY ELECTRONICS,5100281553,501.4
UNITED KINGDOM ATOMIC ENERGY AUTHORITY,UNITED KINGDOM ATOMIC ENERGY AUTHORITY,12/11/2012,MATERIALS & SPARES,FUSION,TVH,5100281566,657.55
UNITED KINGDOM ATOMIC ENERGY AUTHORITY,UNITED KINGDOM ATOMIC ENERGY AUTHORITY,08/11/2012,MATERIALS & SPARES,FUSION,SPINNER GMBH,5100281594,2550.02
UNITED KINGDOM ATOMIC ENERGY AUTHORITY,UNITED KINGDOM ATOMIC ENERGY AUTHORITY,12/11/2012,PLANT & EQUIPMENT,FUSION,EDMUNDSON ELECTRICALS LTD,5100281692,722.68
UNITED KINGDOM ATOMIC ENERGY AUTHORITY,UNITED KINGDOM ATOMIC ENERGY AUTHORITY,12/11/2012,PLANT & EQUIPMENT,FUSION,J & J PNEUMATICS LTD,5100281778,277.95
UNITED KINGDOM ATOMIC ENERGY AUTHORITY,UNITED KINGDOM ATOMIC ENERGY AUTHORITY,08/11/2012,MATERIALS & SPARES,FUSION,SPINNER GMBH,5100281815,-2550.02
UNITED KINGDOM ATOMIC ENERGY AUTHORITY,UNITED KINGDOM ATOMIC ENERGY AUTHORITY,21/11/2012,MATERIALS & SPARES,FUSION,SPINNER GMBH,5100281826,2544.7
UNITED KINGDOM ATOMIC ENERGY AUTHORITY,UNITED KINGDOM ATOMIC ENERGY AUTHORITY,12/11/2012,PRINTING & GRAPHICS,FUSION,JESSOPS,5100281842,90.6
UNITED KINGDOM ATOMIC ENERGY AUTHORITY,UNITED KINGDOM ATOMIC ENERGY AUTHORITY,12/11/2012,MATERIALS & SPARES,FUSION,FARNELL ELECTRONIC,5100281894,765.99
UNITED KINGDOM ATOMIC ENERGY AUTHORITY,UNITED KINGDOM ATOMIC ENERGY AUTHORITY,12/11/2012,MATERIALS & SPARES,FUSION,FARNELL ELECTRONIC,5100281896,88.96
UNITED KINGDOM ATOMIC ENERGY AUTHORITY,UNITED KINGDOM ATOMIC ENERGY AUTHORITY,12/11/2012,MATERIALS & SPARES,FUSION,FARNELL ELECTRONIC,5100281897,8.91
UNITED KINGDOM ATOMIC ENERGY AUTHORITY,UNITED KINGDOM ATOMIC ENERGY AUTHORITY,12/11/2012,MATERIALS & SPARES,FUSION,VARIAN LTD,5100281930,25510.98
UNITED KINGDOM ATOMIC ENERGY AUTHORITY,UNITED KINGDOM ATOMIC ENERGY AUTHORITY,12/11/2012,MATERIALS & SPARES,FUSION,RS COMPONENTS LTD,5100281934,230.71
UNITED KINGDOM ATOMIC ENERGY AUTHORITY,UNITED KINGDOM ATOMIC ENERGY AUTHORITY,19/11/2012,MATERIALS & SPARES,FUSION,NEWBURY ELECTRONICS,5100281941,867.29
UNITED KINGDOM ATOMIC ENERGY AUTHORITY,UNITED KINGDOM ATOMIC ENERGY AUTHORITY,19/11/2012,MATERIALS & SPARES,FUSION,RS COMPONENTS LTD,5100281978,230.71
UNITED KINGDOM ATOMIC ENERGY AUTHORITY,UNITED KINGDOM ATOMIC ENERGY AUTHORITY,19/11/2012,MATERIALS & SPARES,FUSION,RS COMPONENTS LTD,5100281987,287.85
UNITED KINGDOM ATOMIC ENERGY AUTHORITY,UNITED KINGDOM ATOMIC ENERGY AUTHORITY,14/11/2012,PLANT & EQUIPMENT,FUSION,EDMUNDSON ELECTRICALS LTD,5100282030,382.93
UNITED KINGDOM ATOMIC ENERGY AUTHORITY,UNITED KINGDOM ATOMIC ENERGY AUTHORITY,19/11/2012,MATERIALS & SPARES,FUSION,CPC PLC,5100282054,102.54
UNITED KINGDOM ATOMIC ENERGY AUTHORITY,UNITED KINGDOM ATOMIC ENERGY AUTHORITY,19/11/2012,HVR INTERNATIONAL LTD,FUSION,COMPUTER REPAIRS,5100282068,707.2
UNITED KINGDOM ATOMIC ENERGY AUTHORITY,UNITED KINGDOM ATOMIC ENERGY AUTHORITY,21/11/2012,MATERIALS & SPARES,FUSION,TVH,5100282140,871.7
UNITED KINGDOM ATOMIC ENERGY AUTHORITY,UNITED KINGDOM ATOMIC ENERGY AUTHORITY,21/11/2012,MATERIALS & SPARES,FUSION,SCHROFF UK LTD,5100282154,399.91
UNITED KINGDOM ATOMIC ENERGY AUTHORITY,UNITED KINGDOM ATOMIC ENERGY AUTHORITY,19/11/2012,MATERIALS & SPARES,FUSION,FARNELL ELECTRONIC,5100282199,90.59
UNITED KINGDOM ATOMIC ENERGY AUTHORITY,UNITED KINGDOM ATOMIC ENERGY AUTHORITY,19/11/2012,MATERIALS & SPARES,FUSION,RS COMPONENTS LTD,5100282237,-230.71
UNITED KINGDOM ATOMIC ENERGY AUTHORITY,UNITED KINGDOM ATOMIC ENERGY AUTHORITY,23/11/2012,PLANT SPARES,FUSION,Powelectrics Ltd,1900057572,2611.44
UNITED KINGDOM ATOMIC ENERGY AUTHORITY,UNITED KINGDOM ATOMIC ENERGY AUTHORITY,15/11/2012,SOFTWARE - NON-CAP,FUSION,PURCHASE CARDS,100669629,523.05
UNITED KINGDOM ATOMIC ENERGY AUTHORITY,UNITED KINGDOM ATOMIC ENERGY AUTHORITY,31/10/2012,HENKE-SASS WOLF GMBH,FUSION,COMPUTER REPAIRS,5100280239,3725.11
UNITED KINGDOM ATOMIC ENERGY AUTHORITY,UNITED KINGDOM ATOMIC ENERGY AUTHORITY,29/10/2012,MATERIALS & SPARES,FUSION,FARNELL ELECTRONIC,5100281113,89.99
UNITED KINGDOM ATOMIC ENERGY AUTHORITY,UNITED KINGDOM ATOMIC ENERGY AUTHORITY,31/10/2012,MATERIALS & SPARES,FUSION,SCHROFF UK LTD,5100281270,655.65
UNITED KINGDOM ATOMIC ENERGY AUTHORITY,UNITED KINGDOM ATOMIC ENERGY AUTHORITY,31/10/2012,PERSONAL PROTECTIVE EQUIPMENT,FUSION,ARCO WESSEX,5100281355,46.66
UNITED KINGDOM ATOMIC ENERGY AUTHORITY,UNITED KINGDOM ATOMIC ENERGY AUTHORITY,05/11/2012,MATERIALS & SPARES,FUSION,TVH,5100281567,209
UNITED KINGDOM ATOMIC ENERGY AUTHORITY,UNITED KINGDOM ATOMIC ENERGY AUTHORITY,12/11/2012,MATERIALS & SPARES,FUSION,RS COMPONENTS LTD,5100281655,117.68
UNITED KINGDOM ATOMIC ENERGY AUTHORITY,UNITED KINGDOM ATOMIC ENERGY AUTHORITY,31/10/2012,MATERIALS & SPARES,FUSION,WEKA AG,5100280607,5832.89
UNITED KINGDOM ATOMIC ENERGY AUTHORITY,UNITED KINGDOM ATOMIC ENERGY AUTHORITY,29/10/2012,MATERIALS & SPARES,FUSION,RS COMPONENTS LTD,5100281026,55.05
UNITED KINGDOM ATOMIC ENERGY AUTHORITY,UNITED KINGDOM ATOMIC ENERGY AUTHORITY,29/10/2012,REPAIRS & MAINTENANCE,FUSION,ASTEC IT SOLUTIONS LTD,5100281088,652
UNITED KINGDOM ATOMIC ENERGY AUTHORITY,UNITED KINGDOM ATOMIC ENERGY AUTHORITY,29/10/2012,FUEL OIL,FUSION,EMO OILS LTD,5100281110,560.7
UNITED KINGDOM ATOMIC ENERGY AUTHORITY,UNITED KINGDOM ATOMIC ENERGY AUTHORITY,31/10/2012,MATERIALS & SPARES,FUSION,PIPELINE PEOPLE.COM,5100281201,536.47
UNITED KINGDOM ATOMIC ENERGY AUTHORITY,UNITED KINGDOM ATOMIC ENERGY AUTHORITY,31/10/2012,PLANT & EQUIPMENT,FUSION,ROUTECO,5100281202,498.4
UNITED KINGDOM ATOMIC ENERGY AUTHORITY,UNITED KINGDOM ATOMIC ENERGY AUTHORITY,29/10/2012,GASES,FUSION,BOC LTD,5100281251,269.44
UNITED KINGDOM ATOMIC ENERGY AUTHORITY,UNITED KINGDOM ATOMIC ENERGY AUTHORITY,29/10/2012,MATERIALS & SPARES,FUSION,RS COMPONENTS LTD,5100281271,178
UNITED KINGDOM ATOMIC ENERGY AUTHORITY,UNITED KINGDOM ATOMIC ENERGY AUTHORITY,05/11/2012,MATERIALS & SPARES,FUSION,RS COMPONENTS LTD,5100281369,121.74
UNITED KINGDOM ATOMIC ENERGY AUTHORITY,UNITED KINGDOM ATOMIC ENERGY AUTHORITY,05/11/2012,MATERIALS & SPARES,FUSION,RS COMPONENTS LTD,5100281381,38.81
UNITED KINGDOM ATOMIC ENERGY AUTHORITY,UNITED KINGDOM ATOMIC ENERGY AUTHORITY,05/11/2012,PLANT & EQUIPMENT,FUSION,ROUTECO,5100281455,127.2
UNITED KINGDOM ATOMIC ENERGY AUTHORITY,UNITED KINGDOM ATOMIC ENERGY AUTHORITY,12/11/2012,PROFESSIONAL SERVICES,FUSION,HPC ENGINEERING PLC,5100281465,1875.85
UNITED KINGDOM ATOMIC ENERGY AUTHORITY,UNITED KINGDOM ATOMIC ENERGY AUTHORITY,21/11/2012,MATERIALS & SPARES,FUSION,WEKA AG,5100281563,868.12
UNITED KINGDOM ATOMIC ENERGY AUTHORITY,UNITED KINGDOM ATOMIC ENERGY AUTHORITY,12/11/2012,MATERIALS & SPARES,FUSION,RS COMPONENTS LTD,5100281649,15.18
UNITED KINGDOM ATOMIC ENERGY AUTHORITY,UNITED KINGDOM ATOMIC ENERGY AUTHORITY,12/11/2012,GASES,FUSION,BOC LTD,5100281736,500.99
UNITED KINGDOM ATOMIC ENERGY AUTHORITY,UNITED KINGDOM ATOMIC ENERGY AUTHORITY,12/11/2012,MATERIALS & SPARES,FUSION,RS COMPONENTS LTD,5100281810,478.8
UNITED KINGDOM ATOMIC ENERGY AUTHORITY,UNITED KINGDOM ATOMIC ENERGY AUTHORITY,12/11/2012,MATERIALS & SPARES,FUSION,RS COMPONENTS LTD,5100281920,59.53
UNITED KINGDOM ATOMIC ENERGY AUTHORITY,UNITED KINGDOM ATOMIC ENERGY AUTHORITY,12/11/2012,MATERIALS & SPARES,FUSION,RS COMPONENTS LTD,5100281939,23.86
UNITED KINGDOM ATOMIC ENERGY AUTHORITY,UNITED KINGDOM ATOMIC ENERGY AUTHORITY,12/11/2012,MATERIALS & SPARES,FUSION,RS COMPONENTS LTD,5100281997,91.93
UNITED KINGDOM ATOMIC ENERGY AUTHORITY,UNITED KINGDOM ATOMIC ENERGY AUTHORITY,14/11/2012,GASES,FUSION,BOC LTD,5100282019,2615.44
UNITED KINGDOM ATOMIC ENERGY AUTHORITY,UNITED KINGDOM ATOMIC ENERGY AUTHORITY,19/11/2012,PLANT & EQUIPMENT,FUSION,DONALDSON FILTRATION (GB) LIMITED,5100282052,544
UNITED KINGDOM ATOMIC ENERGY AUTHORITY,UNITED KINGDOM ATOMIC ENERGY AUTHORITY,19/11/2012,SAMSON CONTROLS LIMITED,FUSION,COMPUTER REPAIRS,5100282063,1981.32
UNITED KINGDOM ATOMIC ENERGY AUTHORITY,UNITED KINGDOM ATOMIC ENERGY AUTHORITY,19/11/2012,PLANT SPARES,FUSION,AS SCIENTIFIC PRODUCTS LTD,5100282088,205
UNITED KINGDOM ATOMIC ENERGY AUTHORITY,UNITED KINGDOM ATOMIC ENERGY AUTHORITY,19/11/2012,MATERIALS & SPARES,FUSION,RS COMPONENTS LTD,5100282100,107.92
UNITED KINGDOM ATOMIC ENERGY AUTHORITY,UNITED KINGDOM ATOMIC ENERGY AUTHORITY,19/11/2012,MATERIALS & SPARES,FUSION,RS COMPONENTS LTD,5100282130,171.13
UNITED KINGDOM ATOMIC ENERGY AUTHORITY,UNITED KINGDOM ATOMIC ENERGY AUTHORITY,21/11/2012,PLANT & EQUIPMENT,FUSION,ELLIOT SCIENTIFIC LTD,5100282152,5689
UNITED KINGDOM ATOMIC ENERGY AUTHORITY,UNITED KINGDOM ATOMIC ENERGY AUTHORITY,29/10/2012,MATERIALS & SPARES,FUSION,FARNELL ELECTRONIC,5100281181,30.52
UNITED KINGDOM ATOMIC ENERGY AUTHORITY,UNITED KINGDOM ATOMIC ENERGY AUTHORITY,10/11/2012,PROFESSIONAL SUBSCRIPTION,FUSION,EMPLOYEE EXPENSES,100665502,117.02
UNITED KINGDOM ATOMIC ENERGY AUTHORITY,UNITED KINGDOM ATOMIC ENERGY AUTHORITY,29/10/2012,INTERSERVE INDUSTRIAL SERVICES LTD,FUSION,MATERIALS & SPARES,5100281033,131629.84
UNITED KINGDOM ATOMIC ENERGY AUTHORITY,UNITED KINGDOM ATOMIC ENERGY AUTHORITY,05/11/2012,MATERIALS & SPARES,FUSION,UNDERWOODS ELECTRICAL DISTRIBUTORS,5100281043,3128.09
UNITED KINGDOM ATOMIC ENERGY AUTHORITY,UNITED KINGDOM ATOMIC ENERGY AUTHORITY,29/10/2012,MATERIALS & SPARES,FUSION,SCREWFIX DIRECT LTD,5100281049,142.75
UNITED KINGDOM ATOMIC ENERGY AUTHORITY,UNITED KINGDOM ATOMIC ENERGY AUTHORITY,29/10/2012,MATERIALS & SPARES,FUSION,WOLSELEY UK LIMITED,5100281090,75.6
UNITED KINGDOM ATOMIC ENERGY AUTHORITY,UNITED KINGDOM ATOMIC ENERGY AUTHORITY,29/10/2012,INTERSERVE INDUSTRIAL SERVICES LTD,FUSION,MATERIALS & SPARES,5100281224,172952.8
UNITED KINGDOM ATOMIC ENERGY AUTHORITY,UNITED KINGDOM ATOMIC ENERGY AUTHORITY,29/10/2012,PERSONAL PROTECTIVE EQUIPMENT,FUSION,ARCO WESSEX,5100281231,197.08
UNITED KINGDOM ATOMIC ENERGY AUTHORITY,UNITED KINGDOM ATOMIC ENERGY AUTHORITY,05/11/2012,MATERIALS & SPARES,FUSION,RS COMPONENTS LTD,5100281345,91.87
UNITED KINGDOM ATOMIC ENERGY AUTHORITY,UNITED KINGDOM ATOMIC ENERGY AUTHORITY,31/10/2012,PERSONAL PROTECTIVE EQUIPMENT,FUSION,ARCO WESSEX,5100281353,41.57
UNITED KINGDOM ATOMIC ENERGY AUTHORITY,UNITED KINGDOM ATOMIC ENERGY AUTHORITY,05/11/2012,TREATED WATER,FUSION,B & V WATER TREATMENT,5100281370,1131.98
UNITED KINGDOM ATOMIC ENERGY AUTHORITY,UNITED KINGDOM ATOMIC ENERGY AUTHORITY,05/11/2012,MATERIALS & SPARES,FUSION,WOLSELEY UK LIMITED,5100281372,227.31
UNITED KINGDOM ATOMIC ENERGY AUTHORITY,UNITED KINGDOM ATOMIC ENERGY AUTHORITY,05/11/2012,PLANT SPARES,FUSION,A D INSTALLATION LTD,5100281388,620
UNITED KINGDOM ATOMIC ENERGY AUTHORITY,UNITED KINGDOM ATOMIC ENERGY AUTHORITY,14/11/2012,SERVOMAX GROUP LTD,FUSION,MATERIALS & SPARES,5100281428,15992.3
UNITED KINGDOM ATOMIC ENERGY AUTHORITY,UNITED KINGDOM ATOMIC ENERGY AUTHORITY,05/11/2012,MATERIALS & SPARES,FUSION,UNDERWOODS ELECTRICAL DISTRIBUTORS,5100281460,318
UNITED KINGDOM ATOMIC ENERGY AUTHORITY,UNITED KINGDOM ATOMIC ENERGY AUTHORITY,05/11/2012,PERSONAL PROTECTIVE EQUIPMENT,FUSION,ARCO WESSEX,5100281482,29.79
UNITED KINGDOM ATOMIC ENERGY AUTHORITY,UNITED KINGDOM ATOMIC ENERGY AUTHORITY,12/11/2012,TREATED WATER,FUSION,B & V WATER TREATMENT,5100281618,433.1
UNITED KINGDOM ATOMIC ENERGY AUTHORITY,UNITED KINGDOM ATOMIC ENERGY AUTHORITY,12/11/2012,MATERIALS & SPARES,FUSION,PIPELINE PEOPLE.COM,5100281666,2225.2
UNITED KINGDOM ATOMIC ENERGY AUTHORITY,UNITED KINGDOM ATOMIC ENERGY AUTHORITY,12/11/2012,MATERIALS & SPARES,FUSION,WEIR ENGINEERING SERVICES LTD,5100281703,11030
UNITED KINGDOM ATOMIC ENERGY AUTHORITY,UNITED KINGDOM ATOMIC ENERGY AUTHORITY,12/11/2012,MATERIALS & SPARES,FUSION,WOLSELEY UK LIMITED,5100281746,75.6
UNITED KINGDOM ATOMIC ENERGY AUTHORITY,UNITED KINGDOM ATOMIC ENERGY AUTHORITY,12/11/2012,INTERSERVE INDUSTRIAL SERVICES LTD,FUSION,MATERIALS & SPARES,5100281754,99634.01
UNITED KINGDOM ATOMIC ENERGY AUTHORITY,UNITED KINGDOM ATOMIC ENERGY AUTHORITY,14/11/2012,MATERIALS & SPARES,FUSION,JAMES WALKER AND CO LTD,5100281839,642.33
UNITED KINGDOM ATOMIC ENERGY AUTHORITY,UNITED KINGDOM ATOMIC ENERGY AUTHORITY,14/11/2012,DELIVERY & CARRIAGE,FUSION,Speedy Asset Services Limited,5100281865,460
UNITED KINGDOM ATOMIC ENERGY AUTHORITY,UNITED KINGDOM ATOMIC ENERGY AUTHORITY,14/11/2012,MATERIALS & SPARES,FUSION,RS COMPONENTS LTD,5100281996,78.21
UNITED KINGDOM ATOMIC ENERGY AUTHORITY,UNITED KINGDOM ATOMIC ENERGY AUTHORITY,19/11/2012,DIRTBAGS LTD,FUSION,MATERIALS & SPARES,5100282090,1881.65
UNITED KINGDOM ATOMIC ENERGY AUTHORITY,UNITED KINGDOM ATOMIC ENERGY AUTHORITY,19/11/2012,MATERIALS & SPARES,FUSION,RS COMPONENTS LTD,5100282150,119.52
UNITED KINGDOM ATOMIC ENERGY AUTHORITY,UNITED KINGDOM ATOMIC ENERGY AUTHORITY,19/11/2012,MATERIALS & SPARES,FUSION,SCREWFIX DIRECT LTD,5100282160,224.97
UNITED KINGDOM ATOMIC ENERGY AUTHORITY,UNITED KINGDOM ATOMIC ENERGY AUTHORITY,19/11/2012,MATERIALS & SPARES,FUSION,UNDERWOODS ELECTRICAL DISTRIBUTORS,5100282169,54.18
UNITED KINGDOM ATOMIC ENERGY AUTHORITY,UNITED KINGDOM ATOMIC ENERGY AUTHORITY,19/11/2012,MATERIALS & SPARES,FUSION,UNDERWOODS ELECTRICAL DISTRIBUTORS,5100282170,2532.95
UNITED KINGDOM ATOMIC ENERGY AUTHORITY,UNITED KINGDOM ATOMIC ENERGY AUTHORITY,19/11/2012,MATERIALS & SPARES,FUSION,SCREWFIX DIRECT LTD,5100282172,79.98
UNITED KINGDOM ATOMIC ENERGY AUTHORITY,UNITED KINGDOM ATOMIC ENERGY AUTHORITY,15/11/2012,CONSUMABLES,FUSION,PURCHASE CARDS,100669629,402.42
UNITED KINGDOM ATOMIC ENERGY AUTHORITY,UNITED KINGDOM ATOMIC ENERGY AUTHORITY,19/11/2012,MATERIALS & SPARES,FUSION,RS COMPONENTS LTD,5100280076,66.98
UNITED KINGDOM ATOMIC ENERGY AUTHORITY,UNITED KINGDOM ATOMIC ENERGY AUTHORITY,31/10/2012,SAFETY STORES,FUSION,SP SERVICES,5100280908,57
UNITED KINGDOM ATOMIC ENERGY AUTHORITY,UNITED KINGDOM ATOMIC ENERGY AUTHORITY,29/10/2012,MATERIALS & SPARES,FUSION,NIGHTSEARCHER LTD,5100281044,360.38
UNITED KINGDOM ATOMIC ENERGY AUTHORITY,UNITED KINGDOM ATOMIC ENERGY AUTHORITY,29/10/2012,CATERING,FUSION,AVENANCE PLC,5100281123,757.15
UNITED KINGDOM ATOMIC ENERGY AUTHORITY,UNITED KINGDOM ATOMIC ENERGY AUTHORITY,29/10/2012,MATERIALS & SPARES,FUSION,TENSATOR LIMITED,5100281226,999.84
UNITED KINGDOM ATOMIC ENERGY AUTHORITY,UNITED KINGDOM ATOMIC ENERGY AUTHORITY,31/10/2012,PLANT SPARES,FUSION,CONDEC INDUSTRIAL MAINTENANCE,5100281358,720
UNITED KINGDOM ATOMIC ENERGY AUTHORITY,UNITED KINGDOM ATOMIC ENERGY AUTHORITY,05/11/2012,F&F,FUSION,EFG MATTHEWS OFFICE FURNITURE LTD,5100281401,223.9
UNITED KINGDOM ATOMIC ENERGY AUTHORITY,UNITED KINGDOM ATOMIC ENERGY AUTHORITY,07/11/2012,MATERIALS & SPARES,FUSION,TENSATOR LIMITED,5100281454,1401.84
UNITED KINGDOM ATOMIC ENERGY AUTHORITY,UNITED KINGDOM ATOMIC ENERGY AUTHORITY,07/11/2012,MATERIALS & SPARES,FUSION,TENSATOR LIMITED,5100281662,-10
UNITED KINGDOM ATOMIC ENERGY AUTHORITY,UNITED KINGDOM ATOMIC ENERGY AUTHORITY,07/11/2012,MATERIALS & SPARES,FUSION,TENSATOR LIMITED,5100281663,-10
UNITED KINGDOM ATOMIC ENERGY AUTHORITY,UNITED KINGDOM ATOMIC ENERGY AUTHORITY,19/11/2012,PROFESSIONAL SERVICES,FUSION,JAMES FISHER INSPECTION AND,5100281745,29619
UNITED KINGDOM ATOMIC ENERGY AUTHORITY,UNITED KINGDOM ATOMIC ENERGY AUTHORITY,12/11/2012,MATERIALS & SPARES,FUSION,RS COMPONENTS LTD,5100281940,430.8
UNITED KINGDOM ATOMIC ENERGY AUTHORITY,UNITED KINGDOM ATOMIC ENERGY AUTHORITY,19/11/2012,MATERIALS & SPARES,FUSION,RS COMPONENTS LTD,5100282127,-66.98
UNITED KINGDOM ATOMIC ENERGY AUTHORITY,UNITED KINGDOM ATOMIC ENERGY AUTHORITY,19/11/2012,MATERIALS & SPARES,FUSION,RS COMPONENTS LTD,5100282129,35.55
UNITED KINGDOM ATOMIC ENERGY AUTHORITY,UNITED KINGDOM ATOMIC ENERGY AUTHORITY,19/11/2012,PROFESSIONAL SERVICES,FUSION,JAMES FISHER INSPECTION AND,5100282173,-3252
UNITED KINGDOM ATOMIC ENERGY AUTHORITY,UNITED KINGDOM ATOMIC ENERGY AUTHORITY,21/11/2012,COMPUTER REPAIRS,FUSION,NORTECH CONTROL SYSTEMS LIMITED,5100282189,1088.5
UNITED KINGDOM ATOMIC ENERGY AUTHORITY,UNITED KINGDOM ATOMIC ENERGY AUTHORITY,12/11/2012,TRAINING COURSE FEES,FUSION,SIEMENS PLC,5100281796,3680
UNITED KINGDOM ATOMIC ENERGY AUTHORITY,UNITED KINGDOM ATOMIC ENERGY AUTHORITY,12/11/2012,CAR HIRE,FUSION,LEASEDRIVE VELO,5100281943,156.42
UNITED KINGDOM ATOMIC ENERGY AUTHORITY,UNITED KINGDOM ATOMIC ENERGY AUTHORITY,08/11/2012,SUBSISTENCE,FUSION,EMPLOYEE EXPENSES,100665470,168.00
UNITED KINGDOM ATOMIC ENERGY AUTHORITY,UNITED KINGDOM ATOMIC ENERGY AUTHORITY,08/11/2012,SUBSISTENCE,FUSION,EMPLOYEE EXPENSES,100665475,10.00
UNITED KINGDOM ATOMIC ENERGY AUTHORITY,UNITED KINGDOM ATOMIC ENERGY AUTHORITY,08/11/2012,MILEAGE ALLOWANCE,FUSION,EMPLOYEE EXPENSES,100665475,61.60
UNITED KINGDOM ATOMIC ENERGY AUTHORITY,UNITED KINGDOM ATOMIC ENERGY AUTHORITY,08/11/2012,SUBSISTENCE,FUSION,EMPLOYEE EXPENSES,100665476,391.69
UNITED KINGDOM ATOMIC ENERGY AUTHORITY,UNITED KINGDOM ATOMIC ENERGY AUTHORITY,08/11/2012,OTHER EMPLOYEE EXPENSES,FUSION,EMPLOYEE EXPENSES,100665476,10.00
UNITED KINGDOM ATOMIC ENERGY AUTHORITY,UNITED KINGDOM ATOMIC ENERGY AUTHORITY,05/11/2012,MATERIALS & SPARES,FUSION,NIGHTSEARCHER LTD,5100280628,50.75
UNITED KINGDOM ATOMIC ENERGY AUTHORITY,UNITED KINGDOM ATOMIC ENERGY AUTHORITY,31/10/2012,MATERIALS & SPARES,FUSION,RITTAL,5100280879,26.89
UNITED KINGDOM ATOMIC ENERGY AUTHORITY,UNITED KINGDOM ATOMIC ENERGY AUTHORITY,31/10/2012,MATERIALS & SPARES,FUSION,RITTAL,5100281017,58.66
UNITED KINGDOM ATOMIC ENERGY AUTHORITY,UNITED KINGDOM ATOMIC ENERGY AUTHORITY,29/10/2012,MATERIALS & SPARES,FUSION,RS COMPONENTS LTD,5100281029,39.94
UNITED KINGDOM ATOMIC ENERGY AUTHORITY,UNITED KINGDOM ATOMIC ENERGY AUTHORITY,14/11/2012,MATERIALS & SPARES,FUSION,OXFORD BOLTS & BEARINGS,5100281032,646.32
UNITED KINGDOM ATOMIC ENERGY AUTHORITY,UNITED KINGDOM ATOMIC ENERGY AUTHORITY,29/10/2012,MATERIALS & SPARES,FUSION,FARNELL ELECTRONIC,5100281081,502.73
UNITED KINGDOM ATOMIC ENERGY AUTHORITY,UNITED KINGDOM ATOMIC ENERGY AUTHORITY,29/10/2012,MATERIALS & SPARES,FUSION,FARNELL ELECTRONIC,5100281082,54.71
UNITED KINGDOM ATOMIC ENERGY AUTHORITY,UNITED KINGDOM ATOMIC ENERGY AUTHORITY,29/10/2012,MATERIALS & SPARES,FUSION,FARNELL ELECTRONIC,5100281097,68.34
UNITED KINGDOM ATOMIC ENERGY AUTHORITY,UNITED KINGDOM ATOMIC ENERGY AUTHORITY,14/11/2012,PLANT & EQUIPMENT,FUSION,BOA AG,5100281149,10397.87
UNITED KINGDOM ATOMIC ENERGY AUTHORITY,UNITED KINGDOM ATOMIC ENERGY AUTHORITY,29/10/2012,MATERIALS & SPARES,FUSION,FARNELL ELECTRONIC,5100281179,225.21
UNITED KINGDOM ATOMIC ENERGY AUTHORITY,UNITED KINGDOM ATOMIC ENERGY AUTHORITY,29/10/2012,MATERIALS & SPARES,FUSION,FARNELL ELECTRONIC,5100281184,378.62
UNITED KINGDOM ATOMIC ENERGY AUTHORITY,UNITED KINGDOM ATOMIC ENERGY AUTHORITY,29/10/2012,SITE SUPPORT SERVICES,FUSION,SCION ESTATES,5100281244,686.08
UNITED KINGDOM ATOMIC ENERGY AUTHORITY,UNITED KINGDOM ATOMIC ENERGY AUTHORITY,29/10/2012,PLANT & EQUIPMENT,FUSION,ELLIOT SCIENTIFIC LTD,5100281268,649
UNITED KINGDOM ATOMIC ENERGY AUTHORITY,UNITED KINGDOM ATOMIC ENERGY AUTHORITY,29/10/2012,MATERIALS & SPARES,FUSION,BASTION GLASSFIBRE ROD,5100281274,208.9
UNITED KINGDOM ATOMIC ENERGY AUTHORITY,UNITED KINGDOM ATOMIC ENERGY AUTHORITY,29/10/2012,MATERIALS & SPARES,FUSION,RS COMPONENTS LTD,5100281277,138.86
UNITED KINGDOM ATOMIC ENERGY AUTHORITY,UNITED KINGDOM ATOMIC ENERGY AUTHORITY,29/10/2012,MATERIALS & SPARES,FUSION,KEY INDUSTRIAL EQUIPMENT LTD,5100281281,32.48
UNITED KINGDOM ATOMIC ENERGY AUTHORITY,UNITED KINGDOM ATOMIC ENERGY AUTHORITY,29/10/2012,MATERIALS & SPARES,FUSION,OXFORD BOLTS & BEARINGS,5100281285,225
UNITED KINGDOM ATOMIC ENERGY AUTHORITY,UNITED KINGDOM ATOMIC ENERGY AUTHORITY,31/10/2012,PLANT & EQUIPMENT,FUSION,EDMUNDSON ELECTRICAL LTD,5100281304,148.92
UNITED KINGDOM ATOMIC ENERGY AUTHORITY,UNITED KINGDOM ATOMIC ENERGY AUTHORITY,05/11/2012,HVR INTERNATIONAL LTD,FUSION,COMPUTER REPAIRS,5100281327,915
UNITED KINGDOM ATOMIC ENERGY AUTHORITY,UNITED KINGDOM ATOMIC ENERGY AUTHORITY,31/10/2012,PLANT & EQUIPMENT,FUSION,EDMUNDSON ELECTRICAL LTD,5100281335,356.49
UNITED KINGDOM ATOMIC ENERGY AUTHORITY,UNITED KINGDOM ATOMIC ENERGY AUTHORITY,05/11/2012,PLANT & EQUIPMENT,FUSION,EDMUNDSON ELECTRICAL LTD,5100281397,1065.08
UNITED KINGDOM ATOMIC ENERGY AUTHORITY,UNITED KINGDOM ATOMIC ENERGY AUTHORITY,05/11/2012,MATERIALS & SPARES,FUSION,FARNELL ELECTRONIC,5100281436,23.7
UNITED KINGDOM ATOMIC ENERGY AUTHORITY,UNITED KINGDOM ATOMIC ENERGY AUTHORITY,05/11/2012,PLANT & EQUIPMENT,FUSION,EDMUNDSON ELECTRICAL LTD,5100281497,41.09
UNITED KINGDOM ATOMIC ENERGY AUTHORITY,UNITED KINGDOM ATOMIC ENERGY AUTHORITY,05/11/2012,BUILDING REPAIRS,FUSION,KNOWLES & SONS (OXFORD) LTD,5100281498,1078
UNITED KINGDOM ATOMIC ENERGY AUTHORITY,UNITED KINGDOM ATOMIC ENERGY AUTHORITY,07/11/2012,MATERIALS & SPARES,FUSION,FARNELL ELECTRONIC,5100281516,138.36
UNITED KINGDOM ATOMIC ENERGY AUTHORITY,UNITED KINGDOM ATOMIC ENERGY AUTHORITY,05/11/2012,PROFESSIONAL SERVICES,FUSION,SCIENTIFICS LTD,5100281517,80
UNITED KINGDOM ATOMIC ENERGY AUTHORITY,UNITED KINGDOM ATOMIC ENERGY AUTHORITY,05/11/2012,PROFESSIONAL SERVICES,FUSION,SCIENTIFICS LTD,5100281518,335
UNITED KINGDOM ATOMIC ENERGY AUTHORITY,UNITED KINGDOM ATOMIC ENERGY AUTHORITY,07/11/2012,MATERIALS & SPARES,FUSION,FARNELL ELECTRONIC,5100281521,254.66
UNITED KINGDOM ATOMIC ENERGY AUTHORITY,UNITED KINGDOM ATOMIC ENERGY AUTHORITY,05/11/2012,MATERIALS & SPARES,FUSION,JEWSON LTD,5100281543,91.2
UNITED KINGDOM ATOMIC ENERGY AUTHORITY,UNITED KINGDOM ATOMIC ENERGY AUTHORITY,05/11/2012,MATERIALS & SPARES,FUSION,WOLSELEY UK LIMITED,5100281598,258.98
UNITED KINGDOM ATOMIC ENERGY AUTHORITY,UNITED KINGDOM ATOMIC ENERGY AUTHORITY,12/11/2012,MATERIALS & SPARES,FUSION,RS COMPONENTS LTD,5100281654,40.98
UNITED KINGDOM ATOMIC ENERGY AUTHORITY,UNITED KINGDOM ATOMIC ENERGY AUTHORITY,12/11/2012,MATERIALS & SPARES,FUSION,ANIXTER (UK) LTD,5100281711,121.2
UNITED KINGDOM ATOMIC ENERGY AUTHORITY,UNITED KINGDOM ATOMIC ENERGY AUTHORITY,07/11/2012,B.C. ELECTRICAL TECHNIQUES LTD,FUSION,COMPUTER REPAIRS,5100281723,3565
UNITED KINGDOM ATOMIC ENERGY AUTHORITY,UNITED KINGDOM ATOMIC ENERGY AUTHORITY,12/11/2012,GASES,FUSION,BOC LTD,5100281739,121.5
UNITED KINGDOM ATOMIC ENERGY AUTHORITY,UNITED KINGDOM ATOMIC ENERGY AUTHORITY,12/11/2012,MATERIALS & SPARES,FUSION,RS COMPONENTS LTD,5100281798,131.83
UNITED KINGDOM ATOMIC ENERGY AUTHORITY,UNITED KINGDOM ATOMIC ENERGY AUTHORITY,12/11/2012,MATERIALS & SPARES,FUSION,RS COMPONENTS LTD,5100281799,12.13
UNITED KINGDOM ATOMIC ENERGY AUTHORITY,UNITED KINGDOM ATOMIC ENERGY AUTHORITY,12/11/2012,MATERIALS & SPARES,FUSION,RS COMPONENTS LTD,5100281814,162.54
UNITED KINGDOM ATOMIC ENERGY AUTHORITY,UNITED KINGDOM ATOMIC ENERGY AUTHORITY,12/11/2012,MATERIALS & SPARES,FUSION,FARNELL ELECTRONIC,5100281824,91.74
UNITED KINGDOM ATOMIC ENERGY AUTHORITY,UNITED KINGDOM ATOMIC ENERGY AUTHORITY,12/11/2012,MATERIALS & SPARES,FUSION,FARNELL ELECTRONIC,5100281829,86.99
UNITED KINGDOM ATOMIC ENERGY AUTHORITY,UNITED KINGDOM ATOMIC ENERGY AUTHORITY,12/11/2012,MATERIALS & SPARES,FUSION,RS COMPONENTS LTD,5100281923,96.68
UNITED KINGDOM ATOMIC ENERGY AUTHORITY,UNITED KINGDOM ATOMIC ENERGY AUTHORITY,19/11/2012,MATERIALS & SPARES,FUSION,RS COMPONENTS LTD,5100281938,414.45
UNITED KINGDOM ATOMIC ENERGY AUTHORITY,UNITED KINGDOM ATOMIC ENERGY AUTHORITY,12/11/2012,MATERIALS & SPARES,FUSION,RS COMPONENTS LTD,5100281955,20.49
UNITED KINGDOM ATOMIC ENERGY AUTHORITY,UNITED KINGDOM ATOMIC ENERGY AUTHORITY,12/11/2012,MATERIALS & SPARES,FUSION,RS COMPONENTS LTD,5100281982,81.27
UNITED KINGDOM ATOMIC ENERGY AUTHORITY,UNITED KINGDOM ATOMIC ENERGY AUTHORITY,12/11/2012,MATERIALS & SPARES,FUSION,RS COMPONENTS LTD,5100281999,128.14
UNITED KINGDOM ATOMIC ENERGY AUTHORITY,UNITED KINGDOM ATOMIC ENERGY AUTHORITY,19/11/2012,MATERIALS & SPARES,FUSION,WOLSELEY UK LIMITED,5100282038,76.32
UNITED KINGDOM ATOMIC ENERGY AUTHORITY,UNITED KINGDOM ATOMIC ENERGY AUTHORITY,19/11/2012,PERSONAL PROTECTIVE EQUIPMENT,FUSION,ARCO WESSEX,5100282040,56.32
UNITED KINGDOM ATOMIC ENERGY AUTHORITY,UNITED KINGDOM ATOMIC ENERGY AUTHORITY,19/11/2012,MATERIALS & SPARES,FUSION,BROWNELL LTD,5100282050,280
UNITED KINGDOM ATOMIC ENERGY AUTHORITY,UNITED KINGDOM ATOMIC ENERGY AUTHORITY,14/11/2012,MATERIALS & SPARES,FUSION,MARK 5,5100282051,79.86
UNITED KINGDOM ATOMIC ENERGY AUTHORITY,UNITED KINGDOM ATOMIC ENERGY AUTHORITY,19/11/2012,MATERIALS & SPARES,FUSION,FARNELL ELECTRONIC,5100282202,88.93
UNITED KINGDOM ATOMIC ENERGY AUTHORITY,UNITED KINGDOM ATOMIC ENERGY AUTHORITY,21/11/2012,MATERIALS & SPARES,FUSION,OXFORD BOLTS & BEARINGS,5100282216,36.6
UNITED KINGDOM ATOMIC ENERGY AUTHORITY,UNITED KINGDOM ATOMIC ENERGY AUTHORITY,19/11/2012,DESIGN & CONSTRUCTION,FUSION,LR ENGINEERING,5100282228,576.95
UNITED KINGDOM ATOMIC ENERGY AUTHORITY,UNITED KINGDOM ATOMIC ENERGY AUTHORITY,06/11/2012,OTHER EXTERNAL COSTS,FUSION,J.A.C.S. UK Ltd,1900057539,928.04
UNITED KINGDOM ATOMIC ENERGY AUTHORITY,UNITED KINGDOM ATOMIC ENERGY AUTHORITY,15/11/2012,PLANT & EQUIPMENT,FUSION,PURCHASE CARDS,100669629,13.25
UNITED KINGDOM ATOMIC ENERGY AUTHORITY,UNITED KINGDOM ATOMIC ENERGY AUTHORITY,15/11/2012,PLANT & EQUIPMENT,FUSION,PURCHASE CARDS,100669629,38.50
UNITED KINGDOM ATOMIC ENERGY AUTHORITY,UNITED KINGDOM ATOMIC ENERGY AUTHORITY,05/11/2012,PLANT & EQUIPMENT,FUSION,QUARTZELEC LTD,5100280123,23229.32
UNITED KINGDOM ATOMIC ENERGY AUTHORITY,UNITED KINGDOM ATOMIC ENERGY AUTHORITY,31/10/2012,PLANT & EQUIPMENT,FUSION,H L HYDRAULIK GMBH,5100280347,6756.39
UNITED KINGDOM ATOMIC ENERGY AUTHORITY,UNITED KINGDOM ATOMIC ENERGY AUTHORITY,05/11/2012,PLANT & EQUIPMENT,FUSION,QUARTZELEC LTD,5100280629,3015
UNITED KINGDOM ATOMIC ENERGY AUTHORITY,UNITED KINGDOM ATOMIC ENERGY AUTHORITY,31/10/2012,PLANT SPARES,FUSION,MTSA TECHNOPOWER B.V.,5100280825,12338.92
UNITED KINGDOM ATOMIC ENERGY AUTHORITY,UNITED KINGDOM ATOMIC ENERGY AUTHORITY,31/10/2012,PLANT & EQUIPMENT,FUSION,H L HYDRAULIK GMBH,5100280903,933.08
UNITED KINGDOM ATOMIC ENERGY AUTHORITY,UNITED KINGDOM ATOMIC ENERGY AUTHORITY,29/10/2012,MATERIALS & SPARES,FUSION,RS COMPONENTS LTD,5100281019,5.16
UNITED KINGDOM ATOMIC ENERGY AUTHORITY,UNITED KINGDOM ATOMIC ENERGY AUTHORITY,29/10/2012,MATERIALS & SPARES,FUSION,FARNELL ELECTRONIC,5100281089,52.78
UNITED KINGDOM ATOMIC ENERGY AUTHORITY,UNITED KINGDOM ATOMIC ENERGY AUTHORITY,29/10/2012,MATERIALS & SPARES,FUSION,FARNELL ELECTRONIC,5100281091,4.36
UNITED KINGDOM ATOMIC ENERGY AUTHORITY,UNITED KINGDOM ATOMIC ENERGY AUTHORITY,29/10/2012,MATERIALS & SPARES,FUSION,FARNELL ELECTRONIC,5100281095,267.96
UNITED KINGDOM ATOMIC ENERGY AUTHORITY,UNITED KINGDOM ATOMIC ENERGY AUTHORITY,29/10/2012,MATERIALS & SPARES,FUSION,FARNELL ELECTRONIC,5100281104,21.58
UNITED KINGDOM ATOMIC ENERGY AUTHORITY,UNITED KINGDOM ATOMIC ENERGY AUTHORITY,29/10/2012,MATERIALS & SPARES,FUSION,FARNELL ELECTRONIC,5100281189,39.24
UNITED KINGDOM ATOMIC ENERGY AUTHORITY,UNITED KINGDOM ATOMIC ENERGY AUTHORITY,29/10/2012,MATERIALS & SPARES,FUSION,FARNELL ELECTRONIC,5100281190,135.65
UNITED KINGDOM ATOMIC ENERGY AUTHORITY,UNITED KINGDOM ATOMIC ENERGY AUTHORITY,29/10/2012,MATERIALS & SPARES,FUSION,FARNELL ELECTRONIC,5100281191,328.16
UNITED KINGDOM ATOMIC ENERGY AUTHORITY,UNITED KINGDOM ATOMIC ENERGY AUTHORITY,29/10/2012,MATERIALS & SPARES,FUSION,FARNELL ELECTRONIC,5100281192,9.62
UNITED KINGDOM ATOMIC ENERGY AUTHORITY,UNITED KINGDOM ATOMIC ENERGY AUTHORITY,29/10/2012,PLANT & EQUIPMENT,FUSION,QUARTZELEC LTD,5100281212,69120
UNITED KINGDOM ATOMIC ENERGY AUTHORITY,UNITED KINGDOM ATOMIC ENERGY AUTHORITY,29/10/2012,MATERIALS & SPARES,FUSION,RS COMPONENTS LTD,5100281227,9.76
UNITED KINGDOM ATOMIC ENERGY AUTHORITY,UNITED KINGDOM ATOMIC ENERGY AUTHORITY,29/10/2012,PERSONAL PROTECTIVE EQUIPMENT,FUSION,BUCK & HICKMAN LTD,5100281238,188.2
UNITED KINGDOM ATOMIC ENERGY AUTHORITY,UNITED KINGDOM ATOMIC ENERGY AUTHORITY,29/10/2012,PERSONAL PROTECTIVE EQUIPMENT,FUSION,BUCK & HICKMAN LTD,5100281239,33.33
UNITED KINGDOM ATOMIC ENERGY AUTHORITY,UNITED KINGDOM ATOMIC ENERGY AUTHORITY,29/10/2012,MATERIALS & SPARES,FUSION,RS COMPONENTS LTD,5100281269,265.61
UNITED KINGDOM ATOMIC ENERGY AUTHORITY,UNITED KINGDOM ATOMIC ENERGY AUTHORITY,31/10/2012,REPAIRS & MAINTENANCE,FUSION,HITEK LTD,5100281289,252
UNITED KINGDOM ATOMIC ENERGY AUTHORITY,UNITED KINGDOM ATOMIC ENERGY AUTHORITY,31/10/2012,REPAIRS & MAINTENANCE,FUSION,HITEK LTD,5100281290,42
UNITED KINGDOM ATOMIC ENERGY AUTHORITY,UNITED KINGDOM ATOMIC ENERGY AUTHORITY,31/10/2012,REPAIRS & MAINTENANCE,FUSION,HITEK LTD,5100281292,703.5
UNITED KINGDOM ATOMIC ENERGY AUTHORITY,UNITED KINGDOM ATOMIC ENERGY AUTHORITY,05/11/2012,MATERIALS & SPARES,FUSION,RS COMPONENTS LTD,5100281308,24.28
UNITED KINGDOM ATOMIC ENERGY AUTHORITY,UNITED KINGDOM ATOMIC ENERGY AUTHORITY,29/10/2012,MATERIALS & SPARES,FUSION,RS COMPONENTS LTD,5100281309,-265.61
UNITED KINGDOM ATOMIC ENERGY AUTHORITY,UNITED KINGDOM ATOMIC ENERGY AUTHORITY,29/10/2012,MATERIALS & SPARES,FUSION,RS COMPONENTS LTD,5100281310,265.61
UNITED KINGDOM ATOMIC ENERGY AUTHORITY,UNITED KINGDOM ATOMIC ENERGY AUTHORITY,05/11/2012,PLANT & EQUIPMENT,FUSION,QUARTZELEC LTD,5100281323,100
UNITED KINGDOM ATOMIC ENERGY AUTHORITY,UNITED KINGDOM ATOMIC ENERGY AUTHORITY,05/11/2012,REPAIRS & MAINTENANCE,FUSION,HITEK LTD,5100281336,91
UNITED KINGDOM ATOMIC ENERGY AUTHORITY,UNITED KINGDOM ATOMIC ENERGY AUTHORITY,05/11/2012,MATERIALS & SPARES,FUSION,RS COMPONENTS LTD,5100281349,377.17
UNITED KINGDOM ATOMIC ENERGY AUTHORITY,UNITED KINGDOM ATOMIC ENERGY AUTHORITY,05/11/2012,PLANT SPARES,FUSION,CONDEC INDUSTRIAL MAINTENANCE,5100281359,880
UNITED KINGDOM ATOMIC ENERGY AUTHORITY,UNITED KINGDOM ATOMIC ENERGY AUTHORITY,05/11/2012,MATERIALS & SPARES,FUSION,RS COMPONENTS LTD,5100281374,125.52
UNITED KINGDOM ATOMIC ENERGY AUTHORITY,UNITED KINGDOM ATOMIC ENERGY AUTHORITY,05/11/2012,MATERIALS & SPARES,FUSION,RS COMPONENTS LTD,5100281383,3.67
UNITED KINGDOM ATOMIC ENERGY AUTHORITY,UNITED KINGDOM ATOMIC ENERGY AUTHORITY,05/11/2012,MATERIALS & SPARES,FUSION,RS COMPONENTS LTD,5100281387,313.18
UNITED KINGDOM ATOMIC ENERGY AUTHORITY,UNITED KINGDOM ATOMIC ENERGY AUTHORITY,05/11/2012,PROFESSIONAL SERVICES,FUSION,FORTRESS INTERLOCKS LTD,5100281470,1417.26
UNITED KINGDOM ATOMIC ENERGY AUTHORITY,UNITED KINGDOM ATOMIC ENERGY AUTHORITY,05/11/2012,BUILDING REPAIRS,FUSION,KNOWLES & SONS (OXFORD) LTD,5100281488,118.96
UNITED KINGDOM ATOMIC ENERGY AUTHORITY,UNITED KINGDOM ATOMIC ENERGY AUTHORITY,07/11/2012,MATERIALS & SPARES,FUSION,FARNELL ELECTRONIC,5100281519,151.3
UNITED KINGDOM ATOMIC ENERGY AUTHORITY,UNITED KINGDOM ATOMIC ENERGY AUTHORITY,05/11/2012,MATERIALS & SPARES,FUSION,FARNELL ELECTRONIC,5100281520,149.68
UNITED KINGDOM ATOMIC ENERGY AUTHORITY,UNITED KINGDOM ATOMIC ENERGY AUTHORITY,05/11/2012,MATERIALS & SPARES,FUSION,FARNELL ELECTRONIC,5100281522,347.73
UNITED KINGDOM ATOMIC ENERGY AUTHORITY,UNITED KINGDOM ATOMIC ENERGY AUTHORITY,07/11/2012,GLASDON MANUFACTURING LTD,FUSION,PLANT & EQUIPMENT,5100281530,48537
UNITED KINGDOM ATOMIC ENERGY AUTHORITY,UNITED KINGDOM ATOMIC ENERGY AUTHORITY,12/11/2012,MATERIALS & SPARES,FUSION,WOLSELEY UK LIMITED,5100281597,245.7
UNITED KINGDOM ATOMIC ENERGY AUTHORITY,UNITED KINGDOM ATOMIC ENERGY AUTHORITY,12/11/2012,MATERIALS & SPARES,FUSION,RS COMPONENTS LTD,5100281630,14.44
UNITED KINGDOM ATOMIC ENERGY AUTHORITY,UNITED KINGDOM ATOMIC ENERGY AUTHORITY,12/11/2012,MATERIALS & SPARES,FUSION,RS COMPONENTS LTD,5100281645,18.78
UNITED KINGDOM ATOMIC ENERGY AUTHORITY,UNITED KINGDOM ATOMIC ENERGY AUTHORITY,12/11/2012,PLANT & EQUIPMENT,FUSION,EDMUNDSON ELECTRICALS LTD,5100281688,416.82
UNITED KINGDOM ATOMIC ENERGY AUTHORITY,UNITED KINGDOM ATOMIC ENERGY AUTHORITY,12/11/2012,MATERIALS & SPARES,FUSION,GARNER OSBORNE CIRCUITS LTD,5100281768,231.5
UNITED KINGDOM ATOMIC ENERGY AUTHORITY,UNITED KINGDOM ATOMIC ENERGY AUTHORITY,12/11/2012,PLANT & EQUIPMENT,FUSION,HES SALES UK LTD,5100281770,700
UNITED KINGDOM ATOMIC ENERGY AUTHORITY,UNITED KINGDOM ATOMIC ENERGY AUTHORITY,12/11/2012,MATERIALS & SPARES,FUSION,RS COMPONENTS LTD,5100281805,59.79
UNITED KINGDOM ATOMIC ENERGY AUTHORITY,UNITED KINGDOM ATOMIC ENERGY AUTHORITY,12/11/2012,MATERIALS & SPARES,FUSION,RS COMPONENTS LTD,5100281813,34.22
UNITED KINGDOM ATOMIC ENERGY AUTHORITY,UNITED KINGDOM ATOMIC ENERGY AUTHORITY,12/11/2012,MATERIALS & SPARES,FUSION,RS COMPONENTS LTD,5100281820,65.19
UNITED KINGDOM ATOMIC ENERGY AUTHORITY,UNITED KINGDOM ATOMIC ENERGY AUTHORITY,12/11/2012,MATERIALS & SPARES,FUSION,FARNELL ELECTRONIC,5100281828,178.81
UNITED KINGDOM ATOMIC ENERGY AUTHORITY,UNITED KINGDOM ATOMIC ENERGY AUTHORITY,12/11/2012,MATERIALS & SPARES,FUSION,FARNELL ELECTRONIC,5100281885,250.54
UNITED KINGDOM ATOMIC ENERGY AUTHORITY,UNITED KINGDOM ATOMIC ENERGY AUTHORITY,14/11/2012,MATERIALS & SPARES,FUSION,FARNELL ELECTRONIC,5100281908,10.2
UNITED KINGDOM ATOMIC ENERGY AUTHORITY,UNITED KINGDOM ATOMIC ENERGY AUTHORITY,12/11/2012,MATERIALS & SPARES,FUSION,FARNELL ELECTRONIC,5100281911,118.43
UNITED KINGDOM ATOMIC ENERGY AUTHORITY,UNITED KINGDOM ATOMIC ENERGY AUTHORITY,12/11/2012,MATERIALS & SPARES,FUSION,RS COMPONENTS LTD,5100281924,3.74
UNITED KINGDOM ATOMIC ENERGY AUTHORITY,UNITED KINGDOM ATOMIC ENERGY AUTHORITY,12/11/2012,MATERIALS & SPARES,FUSION,RS COMPONENTS LTD,5100281927,11.29
UNITED KINGDOM ATOMIC ENERGY AUTHORITY,UNITED KINGDOM ATOMIC ENERGY AUTHORITY,12/11/2012,LABCENTRE ELECTRONICS LIMITED,FUSION,COMPUTER REPAIRS,5100281949,590
UNITED KINGDOM ATOMIC ENERGY AUTHORITY,UNITED KINGDOM ATOMIC ENERGY AUTHORITY,12/11/2012,MATERIALS & SPARES,FUSION,RS COMPONENTS LTD,5100281951,121.49
UNITED KINGDOM ATOMIC ENERGY AUTHORITY,UNITED KINGDOM ATOMIC ENERGY AUTHORITY,12/11/2012,MATERIALS & SPARES,FUSION,RS COMPONENTS LTD,5100281953,221.37
UNITED KINGDOM ATOMIC ENERGY AUTHORITY,UNITED KINGDOM ATOMIC ENERGY AUTHORITY,14/11/2012,PLANT & EQUIPMENT,FUSION,EDMUNDSON ELECTRICALS LTD,5100282031,273.28
UNITED KINGDOM ATOMIC ENERGY AUTHORITY,UNITED KINGDOM ATOMIC ENERGY AUTHORITY,19/11/2012,MATERIALS & SPARES,FUSION,WOLSELEY UK LIMITED,5100282039,502.51
UNITED KINGDOM ATOMIC ENERGY AUTHORITY,UNITED KINGDOM ATOMIC ENERGY AUTHORITY,19/11/2012,REPAIRS & MAINTENANCE,FUSION,HITEK LTD,5100282072,31.5
UNITED KINGDOM ATOMIC ENERGY AUTHORITY,UNITED KINGDOM ATOMIC ENERGY AUTHORITY,19/11/2012,MATERIALS & SPARES,FUSION,WOODSTOCK INDUSTRIAL SUPPLIES LTD,5100282079,222.74
UNITED KINGDOM ATOMIC ENERGY AUTHORITY,UNITED KINGDOM ATOMIC ENERGY AUTHORITY,19/11/2012,REPAIRS & MAINTENANCE,FUSION,HITEK LTD,5100282081,120
UNITED KINGDOM ATOMIC ENERGY AUTHORITY,UNITED KINGDOM ATOMIC ENERGY AUTHORITY,19/11/2012,MATERIALS & SPARES,FUSION,RS COMPONENTS LTD,5100282095,13.66
UNITED KINGDOM ATOMIC ENERGY AUTHORITY,UNITED KINGDOM ATOMIC ENERGY AUTHORITY,19/11/2012,MATERIALS & SPARES,FUSION,RS COMPONENTS LTD,5100282099,57.51
UNITED KINGDOM ATOMIC ENERGY AUTHORITY,UNITED KINGDOM ATOMIC ENERGY AUTHORITY,21/11/2012,PLANT & EQUIPMENT,FUSION,EDMUNDSON ELECTRICALS LTD,5100282171,121.67
UNITED KINGDOM ATOMIC ENERGY AUTHORITY,UNITED KINGDOM ATOMIC ENERGY AUTHORITY,21/11/2012,PROFESSIONAL SERVICES,FUSION,FORTRESS INTERLOCKS LTD,5100282182,432.25
UNITED KINGDOM ATOMIC ENERGY AUTHORITY,UNITED KINGDOM ATOMIC ENERGY AUTHORITY,19/11/2012,REPAIRS & MAINTENANCE,FUSION,HITEK LTD,5100282188,5541
UNITED KINGDOM ATOMIC ENERGY AUTHORITY,UNITED KINGDOM ATOMIC ENERGY AUTHORITY,19/11/2012,MATERIALS & SPARES,FUSION,FARNELL ELECTRONIC,5100282209,432.11
UNITED KINGDOM ATOMIC ENERGY AUTHORITY,UNITED KINGDOM ATOMIC ENERGY AUTHORITY,15/11/2012,CONSUMABLES,FUSION,PURCHASE CARDS,100669629,488.63
UNITED KINGDOM ATOMIC ENERGY AUTHORITY,UNITED KINGDOM ATOMIC ENERGY AUTHORITY,15/11/2012,IT EQUIPMENT: NON CAPITAL,FUSION,PURCHASE CARDS,100669629,547.20
UNITED KINGDOM ATOMIC ENERGY AUTHORITY,UNITED KINGDOM ATOMIC ENERGY AUTHORITY,15/11/2012,PLANT & EQUIPMENT,FUSION,PURCHASE CARDS,100669636,723.60
UNITED KINGDOM ATOMIC ENERGY AUTHORITY,UNITED KINGDOM ATOMIC ENERGY AUTHORITY,05/11/2012,PLANT & EQUIPMENT,FUSION,PFEIFFER VACUUM UK,5100280901,9892.9
UNITED KINGDOM ATOMIC ENERGY AUTHORITY,UNITED KINGDOM ATOMIC ENERGY AUTHORITY,05/11/2012,PROFESSIONAL SERVICES,FUSION,SWAGELOK LONDON,5100280962,782.88
UNITED KINGDOM ATOMIC ENERGY AUTHORITY,UNITED KINGDOM ATOMIC ENERGY AUTHORITY,29/10/2012,PLANT & EQUIPMENT,FUSION,PFEIFFER VACUUM UK,5100281048,1761.07
UNITED KINGDOM ATOMIC ENERGY AUTHORITY,UNITED KINGDOM ATOMIC ENERGY AUTHORITY,31/10/2012,MATERIALS & SPARES,FUSION,THORLABS LTD,5100281074,1422.92
UNITED KINGDOM ATOMIC ENERGY AUTHORITY,UNITED KINGDOM ATOMIC ENERGY AUTHORITY,29/10/2012,PLANT & EQUIPMENT,FUSION,CANBERRA UK LIMITED,5100281102,5772
UNITED KINGDOM ATOMIC ENERGY AUTHORITY,UNITED KINGDOM ATOMIC ENERGY AUTHORITY,29/10/2012,PLANT SPARES,FUSION,MORIS PHOTOGRAPHIC,5100281103,513.15
UNITED KINGDOM ATOMIC ENERGY AUTHORITY,UNITED KINGDOM ATOMIC ENERGY AUTHORITY,31/10/2012,MATERIALS & SPARES,FUSION,EDMUND OPTICS LTD,5100281112,415.8
UNITED KINGDOM ATOMIC ENERGY AUTHORITY,UNITED KINGDOM ATOMIC ENERGY AUTHORITY,29/10/2012,MATERIALS & SPARES,FUSION,NEWBURY ELECTRONICS,5100281136,43.08
UNITED KINGDOM ATOMIC ENERGY AUTHORITY,UNITED KINGDOM ATOMIC ENERGY AUTHORITY,29/10/2012,PLANT & EQUIPMENT,FUSION,LEMO UK LTD,5100281167,109.28
UNITED KINGDOM ATOMIC ENERGY AUTHORITY,UNITED KINGDOM ATOMIC ENERGY AUTHORITY,29/10/2012,MATERIALS & SPARES,FUSION,HIDEN ANALYTICAL LTD,5100281169,300
UNITED KINGDOM ATOMIC ENERGY AUTHORITY,UNITED KINGDOM ATOMIC ENERGY AUTHORITY,21/11/2012,MATERIALS & SPARES,FUSION,FARNELL ELECTRONIC,5100281180,391.87
UNITED KINGDOM ATOMIC ENERGY AUTHORITY,UNITED KINGDOM ATOMIC ENERGY AUTHORITY,31/10/2012,MATERIALS & SPARES,FUSION,FARNELL ELECTRONIC,5100281193,5.98
UNITED KINGDOM ATOMIC ENERGY AUTHORITY,UNITED KINGDOM ATOMIC ENERGY AUTHORITY,29/10/2012,MATERIALS & SPARES,FUSION,FARNELL ELECTRONIC,5100281196,69.82
UNITED KINGDOM ATOMIC ENERGY AUTHORITY,UNITED KINGDOM ATOMIC ENERGY AUTHORITY,29/10/2012,PLANT & EQUIPMENT,FUSION,LENZE LTD,5100281213,3119.98
UNITED KINGDOM ATOMIC ENERGY AUTHORITY,UNITED KINGDOM ATOMIC ENERGY AUTHORITY,05/11/2012,PLANT SPARES,FUSION,BRITE PRECISION,5100281263,16750
UNITED KINGDOM ATOMIC ENERGY AUTHORITY,UNITED KINGDOM ATOMIC ENERGY AUTHORITY,29/10/2012,MATERIALS & SPARES,FUSION,THOMAS KEATING LTD,5100281265,550
UNITED KINGDOM ATOMIC ENERGY AUTHORITY,UNITED KINGDOM ATOMIC ENERGY AUTHORITY,29/10/2012,MATERIALS & SPARES,FUSION,EDMUND OPTICS LTD,5100281295,89.4
UNITED KINGDOM ATOMIC ENERGY AUTHORITY,UNITED KINGDOM ATOMIC ENERGY AUTHORITY,29/10/2012,MATERIALS & SPARES,FUSION,EDMUND OPTICS LTD,5100281297,123.4
UNITED KINGDOM ATOMIC ENERGY AUTHORITY,UNITED KINGDOM ATOMIC ENERGY AUTHORITY,05/11/2012,MATERIALS & SPARES,FUSION,RS COMPONENTS LTD,5100281315,91
UNITED KINGDOM ATOMIC ENERGY AUTHORITY,UNITED KINGDOM ATOMIC ENERGY AUTHORITY,07/11/2012,PLANT & EQUIPMENT,FUSION,PRINCETON INSTRUMENTS LTD,5100281343,2480
UNITED KINGDOM ATOMIC ENERGY AUTHORITY,UNITED KINGDOM ATOMIC ENERGY AUTHORITY,05/11/2012,CONSUMABLES,FUSION,AGATE PRODUCTS LTD,5100281365,12338
UNITED KINGDOM ATOMIC ENERGY AUTHORITY,UNITED KINGDOM ATOMIC ENERGY AUTHORITY,05/11/2012,MATERIALS & SPARES,FUSION,FARNELL ELECTRONIC,5100281449,20.19
UNITED KINGDOM ATOMIC ENERGY AUTHORITY,UNITED KINGDOM ATOMIC ENERGY AUTHORITY,05/11/2012,PLANT & EQUIPMENT,FUSION,OMEGA ENGINEERING LTD,5100281458,44.51
UNITED KINGDOM ATOMIC ENERGY AUTHORITY,UNITED KINGDOM ATOMIC ENERGY AUTHORITY,05/11/2012,MATERIALS & SPARES,FUSION,FARNELL ELECTRONIC,5100281515,75.76
UNITED KINGDOM ATOMIC ENERGY AUTHORITY,UNITED KINGDOM ATOMIC ENERGY AUTHORITY,05/11/2012,MATERIALS & SPARES,FUSION,FARNELL ELECTRONIC,5100281524,351
UNITED KINGDOM ATOMIC ENERGY AUTHORITY,UNITED KINGDOM ATOMIC ENERGY AUTHORITY,05/11/2012,MATERIALS & SPARES,FUSION,FARNELL ELECTRONIC,5100281525,23.83
UNITED KINGDOM ATOMIC ENERGY AUTHORITY,UNITED KINGDOM ATOMIC ENERGY AUTHORITY,07/11/2012,MATERIALS & SPARES,FUSION,NEWBURY ELECTRONICS,5100281538,154
UNITED KINGDOM ATOMIC ENERGY AUTHORITY,UNITED KINGDOM ATOMIC ENERGY AUTHORITY,07/11/2012,MATERIALS & SPARES,FUSION,NEWBURY ELECTRONICS,5100281539,126.6
UNITED KINGDOM ATOMIC ENERGY AUTHORITY,UNITED KINGDOM ATOMIC ENERGY AUTHORITY,05/11/2012,PLANT & EQUIPMENT,FUSION,PFEIFFER VACUUM UK,5100281584,7105.9
UNITED KINGDOM ATOMIC ENERGY AUTHORITY,UNITED KINGDOM ATOMIC ENERGY AUTHORITY,12/11/2012,MATERIALS & SPARES,FUSION,RS COMPONENTS LTD,5100281635,229.11
UNITED KINGDOM ATOMIC ENERGY AUTHORITY,UNITED KINGDOM ATOMIC ENERGY AUTHORITY,12/11/2012,MATERIALS & SPARES,FUSION,RS COMPONENTS LTD,5100281644,2.75
UNITED KINGDOM ATOMIC ENERGY AUTHORITY,UNITED KINGDOM ATOMIC ENERGY AUTHORITY,19/11/2012,ADVERTISING STAFF,FUSION,TMP (UK) LTD,5100281694,770
UNITED KINGDOM ATOMIC ENERGY AUTHORITY,UNITED KINGDOM ATOMIC ENERGY AUTHORITY,12/11/2012,GASES,FUSION,BOC LTD,5100281729,167.48
UNITED KINGDOM ATOMIC ENERGY AUTHORITY,UNITED KINGDOM ATOMIC ENERGY AUTHORITY,12/11/2012,MATERIALS & SPARES,FUSION,NEWBURY ELECTRONICS,5100281755,780
UNITED KINGDOM ATOMIC ENERGY AUTHORITY,UNITED KINGDOM ATOMIC ENERGY AUTHORITY,12/11/2012,PLANT & EQUIPMENT,FUSION,LEMO UK LTD,5100281782,72.85
UNITED KINGDOM ATOMIC ENERGY AUTHORITY,UNITED KINGDOM ATOMIC ENERGY AUTHORITY,12/11/2012,MATERIALS & SPARES,FUSION,RS COMPONENTS LTD,5100281803,330.75
UNITED KINGDOM ATOMIC ENERGY AUTHORITY,UNITED KINGDOM ATOMIC ENERGY AUTHORITY,12/11/2012,MATERIALS & SPARES,FUSION,RS COMPONENTS LTD,5100281807,28.38
UNITED KINGDOM ATOMIC ENERGY AUTHORITY,UNITED KINGDOM ATOMIC ENERGY AUTHORITY,14/11/2012,MATERIALS & SPARES,FUSION,RS COMPONENTS LTD,5100281811,27.3
UNITED KINGDOM ATOMIC ENERGY AUTHORITY,UNITED KINGDOM ATOMIC ENERGY AUTHORITY,12/11/2012,MATERIALS & SPARES,FUSION,RS COMPONENTS LTD,5100281816,140.42
UNITED KINGDOM ATOMIC ENERGY AUTHORITY,UNITED KINGDOM ATOMIC ENERGY AUTHORITY,12/11/2012,MATERIALS & SPARES,FUSION,FARNELL ELECTRONIC,5100281825,145.92
UNITED KINGDOM ATOMIC ENERGY AUTHORITY,UNITED KINGDOM ATOMIC ENERGY AUTHORITY,21/11/2012,MATERIALS & SPARES,FUSION,FARNELL ELECTRONIC,5100281886,36.48
UNITED KINGDOM ATOMIC ENERGY AUTHORITY,UNITED KINGDOM ATOMIC ENERGY AUTHORITY,12/11/2012,MATERIALS & SPARES,FUSION,FARNELL ELECTRONIC,5100281900,16.42
UNITED KINGDOM ATOMIC ENERGY AUTHORITY,UNITED KINGDOM ATOMIC ENERGY AUTHORITY,12/11/2012,MATERIALS & SPARES,FUSION,FARNELL ELECTRONIC,5100281904,61.27
UNITED KINGDOM ATOMIC ENERGY AUTHORITY,UNITED KINGDOM ATOMIC ENERGY AUTHORITY,12/11/2012,MATERIALS & SPARES,FUSION,RS COMPONENTS LTD,5100281917,16.58
UNITED KINGDOM ATOMIC ENERGY AUTHORITY,UNITED KINGDOM ATOMIC ENERGY AUTHORITY,12/11/2012,MATERIALS & SPARES,FUSION,RS COMPONENTS LTD,5100281937,18.2
UNITED KINGDOM ATOMIC ENERGY AUTHORITY,UNITED KINGDOM ATOMIC ENERGY AUTHORITY,12/11/2012,PLANT & EQUIPMENT,FUSION,RENISHAW PLC,5100281945,900
UNITED KINGDOM ATOMIC ENERGY AUTHORITY,UNITED KINGDOM ATOMIC ENERGY AUTHORITY,12/11/2012,MATERIALS & SPARES,FUSION,RS COMPONENTS LTD,5100281984,42.39
UNITED KINGDOM ATOMIC ENERGY AUTHORITY,UNITED KINGDOM ATOMIC ENERGY AUTHORITY,12/11/2012,MATERIALS & SPARES,FUSION,RS COMPONENTS LTD,5100281985,12.9
UNITED KINGDOM ATOMIC ENERGY AUTHORITY,UNITED KINGDOM ATOMIC ENERGY AUTHORITY,12/11/2012,MATERIALS & SPARES,FUSION,RS COMPONENTS LTD,5100281990,28.1
UNITED KINGDOM ATOMIC ENERGY AUTHORITY,UNITED KINGDOM ATOMIC ENERGY AUTHORITY,19/11/2012,PROFESSIONAL SERVICES,FUSION,SWAGELOK LONDON,5100282037,107.61
UNITED KINGDOM ATOMIC ENERGY AUTHORITY,UNITED KINGDOM ATOMIC ENERGY AUTHORITY,19/11/2012,PLANT & EQUIPMENT,FUSION,PFEIFFER VACUUM UK,5100282126,2456
UNITED KINGDOM ATOMIC ENERGY AUTHORITY,UNITED KINGDOM ATOMIC ENERGY AUTHORITY,19/11/2012,MATERIALS & SPARES,FUSION,RS COMPONENTS LTD,5100282132,46.98
UNITED KINGDOM ATOMIC ENERGY AUTHORITY,UNITED KINGDOM ATOMIC ENERGY AUTHORITY,19/11/2012,MATERIALS & SPARES,FUSION,STEMMER IMAGING LTD,5100282141,745.45
UNITED KINGDOM ATOMIC ENERGY AUTHORITY,UNITED KINGDOM ATOMIC ENERGY AUTHORITY,21/11/2012,MATERIALS & SPARES,FUSION,SCHROFF UK LTD,5100282155,376.23
UNITED KINGDOM ATOMIC ENERGY AUTHORITY,UNITED KINGDOM ATOMIC ENERGY AUTHORITY,19/11/2012,TRAINING COSTS,FUSION,UNIVERSITY OF THE WEST OF ENGLAND,5100282165,1734
UNITED KINGDOM ATOMIC ENERGY AUTHORITY,UNITED KINGDOM ATOMIC ENERGY AUTHORITY,19/11/2012,MATERIALS & SPARES,FUSION,FARNELL ELECTRONIC,5100282210,77.03
UNITED KINGDOM ATOMIC ENERGY AUTHORITY,UNITED KINGDOM ATOMIC ENERGY AUTHORITY,19/11/2012,MATERIALS & SPARES,FUSION,FARNELL ELECTRONIC,5100282212,37.4
UNITED KINGDOM ATOMIC ENERGY AUTHORITY,UNITED KINGDOM ATOMIC ENERGY AUTHORITY,22/11/2012,OTHER EXTERNAL COSTS,FUSION,Fibre Terminations,1900057566,709.20
UNITED KINGDOM ATOMIC ENERGY AUTHORITY,UNITED KINGDOM ATOMIC ENERGY AUTHORITY,08/11/2012,SUBSISTENCE,FUSION,EMPLOYEE EXPENSES,100665471,692.52
UNITED KINGDOM ATOMIC ENERGY AUTHORITY,UNITED KINGDOM ATOMIC ENERGY AUTHORITY,08/11/2012,SUBSISTENCE,FUSION,EMPLOYEE EXPENSES,100665471,8.08
UNITED KINGDOM ATOMIC ENERGY AUTHORITY,UNITED KINGDOM ATOMIC ENERGY AUTHORITY,08/11/2012,RAIL TRAVEL,FUSION,EMPLOYEE EXPENSES,100665471,30.50
UNITED KINGDOM ATOMIC ENERGY AUTHORITY,UNITED KINGDOM ATOMIC ENERGY AUTHORITY,08/11/2012,OTHER EMPLOYEE EXPENSES,FUSION,EMPLOYEE EXPENSES,100665471,3.95
UNITED KINGDOM ATOMIC ENERGY AUTHORITY,UNITED KINGDOM ATOMIC ENERGY AUTHORITY,10/11/2012,MILEAGE ALLOWANCE,FUSION,EMPLOYEE EXPENSES,100665497,48.40
UNITED KINGDOM ATOMIC ENERGY AUTHORITY,UNITED KINGDOM ATOMIC ENERGY AUTHORITY,10/11/2012,MILEAGE ALLOWANCE,FUSION,EMPLOYEE EXPENSES,100665498,48.40
UNITED KINGDOM ATOMIC ENERGY AUTHORITY,UNITED KINGDOM ATOMIC ENERGY AUTHORITY,15/11/2012,TAXIS,FUSION,EMPLOYEE EXPENSES,100669614,8.00
UNITED KINGDOM ATOMIC ENERGY AUTHORITY,UNITED KINGDOM ATOMIC ENERGY AUTHORITY,15/11/2012,RAIL TRAVEL,FUSION,EMPLOYEE EXPENSES,100669614,31.50
UNITED KINGDOM ATOMIC ENERGY AUTHORITY,UNITED KINGDOM ATOMIC ENERGY AUTHORITY,22/11/2012,MILEAGE ALLOWANCE,FUSION,EMPLOYEE EXPENSES,100669764,48.40
UNITED KINGDOM ATOMIC ENERGY AUTHORITY,UNITED KINGDOM ATOMIC ENERGY AUTHORITY,15/11/2012,PLANT & EQUIPMENT,FUSION,PURCHASE CARDS,100669625,202.33
UNITED KINGDOM ATOMIC ENERGY AUTHORITY,UNITED KINGDOM ATOMIC ENERGY AUTHORITY,15/11/2012,PLANT & EQUIPMENT,FUSION,PURCHASE CARDS,100669625,750.00
UNITED KINGDOM ATOMIC ENERGY AUTHORITY,UNITED KINGDOM ATOMIC ENERGY AUTHORITY,15/11/2012,PLANT & EQUIPMENT,FUSION,PURCHASE CARDS,100669634,414.08
UNITED KINGDOM ATOMIC ENERGY AUTHORITY,UNITED KINGDOM ATOMIC ENERGY AUTHORITY,15/11/2012,POSTAGE & DISTRIBUTION,FUSION,PURCHASE CARDS,100669638,89.75
UNITED KINGDOM ATOMIC ENERGY AUTHORITY,UNITED KINGDOM ATOMIC ENERGY AUTHORITY,15/11/2012,OTHER EXTERNAL COSTS,FUSION,PURCHASE CARDS,100669630,9.00
UNITED KINGDOM ATOMIC ENERGY AUTHORITY,UNITED KINGDOM ATOMIC ENERGY AUTHORITY,15/11/2012,OTHER EXTERNAL COSTS,FUSION,PURCHASE CARDS,100669631,57.80
UNITED KINGDOM ATOMIC ENERGY AUTHORITY,UNITED KINGDOM ATOMIC ENERGY AUTHORITY,15/11/2012,OTHER EXTERNAL COSTS,FUSION,PURCHASE CARDS,100669647,300.00
UNITED KINGDOM ATOMIC ENERGY AUTHORITY,UNITED KINGDOM ATOMIC ENERGY AUTHORITY,05/11/2012,SOFTWARE,FUSION,ITT VISUAL INFORMATION SOLUTIONS,5100281469,19469
UNITED KINGDOM ATOMIC ENERGY AUTHORITY,UNITED KINGDOM ATOMIC ENERGY AUTHORITY,12/11/2012,FACILITIES MANAGEMENT,FUSION,ISS FACILITIES SERVICES,5100281714,156.35
UNITED KINGDOM ATOMIC ENERGY AUTHORITY,UNITED KINGDOM ATOMIC ENERGY AUTHORITY,21/11/2012,IT EQUIPMENT NON CAPITAL,FUSION,VIGLEN LIMITED,5100282071,87786.58
UNITED KINGDOM ATOMIC ENERGY AUTHORITY,UNITED KINGDOM ATOMIC ENERGY AUTHORITY,19/11/2012,IT EQUIPMENT NON CAPITAL,FUSION,PRODEC NETWORKS LTD,5100282187,2450
UNITED KINGDOM ATOMIC ENERGY AUTHORITY,UNITED KINGDOM ATOMIC ENERGY AUTHORITY,19/11/2012,SOFTWARE,FUSION,Q ASSOCIATES LTD,5100282223,1189.88
UNITED KINGDOM ATOMIC ENERGY AUTHORITY,UNITED KINGDOM ATOMIC ENERGY AUTHORITY,15/11/2012,IT EQUIPMENT: NON CAPITAL,FUSION,PURCHASE CARDS,100669637,57.00
UNITED KINGDOM ATOMIC ENERGY AUTHORITY,UNITED KINGDOM ATOMIC ENERGY AUTHORITY,15/11/2012,IT EQUIPMENT: NON CAPITAL,FUSION,PURCHASE CARDS,100669637,50.00
UNITED KINGDOM ATOMIC ENERGY AUTHORITY,UNITED KINGDOM ATOMIC ENERGY AUTHORITY,29/10/2012,MATERIALS & SPARES,FUSION,CPC PLC,5100281057,122.32
UNITED KINGDOM ATOMIC ENERGY AUTHORITY,UNITED KINGDOM ATOMIC ENERGY AUTHORITY,29/10/2012,PLANT SPARES,FUSION,AURIGA EUROPE PLC,5100281083,730.6
UNITED KINGDOM ATOMIC ENERGY AUTHORITY,UNITED KINGDOM ATOMIC ENERGY AUTHORITY,29/10/2012,MATERIALS & SPARES,FUSION,FARNELL ELECTRONIC,5100281118,10.43
UNITED KINGDOM ATOMIC ENERGY AUTHORITY,UNITED KINGDOM ATOMIC ENERGY AUTHORITY,29/10/2012,MATERIALS & SPARES,FUSION,FARNELL ELECTRONIC,5100281119,214.89
UNITED KINGDOM ATOMIC ENERGY AUTHORITY,UNITED KINGDOM ATOMIC ENERGY AUTHORITY,29/10/2012,MATERIALS & SPARES,FUSION,FARNELL ELECTRONIC,5100281121,12.3
UNITED KINGDOM ATOMIC ENERGY AUTHORITY,UNITED KINGDOM ATOMIC ENERGY AUTHORITY,29/10/2012,IT EQUIPMENT NON CAPITAL,FUSION,MAAINTECH,5100281131,2418
UNITED KINGDOM ATOMIC ENERGY AUTHORITY,UNITED KINGDOM ATOMIC ENERGY AUTHORITY,29/10/2012,MATERIALS & SPARES,FUSION,FARNELL ELECTRONIC,5100281194,31.94
UNITED KINGDOM ATOMIC ENERGY AUTHORITY,UNITED KINGDOM ATOMIC ENERGY AUTHORITY,29/10/2012,MATERIALS & SPARES,FUSION,FARNELL ELECTRONIC,5100281195,32.73
UNITED KINGDOM ATOMIC ENERGY AUTHORITY,UNITED KINGDOM ATOMIC ENERGY AUTHORITY,05/11/2012,MATERIALS & SPARES,FUSION,FC LANE ELECTRONICS LTD,5100281326,320.8
UNITED KINGDOM ATOMIC ENERGY AUTHORITY,UNITED KINGDOM ATOMIC ENERGY AUTHORITY,31/10/2012,MATERIALS & SPARES,FUSION,CPC PLC,5100281360,183.48
UNITED KINGDOM ATOMIC ENERGY AUTHORITY,UNITED KINGDOM ATOMIC ENERGY AUTHORITY,05/11/2012,MATERIALS & SPARES,FUSION,SAE-TECH LTD,5100281362,3447.5
UNITED KINGDOM ATOMIC ENERGY AUTHORITY,UNITED KINGDOM ATOMIC ENERGY AUTHORITY,05/11/2012,MATERIALS & SPARES,FUSION,FARNELL ELECTRONIC,5100281445,116.15
UNITED KINGDOM ATOMIC ENERGY AUTHORITY,UNITED KINGDOM ATOMIC ENERGY AUTHORITY,12/11/2012,PROFESSIONAL SERVICES,FUSION,HYTEC ELECTRONICS LTD,5100281471,887.16
UNITED KINGDOM ATOMIC ENERGY AUTHORITY,UNITED KINGDOM ATOMIC ENERGY AUTHORITY,07/11/2012,PROFESSIONAL SERVICES,FUSION,HYTEC ELECTRONICS LTD,5100281472,916
UNITED KINGDOM ATOMIC ENERGY AUTHORITY,UNITED KINGDOM ATOMIC ENERGY AUTHORITY,12/11/2012,PROFESSIONAL SERVICES,FUSION,HYTEC ELECTRONICS LTD,5100281473,2838.51
UNITED KINGDOM ATOMIC ENERGY AUTHORITY,UNITED KINGDOM ATOMIC ENERGY AUTHORITY,05/11/2012,MATERIALS & SPARES,FUSION,FARNELL ELECTRONIC,5100281523,58.45
UNITED KINGDOM ATOMIC ENERGY AUTHORITY,UNITED KINGDOM ATOMIC ENERGY AUTHORITY,07/11/2012,IT EQUIPMENT NON CAPITAL,FUSION,MAAINTECH,5100281565,777
UNITED KINGDOM ATOMIC ENERGY AUTHORITY,UNITED KINGDOM ATOMIC ENERGY AUTHORITY,12/11/2012,BUILDING REPAIRS,FUSION,LORNE STEWART PLC,5100281870,392.09
UNITED KINGDOM ATOMIC ENERGY AUTHORITY,UNITED KINGDOM ATOMIC ENERGY AUTHORITY,12/11/2012,MATERIALS & SPARES,FUSION,RS COMPONENTS LTD,5100281921,41.56
UNITED KINGDOM ATOMIC ENERGY AUTHORITY,UNITED KINGDOM ATOMIC ENERGY AUTHORITY,12/11/2012,MATERIALS & SPARES,FUSION,RS COMPONENTS LTD,5100281952,11.62
UNITED KINGDOM ATOMIC ENERGY AUTHORITY,UNITED KINGDOM ATOMIC ENERGY AUTHORITY,12/11/2012,MATERIALS & SPARES,FUSION,RS COMPONENTS LTD,5100281989,12.13
UNITED KINGDOM ATOMIC ENERGY AUTHORITY,UNITED KINGDOM ATOMIC ENERGY AUTHORITY,19/11/2012,MATERIALS & SPARES,FUSION,RS COMPONENTS LTD,5100282147,114.49
UNITED KINGDOM ATOMIC ENERGY AUTHORITY,UNITED KINGDOM ATOMIC ENERGY AUTHORITY,19/11/2012,MATERIALS & SPARES,FUSION,FARNELL ELECTRONIC,5100282211,14
UNITED KINGDOM ATOMIC ENERGY AUTHORITY,UNITED KINGDOM ATOMIC ENERGY AUTHORITY,15/11/2012,IT EQUIPMENT: NON CAPITAL,FUSION,PURCHASE CARDS,100669637,19.90
UNITED KINGDOM ATOMIC ENERGY AUTHORITY,UNITED KINGDOM ATOMIC ENERGY AUTHORITY,15/11/2012,IT EQUIPMENT: NON CAPITAL,FUSION,PURCHASE CARDS,100669637,472.00
UNITED KINGDOM ATOMIC ENERGY AUTHORITY,UNITED KINGDOM ATOMIC ENERGY AUTHORITY,15/11/2012,IT EQUIPMENT: NON CAPITAL,FUSION,PURCHASE CARDS,100669637,20.58
UNITED KINGDOM ATOMIC ENERGY AUTHORITY,UNITED KINGDOM ATOMIC ENERGY AUTHORITY,15/11/2012,IT EQUIPMENT: NON CAPITAL,FUSION,PURCHASE CARDS,100669637,47.20
UNITED KINGDOM ATOMIC ENERGY AUTHORITY,UNITED KINGDOM ATOMIC ENERGY AUTHORITY,15/11/2012,IT EQUIPMENT: NON CAPITAL,FUSION,PURCHASE CARDS,100669637,26.99
UNITED KINGDOM ATOMIC ENERGY AUTHORITY,UNITED KINGDOM ATOMIC ENERGY AUTHORITY,15/11/2012,IT EQUIPMENT: NON CAPITAL,FUSION,PURCHASE CARDS,100669637,129.90
UNITED KINGDOM ATOMIC ENERGY AUTHORITY,UNITED KINGDOM ATOMIC ENERGY AUTHORITY,15/11/2012,IT EQUIPMENT: NON CAPITAL,FUSION,PURCHASE CARDS,100669637,94.40
UNITED KINGDOM ATOMIC ENERGY AUTHORITY,UNITED KINGDOM ATOMIC ENERGY AUTHORITY,15/11/2012,IT EQUIPMENT: NON CAPITAL,FUSION,PURCHASE CARDS,100669637,140.93
UNITED KINGDOM ATOMIC ENERGY AUTHORITY,UNITED KINGDOM ATOMIC ENERGY AUTHORITY,15/11/2012,IT EQUIPMENT: NON CAPITAL,FUSION,PURCHASE CARDS,100669637,140.93
UNITED KINGDOM ATOMIC ENERGY AUTHORITY,UNITED KINGDOM ATOMIC ENERGY AUTHORITY,15/11/2012,IT EQUIPMENT: NON CAPITAL,FUSION,PURCHASE CARDS,100669637,225.00
UNITED KINGDOM ATOMIC ENERGY AUTHORITY,UNITED KINGDOM ATOMIC ENERGY AUTHORITY,15/11/2012,PLANT & EQUIPMENT,FUSION,PURCHASE CARDS,100669637,92.06
UNITED KINGDOM ATOMIC ENERGY AUTHORITY,UNITED KINGDOM ATOMIC ENERGY AUTHORITY,15/11/2012,PLANT & EQUIPMENT,FUSION,PURCHASE CARDS,100669641,5.57
UNITED KINGDOM ATOMIC ENERGY AUTHORITY,UNITED KINGDOM ATOMIC ENERGY AUTHORITY,19/11/2012,MATERIALS & SPARES,FUSION,FARNELL ELECTRONIC,5100282206,208.8
UNITED KINGDOM ATOMIC ENERGY AUTHORITY,UNITED KINGDOM ATOMIC ENERGY AUTHORITY,29/10/2012,TRAINING COURSE FEES,FUSION,WILTSHIRE COLLEGE,5100281064,930
UNITED KINGDOM ATOMIC ENERGY AUTHORITY,UNITED KINGDOM ATOMIC ENERGY AUTHORITY,15/11/2012,SOFTWARE - NON-CAP,FUSION,PURCHASE CARDS,100669637,215.01
UNITED KINGDOM ATOMIC ENERGY AUTHORITY,UNITED KINGDOM ATOMIC ENERGY AUTHORITY,29/10/2012,MATERIALS & SPARES,FUSION,FARNELL ELECTRONIC,5100281117,86.2
UNITED KINGDOM ATOMIC ENERGY AUTHORITY,UNITED KINGDOM ATOMIC ENERGY AUTHORITY,29/10/2012,MATERIALS & SPARES,FUSION,FARNELL ELECTRONIC,5100281147,27.56
UNITED KINGDOM ATOMIC ENERGY AUTHORITY,UNITED KINGDOM ATOMIC ENERGY AUTHORITY,29/10/2012,CAR HIRE,FUSION,LEASEDRIVE VELO,5100281210,45.86
UNITED KINGDOM ATOMIC ENERGY AUTHORITY,UNITED KINGDOM ATOMIC ENERGY AUTHORITY,07/11/2012,PLANT SPARES,FUSION,AS SCIENTIFIC PRODUCTS LTD,5100281330,2415
UNITED KINGDOM ATOMIC ENERGY AUTHORITY,UNITED KINGDOM ATOMIC ENERGY AUTHORITY,05/11/2012,MATERIALS & SPARES,FUSION,RS COMPONENTS LTD,5100281363,67.08
UNITED KINGDOM ATOMIC ENERGY AUTHORITY,UNITED KINGDOM ATOMIC ENERGY AUTHORITY,05/11/2012,MATERIALS & SPARES,FUSION,FARNELL ELECTRONIC,5100281431,9.76
UNITED KINGDOM ATOMIC ENERGY AUTHORITY,UNITED KINGDOM ATOMIC ENERGY AUTHORITY,05/11/2012,CAR HIRE,FUSION,LEASEDRIVE VELO,5100281549,45.86
UNITED KINGDOM ATOMIC ENERGY AUTHORITY,UNITED KINGDOM ATOMIC ENERGY AUTHORITY,07/11/2012,CAR HIRE,FUSION,LEASEDRIVE VELO,5100281550,82.14
UNITED KINGDOM ATOMIC ENERGY AUTHORITY,UNITED KINGDOM ATOMIC ENERGY AUTHORITY,12/11/2012,MATERIALS & SPARES,FUSION,RS COMPONENTS LTD,5100281651,5.63
UNITED KINGDOM ATOMIC ENERGY AUTHORITY,UNITED KINGDOM ATOMIC ENERGY AUTHORITY,12/11/2012,CAR HIRE,FUSION,LEASEDRIVE VELO,5100281680,6.56
UNITED KINGDOM ATOMIC ENERGY AUTHORITY,UNITED KINGDOM ATOMIC ENERGY AUTHORITY,12/11/2012,BUILDING REPAIRS,FUSION,TILL & WHITEHEAD LTD,5100281704,69.57
UNITED KINGDOM ATOMIC ENERGY AUTHORITY,UNITED KINGDOM ATOMIC ENERGY AUTHORITY,12/11/2012,PLANT & EQUIPMENT,FUSION,EDWARDS LIMITED,5100281727,196.55
UNITED KINGDOM ATOMIC ENERGY AUTHORITY,UNITED KINGDOM ATOMIC ENERGY AUTHORITY,12/11/2012,GASES,FUSION,BOC LTD,5100281737,178.86
UNITED KINGDOM ATOMIC ENERGY AUTHORITY,UNITED KINGDOM ATOMIC ENERGY AUTHORITY,12/11/2012,BUILDING REPAIRS,FUSION,LORNE STEWART PLC,5100281878,441.53
UNITED KINGDOM ATOMIC ENERGY AUTHORITY,UNITED KINGDOM ATOMIC ENERGY AUTHORITY,12/11/2012,MATERIALS & SPARES,FUSION,FARNELL ELECTRONIC,5100281914,397.7
UNITED KINGDOM ATOMIC ENERGY AUTHORITY,UNITED KINGDOM ATOMIC ENERGY AUTHORITY,12/11/2012,MATERIALS & SPARES,FUSION,RS COMPONENTS LTD,5100281986,336.38
UNITED KINGDOM ATOMIC ENERGY AUTHORITY,UNITED KINGDOM ATOMIC ENERGY AUTHORITY,19/11/2012,MATERIALS & SPARES,FUSION,FARNELL ELECTRONIC,5100282192,14.3
UNITED KINGDOM ATOMIC ENERGY AUTHORITY,UNITED KINGDOM ATOMIC ENERGY AUTHORITY,15/11/2012,PLANT & EQUIPMENT,FUSION,PURCHASE CARDS,100669649,23.99
UNITED KINGDOM ATOMIC ENERGY AUTHORITY,UNITED KINGDOM ATOMIC ENERGY AUTHORITY,15/11/2012,PLANT & EQUIPMENT,FUSION,PURCHASE CARDS,100669649,59.38
UNITED KINGDOM ATOMIC ENERGY AUTHORITY,UNITED KINGDOM ATOMIC ENERGY AUTHORITY,29/10/2012,HEALTH PHYSICS,FUSION,NUVIA LIMITED,5100278939,11124
UNITED KINGDOM ATOMIC ENERGY AUTHORITY,UNITED KINGDOM ATOMIC ENERGY AUTHORITY,29/10/2012,PROFESSIONAL SERVICES,FUSION,SCIENTIFICS LTD,5100281060,1215
UNITED KINGDOM ATOMIC ENERGY AUTHORITY,UNITED KINGDOM ATOMIC ENERGY AUTHORITY,29/10/2012,PERSONAL PROTECTIVE EQUIPMENT,FUSION,ARCO LTD,5100281114,417.24
UNITED KINGDOM ATOMIC ENERGY AUTHORITY,UNITED KINGDOM ATOMIC ENERGY AUTHORITY,29/10/2012,MATERIALS: HAZARDOUS,FUSION,CHEMTECH WASTE MANAGEMENT,5100281237,2750
UNITED KINGDOM ATOMIC ENERGY AUTHORITY,UNITED KINGDOM ATOMIC ENERGY AUTHORITY,31/10/2012,PERSONAL PROTECTIVE EQUIPMENT,FUSION,ARCO LTD,5100281351,46.64
UNITED KINGDOM ATOMIC ENERGY AUTHORITY,UNITED KINGDOM ATOMIC ENERGY AUTHORITY,07/11/2012,PROFESSIONAL SERVICES,FUSION,TRADEBE,5100281367,2160
UNITED KINGDOM ATOMIC ENERGY AUTHORITY,UNITED KINGDOM ATOMIC ENERGY AUTHORITY,07/11/2012,PROFESSIONAL SERVICES,FUSION,TRADEBE,5100281368,24483.69
UNITED KINGDOM ATOMIC ENERGY AUTHORITY,UNITED KINGDOM ATOMIC ENERGY AUTHORITY,05/11/2012,PLANT SPARES,FUSION,AW GRACE & SON,5100281377,1614
UNITED KINGDOM ATOMIC ENERGY AUTHORITY,UNITED KINGDOM ATOMIC ENERGY AUTHORITY,05/11/2012,PERSONAL PROTECTIVE EQUIPMENT,FUSION,ARCO LTD,5100281480,53.6
UNITED KINGDOM ATOMIC ENERGY AUTHORITY,UNITED KINGDOM ATOMIC ENERGY AUTHORITY,05/11/2012,BUILDING REPAIRS,FUSION,KNOWLES & SONS (OXFORD) LTD,5100281494,660
UNITED KINGDOM ATOMIC ENERGY AUTHORITY,UNITED KINGDOM ATOMIC ENERGY AUTHORITY,05/11/2012,BUILDING REPAIRS,FUSION,KNOWLES & SONS (OXFORD) LTD,5100281496,719.95
UNITED KINGDOM ATOMIC ENERGY AUTHORITY,UNITED KINGDOM ATOMIC ENERGY AUTHORITY,07/11/2012,HEALTH PHYSICS,FUSION,NUVIA LIMITED,5100281534,19188.9
UNITED KINGDOM ATOMIC ENERGY AUTHORITY,UNITED KINGDOM ATOMIC ENERGY AUTHORITY,05/11/2012,MATERIALS & SPARES,FUSION,CROMWELL LTD,5100281582,51.18
UNITED KINGDOM ATOMIC ENERGY AUTHORITY,UNITED KINGDOM ATOMIC ENERGY AUTHORITY,14/11/2012,PROFESSIONAL SERVICES,FUSION,KITSONS ENVIRONMENTAL EUROPE LTD,5100281588,6506
UNITED KINGDOM ATOMIC ENERGY AUTHORITY,UNITED KINGDOM ATOMIC ENERGY AUTHORITY,19/11/2012,PROFESSIONAL SERVICES,FUSION,HILLS WASTE SOLUTIONS LTD,5100281590,1990
UNITED KINGDOM ATOMIC ENERGY AUTHORITY,UNITED KINGDOM ATOMIC ENERGY AUTHORITY,19/11/2012,PROFESSIONAL SERVICES,FUSION,HILLS WASTE SOLUTIONS LTD,5100281591,548.66
UNITED KINGDOM ATOMIC ENERGY AUTHORITY,UNITED KINGDOM ATOMIC ENERGY AUTHORITY,19/11/2012,PROFESSIONAL SERVICES,FUSION,HILLS WASTE SOLUTIONS LTD,5100281592,30
UNITED KINGDOM ATOMIC ENERGY AUTHORITY,UNITED KINGDOM ATOMIC ENERGY AUTHORITY,19/11/2012,PROFESSIONAL SERVICES,FUSION,HILLS WASTE SOLUTIONS LTD,5100281593,860
UNITED KINGDOM ATOMIC ENERGY AUTHORITY,UNITED KINGDOM ATOMIC ENERGY AUTHORITY,07/11/2012,PLANT & EQUIPMENT,FUSION,THAMES VALLEY SAW SERVICE LTD,5100281613,250.95
UNITED KINGDOM ATOMIC ENERGY AUTHORITY,UNITED KINGDOM ATOMIC ENERGY AUTHORITY,07/11/2012,PLANT & EQUIPMENT,FUSION,SEATON LTD,5100281616,409.95
UNITED KINGDOM ATOMIC ENERGY AUTHORITY,UNITED KINGDOM ATOMIC ENERGY AUTHORITY,14/11/2012,PLANT & EQUIPMENT,FUSION,NEW PIG LTD,5100281669,249.96
UNITED KINGDOM ATOMIC ENERGY AUTHORITY,UNITED KINGDOM ATOMIC ENERGY AUTHORITY,14/11/2012,PERSONAL PROTECTIVE EQUIPMENT,FUSION,ARCO LTD,5100281674,31.99
UNITED KINGDOM ATOMIC ENERGY AUTHORITY,UNITED KINGDOM ATOMIC ENERGY AUTHORITY,14/11/2012,PERSONAL PROTECTIVE EQUIPMENT,FUSION,ARCO LTD,5100281677,66.66
UNITED KINGDOM ATOMIC ENERGY AUTHORITY,UNITED KINGDOM ATOMIC ENERGY AUTHORITY,21/11/2012,RENT OF VEHICLE & EQUIPMENT,FUSION,M.J.C SERVICES,5100281682,346.66
UNITED KINGDOM ATOMIC ENERGY AUTHORITY,UNITED KINGDOM ATOMIC ENERGY AUTHORITY,14/11/2012,CONSUMABLES,FUSION,SETON,5100281698,216.45
UNITED KINGDOM ATOMIC ENERGY AUTHORITY,UNITED KINGDOM ATOMIC ENERGY AUTHORITY,12/11/2012,FASTFIX,FUSION,MATERIALS & SPARES,5100281718,587.33
UNITED KINGDOM ATOMIC ENERGY AUTHORITY,UNITED KINGDOM ATOMIC ENERGY AUTHORITY,12/11/2012,FASTFIX,FUSION,MATERIALS & SPARES,5100281719,283.29
UNITED KINGDOM ATOMIC ENERGY AUTHORITY,UNITED KINGDOM ATOMIC ENERGY AUTHORITY,14/11/2012,FASTFIX,FUSION,MATERIALS & SPARES,5100281720,1242.55
UNITED KINGDOM ATOMIC ENERGY AUTHORITY,UNITED KINGDOM ATOMIC ENERGY AUTHORITY,12/11/2012,GASES,FUSION,BOC LTD,5100281732,8.84
UNITED KINGDOM ATOMIC ENERGY AUTHORITY,UNITED KINGDOM ATOMIC ENERGY AUTHORITY,12/11/2012,BUILDING REPAIRS,FUSION,LORNE STEWART PLC,5100281875,4471.74
UNITED KINGDOM ATOMIC ENERGY AUTHORITY,UNITED KINGDOM ATOMIC ENERGY AUTHORITY,14/11/2012,MATERIALS & SPARES,FUSION,RS COMPONENTS LTD,5100281922,33.62
UNITED KINGDOM ATOMIC ENERGY AUTHORITY,UNITED KINGDOM ATOMIC ENERGY AUTHORITY,12/11/2012,CONSUMABLES,FUSION,BERKSHIRE PALLETS LTD,5100281926,1857.5
UNITED KINGDOM ATOMIC ENERGY AUTHORITY,UNITED KINGDOM ATOMIC ENERGY AUTHORITY,12/11/2012,MATERIALS & SPARES,FUSION,RS COMPONENTS LTD,5100281970,251.42
UNITED KINGDOM ATOMIC ENERGY AUTHORITY,UNITED KINGDOM ATOMIC ENERGY AUTHORITY,19/11/2012,MATERIALS & SPARES,FUSION,RS COMPONENTS LTD,5100281983,137.24
UNITED KINGDOM ATOMIC ENERGY AUTHORITY,UNITED KINGDOM ATOMIC ENERGY AUTHORITY,14/11/2012,PERSONAL PROTECTIVE EQUIPMENT,FUSION,ARCO LTD,5100282025,70.78
UNITED KINGDOM ATOMIC ENERGY AUTHORITY,UNITED KINGDOM ATOMIC ENERGY AUTHORITY,19/11/2012,PERSONAL PROTECTIVE EQUIPMENT,FUSION,ARCO LTD,5100282043,26.74
UNITED KINGDOM ATOMIC ENERGY AUTHORITY,UNITED KINGDOM ATOMIC ENERGY AUTHORITY,19/11/2012,PLANT & EQUIPMENT,FUSION,NEW PIG LTD,5100282069,463.89
UNITED KINGDOM ATOMIC ENERGY AUTHORITY,UNITED KINGDOM ATOMIC ENERGY AUTHORITY,19/11/2012,MATERIALS & SPARES,FUSION,RS COMPONENTS LTD,5100282097,-137.24
UNITED KINGDOM ATOMIC ENERGY AUTHORITY,UNITED KINGDOM ATOMIC ENERGY AUTHORITY,19/11/2012,DELIVERY & CARRIAGE,FUSION,TOPSPEED COURIERS LTD,5100282149,75
UNITED KINGDOM ATOMIC ENERGY AUTHORITY,UNITED KINGDOM ATOMIC ENERGY AUTHORITY,19/11/2012,MATERIALS & SPARES,FUSION,RS COMPONENTS LTD,5100282190,75.35
UNITED KINGDOM ATOMIC ENERGY AUTHORITY,UNITED KINGDOM ATOMIC ENERGY AUTHORITY,15/11/2012,CONSUMABLES,FUSION,PURCHASE CARDS,100669623,60.70
UNITED KINGDOM ATOMIC ENERGY AUTHORITY,UNITED KINGDOM ATOMIC ENERGY AUTHORITY,15/11/2012,CONSUMABLES,FUSION,PURCHASE CARDS,100669645,39.24
UNITED KINGDOM ATOMIC ENERGY AUTHORITY,UNITED KINGDOM ATOMIC ENERGY AUTHORITY,15/11/2012,CONSUMABLES,FUSION,PURCHASE CARDS,100669645,15.96
UNITED KINGDOM ATOMIC ENERGY AUTHORITY,UNITED KINGDOM ATOMIC ENERGY AUTHORITY,15/11/2012,CONSUMABLES,FUSION,PURCHASE CARDS,100669646,77.82
UNITED KINGDOM ATOMIC ENERGY AUTHORITY,UNITED KINGDOM ATOMIC ENERGY AUTHORITY,15/11/2012,CONSUMABLES,FUSION,PURCHASE CARDS,100669646,5.63
UNITED KINGDOM ATOMIC ENERGY AUTHORITY,UNITED KINGDOM ATOMIC ENERGY AUTHORITY,15/11/2012,CONSUMABLES,FUSION,PURCHASE CARDS,100669646,81.99
UNITED KINGDOM ATOMIC ENERGY AUTHORITY,UNITED KINGDOM ATOMIC ENERGY AUTHORITY,15/11/2012,PERSONAL PROTECTION EQUIPMENT,FUSION,PURCHASE CARDS,100669645,209.42
UNITED KINGDOM ATOMIC ENERGY AUTHORITY,UNITED KINGDOM ATOMIC ENERGY AUTHORITY,15/11/2012,PERSONAL PROTECTION EQUIPMENT,FUSION,PURCHASE CARDS,100669645,14.47
UNITED KINGDOM ATOMIC ENERGY AUTHORITY,UNITED KINGDOM ATOMIC ENERGY AUTHORITY,15/11/2012,PLANT & EQUIPMENT,FUSION,PURCHASE CARDS,100669645,309.95
UNITED KINGDOM ATOMIC ENERGY AUTHORITY,UNITED KINGDOM ATOMIC ENERGY AUTHORITY,15/11/2012,PLANT & EQUIPMENT,FUSION,PURCHASE CARDS,100669645,197.49
UNITED KINGDOM ATOMIC ENERGY AUTHORITY,UNITED KINGDOM ATOMIC ENERGY AUTHORITY,15/11/2012,PLANT & EQUIPMENT,FUSION,PURCHASE CARDS,100669645,10.90
UNITED KINGDOM ATOMIC ENERGY AUTHORITY,UNITED KINGDOM ATOMIC ENERGY AUTHORITY,15/11/2012,PLANT & EQUIPMENT,FUSION,PURCHASE CARDS,100669645,103.50
UNITED KINGDOM ATOMIC ENERGY AUTHORITY,UNITED KINGDOM ATOMIC ENERGY AUTHORITY,15/11/2012,PLANT & EQUIPMENT,FUSION,PURCHASE CARDS,100669646,74.99
UNITED KINGDOM ATOMIC ENERGY AUTHORITY,UNITED KINGDOM ATOMIC ENERGY AUTHORITY,15/11/2012,PLANT & EQUIPMENT,FUSION,PURCHASE CARDS,100669646,409.70
UNITED KINGDOM ATOMIC ENERGY AUTHORITY,UNITED KINGDOM ATOMIC ENERGY AUTHORITY,15/11/2012,PLANT & EQUIPMENT,FUSION,PURCHASE CARDS,100669646,738.75
UNITED KINGDOM ATOMIC ENERGY AUTHORITY,UNITED KINGDOM ATOMIC ENERGY AUTHORITY,15/11/2012,OTHER EXTERNAL COSTS,FUSION,PURCHASE CARDS,100669646,9.80
UNITED KINGDOM ATOMIC ENERGY AUTHORITY,UNITED KINGDOM ATOMIC ENERGY AUTHORITY,29/10/2012,MATERIALS & SPARES,FUSION,CPC PLC,5100281055,44.2
UNITED KINGDOM ATOMIC ENERGY AUTHORITY,UNITED KINGDOM ATOMIC ENERGY AUTHORITY,29/10/2012,MATERIALS & SPARES,FUSION,FARNELL ELECTRONIC,5100281075,25.67
UNITED KINGDOM ATOMIC ENERGY AUTHORITY,UNITED KINGDOM ATOMIC ENERGY AUTHORITY,29/10/2012,MATERIALS & SPARES,FUSION,FARNELL ELECTRONIC,5100281076,18.24
UNITED KINGDOM ATOMIC ENERGY AUTHORITY,UNITED KINGDOM ATOMIC ENERGY AUTHORITY,31/10/2012,MATERIALS & SPARES,FUSION,HTMS NV,5100281186,3984.53
UNITED KINGDOM ATOMIC ENERGY AUTHORITY,UNITED KINGDOM ATOMIC ENERGY AUTHORITY,29/10/2012,MATERIALS & SPARES,FUSION,RS COMPONENTS LTD,5100281247,7.26
UNITED KINGDOM ATOMIC ENERGY AUTHORITY,UNITED KINGDOM ATOMIC ENERGY AUTHORITY,31/10/2012,MATERIALS & SPARES,FUSION,RS COMPONENTS LTD,5100281257,662.32
UNITED KINGDOM ATOMIC ENERGY AUTHORITY,UNITED KINGDOM ATOMIC ENERGY AUTHORITY,29/10/2012,MATERIALS & SPARES,FUSION,RS COMPONENTS LTD,5100281267,108.05
UNITED KINGDOM ATOMIC ENERGY AUTHORITY,UNITED KINGDOM ATOMIC ENERGY AUTHORITY,05/11/2012,MATERIALS & SPARES,FUSION,RS COMPONENTS LTD,5100281319,13.18
UNITED KINGDOM ATOMIC ENERGY AUTHORITY,UNITED KINGDOM ATOMIC ENERGY AUTHORITY,31/10/2012,PERSONAL PROTECTIVE EQUIPMENT,FUSION,ARCO WESSEX,5100281356,26.7
UNITED KINGDOM ATOMIC ENERGY AUTHORITY,UNITED KINGDOM ATOMIC ENERGY AUTHORITY,05/11/2012,PROFESSIONAL SERVICES,FUSION,MKS INSTRUMENT UK LIMITED,5100281366,215
UNITED KINGDOM ATOMIC ENERGY AUTHORITY,UNITED KINGDOM ATOMIC ENERGY AUTHORITY,05/11/2012,MATERIALS & SPARES,FUSION,FARNELL ELECTRONIC,5100281434,740.64
UNITED KINGDOM ATOMIC ENERGY AUTHORITY,UNITED KINGDOM ATOMIC ENERGY AUTHORITY,05/11/2012,MATERIALS & SPARES,FUSION,FARNELL ELECTRONIC,5100281435,172.88
UNITED KINGDOM ATOMIC ENERGY AUTHORITY,UNITED KINGDOM ATOMIC ENERGY AUTHORITY,05/11/2012,PERSONAL PROTECTIVE EQUIPMENT,FUSION,BUCK & HICKMAN LTD,5100281475,64.77
UNITED KINGDOM ATOMIC ENERGY AUTHORITY,UNITED KINGDOM ATOMIC ENERGY AUTHORITY,05/11/2012,MATERIALS & SPARES,FUSION,METALFAST (A DIVISION OF,5100281504,89
UNITED KINGDOM ATOMIC ENERGY AUTHORITY,UNITED KINGDOM ATOMIC ENERGY AUTHORITY,05/11/2012,MATERIALS & SPARES,FUSION,FARNELL ELECTRONIC,5100281511,718.32
UNITED KINGDOM ATOMIC ENERGY AUTHORITY,UNITED KINGDOM ATOMIC ENERGY AUTHORITY,05/11/2012,MATERIALS & SPARES,FUSION,OXFORD BOLTS & BEARINGS,5100281533,120.87
UNITED KINGDOM ATOMIC ENERGY AUTHORITY,UNITED KINGDOM ATOMIC ENERGY AUTHORITY,07/11/2012,CAR HIRE,FUSION,LEASEDRIVE VELO,5100281551,48.06
UNITED KINGDOM ATOMIC ENERGY AUTHORITY,UNITED KINGDOM ATOMIC ENERGY AUTHORITY,12/11/2012,GASES,FUSION,BOC LTD,5100281596,191.24
UNITED KINGDOM ATOMIC ENERGY AUTHORITY,UNITED KINGDOM ATOMIC ENERGY AUTHORITY,12/11/2012,MATERIALS & SPARES,FUSION,RS COMPONENTS LTD,5100281634,23.91
UNITED KINGDOM ATOMIC ENERGY AUTHORITY,UNITED KINGDOM ATOMIC ENERGY AUTHORITY,12/11/2012,MATERIALS & SPARES,FUSION,RS COMPONENTS LTD,5100281657,467.65
UNITED KINGDOM ATOMIC ENERGY AUTHORITY,UNITED KINGDOM ATOMIC ENERGY AUTHORITY,12/11/2012,PERSONAL PROTECTIVE EQUIPMENT,FUSION,ARCO WESSEX,5100281679,33.9
UNITED KINGDOM ATOMIC ENERGY AUTHORITY,UNITED KINGDOM ATOMIC ENERGY AUTHORITY,12/11/2012,GASES,FUSION,BOC LTD,5100281730,194.9
UNITED KINGDOM ATOMIC ENERGY AUTHORITY,UNITED KINGDOM ATOMIC ENERGY AUTHORITY,14/11/2012,MATERIALS & SPARES,FUSION,KURT J LESKER,5100281783,485.58
UNITED KINGDOM ATOMIC ENERGY AUTHORITY,UNITED KINGDOM ATOMIC ENERGY AUTHORITY,12/11/2012,MATERIALS & SPARES,FUSION,RS COMPONENTS LTD,5100281818,367.71
UNITED KINGDOM ATOMIC ENERGY AUTHORITY,UNITED KINGDOM ATOMIC ENERGY AUTHORITY,12/11/2012,MATERIALS & SPARES,FUSION,FARNELL ELECTRONIC,5100281823,639.96
UNITED KINGDOM ATOMIC ENERGY AUTHORITY,UNITED KINGDOM ATOMIC ENERGY AUTHORITY,12/11/2012,MATERIALS & SPARES,FUSION,FARNELL ELECTRONIC,5100281890,67.72
UNITED KINGDOM ATOMIC ENERGY AUTHORITY,UNITED KINGDOM ATOMIC ENERGY AUTHORITY,12/11/2012,MATERIALS & SPARES,FUSION,FARNELL ELECTRONIC,5100281906,14.79
UNITED KINGDOM ATOMIC ENERGY AUTHORITY,UNITED KINGDOM ATOMIC ENERGY AUTHORITY,12/11/2012,MATERIALS & SPARES,FUSION,RS COMPONENTS LTD,5100281956,164.57
UNITED KINGDOM ATOMIC ENERGY AUTHORITY,UNITED KINGDOM ATOMIC ENERGY AUTHORITY,12/11/2012,MATERIALS & SPARES,FUSION,RS COMPONENTS LTD,5100281965,71.73
UNITED KINGDOM ATOMIC ENERGY AUTHORITY,UNITED KINGDOM ATOMIC ENERGY AUTHORITY,12/11/2012,MATERIALS & SPARES,FUSION,RS COMPONENTS LTD,5100281976,88.37
UNITED KINGDOM ATOMIC ENERGY AUTHORITY,UNITED KINGDOM ATOMIC ENERGY AUTHORITY,12/11/2012,MATERIALS & SPARES,FUSION,RS COMPONENTS LTD,5100281979,38.02
UNITED KINGDOM ATOMIC ENERGY AUTHORITY,UNITED KINGDOM ATOMIC ENERGY AUTHORITY,21/11/2012,MATERIALS & SPARES,FUSION,RS COMPONENTS LTD,5100281992,91.31
UNITED KINGDOM ATOMIC ENERGY AUTHORITY,UNITED KINGDOM ATOMIC ENERGY AUTHORITY,14/11/2012,PERSONAL PROTECTIVE EQUIPMENT,FUSION,ARCO WESSEX,5100282022,30.82
UNITED KINGDOM ATOMIC ENERGY AUTHORITY,UNITED KINGDOM ATOMIC ENERGY AUTHORITY,19/11/2012,PROFESSIONAL SERVICES,FUSION,MKS INSTRUMENT UK LIMITED,5100282156,2165
UNITED KINGDOM ATOMIC ENERGY AUTHORITY,UNITED KINGDOM ATOMIC ENERGY AUTHORITY,19/11/2012,MATERIALS & SPARES,FUSION,OXFORD BOLTS & BEARINGS,5100282184,43.09
UNITED KINGDOM ATOMIC ENERGY AUTHORITY,UNITED KINGDOM ATOMIC ENERGY AUTHORITY,21/11/2012,MATERIALS & SPARES,FUSION,RS COMPONENTS LTD,5100282191,23.78
UNITED KINGDOM ATOMIC ENERGY AUTHORITY,UNITED KINGDOM ATOMIC ENERGY AUTHORITY,21/11/2012,MATERIALS & SPARES,FUSION,FARNELL ELECTRONIC,5100282208,20.9
UNITED KINGDOM ATOMIC ENERGY AUTHORITY,UNITED KINGDOM ATOMIC ENERGY AUTHORITY,19/11/2012,MATERIALS & SPARES,FUSION,GARLOCK GREAT BRITAIN LTD,5100282235,3812.01
UNITED KINGDOM ATOMIC ENERGY AUTHORITY,UNITED KINGDOM ATOMIC ENERGY AUTHORITY,31/10/2012,SUBSISTENCE,FUSION,EMPLOYEE EXPENSES,100665257,12.03
UNITED KINGDOM ATOMIC ENERGY AUTHORITY,UNITED KINGDOM ATOMIC ENERGY AUTHORITY,31/10/2012,ROAD TRAVEL,FUSION,EMPLOYEE EXPENSES,100665257,21.40
UNITED KINGDOM ATOMIC ENERGY AUTHORITY,UNITED KINGDOM ATOMIC ENERGY AUTHORITY,31/10/2012,SUBSISTENCE,FUSION,EMPLOYEE EXPENSES,100665280,5.83
UNITED KINGDOM ATOMIC ENERGY AUTHORITY,UNITED KINGDOM ATOMIC ENERGY AUTHORITY,10/11/2012,SUBSISTENCE,FUSION,EMPLOYEE EXPENSES,100665499,81.54
UNITED KINGDOM ATOMIC ENERGY AUTHORITY,UNITED KINGDOM ATOMIC ENERGY AUTHORITY,10/11/2012,SUBSISTENCE,FUSION,EMPLOYEE EXPENSES,100665499,5.25
UNITED KINGDOM ATOMIC ENERGY AUTHORITY,UNITED KINGDOM ATOMIC ENERGY AUTHORITY,22/11/2012,SUBSISTENCE,FUSION,EMPLOYEE EXPENSES,100669767,91.54
UNITED KINGDOM ATOMIC ENERGY AUTHORITY,UNITED KINGDOM ATOMIC ENERGY AUTHORITY,29/10/2012,PROFESSIONAL SERVICES,FUSION,Energy Safety and Risk Consultants,5100281150,10567.42
UNITED KINGDOM ATOMIC ENERGY AUTHORITY,UNITED KINGDOM ATOMIC ENERGY AUTHORITY,29/10/2012,PROFESSIONAL SERVICES,FUSION,Energy Safety and Risk Consultants,5100281151,11527.39
UNITED KINGDOM ATOMIC ENERGY AUTHORITY,UNITED KINGDOM ATOMIC ENERGY AUTHORITY,31/10/2012,ELECTRONIC CONCEPTS EUROPE LTD,FUSION,MATERIALS & SPARES,5100280508,4388.97
UNITED KINGDOM ATOMIC ENERGY AUTHORITY,UNITED KINGDOM ATOMIC ENERGY AUTHORITY,19/11/2012,PLANT & EQUIPMENT,FUSION,EDMUNDSON ELECTRICALS LTD,5100280583,2355.48
UNITED KINGDOM ATOMIC ENERGY AUTHORITY,UNITED KINGDOM ATOMIC ENERGY AUTHORITY,29/10/2012,MATERIALS & SPARES,FUSION,RS COMPONENTS LTD,5100281028,30.58
UNITED KINGDOM ATOMIC ENERGY AUTHORITY,UNITED KINGDOM ATOMIC ENERGY AUTHORITY,29/10/2012,PLANT & EQUIPMENT,FUSION,EDMUNDSON ELECTRICALS LTD,5100281042,3373.81
UNITED KINGDOM ATOMIC ENERGY AUTHORITY,UNITED KINGDOM ATOMIC ENERGY AUTHORITY,29/10/2012,PLANT & EQUIPMENT,FUSION,EDMUNDSON ELECTRICALS LTD,5100281045,9.99
UNITED KINGDOM ATOMIC ENERGY AUTHORITY,UNITED KINGDOM ATOMIC ENERGY AUTHORITY,29/10/2012,PLANT & EQUIPMENT,FUSION,EDMUNDSON ELECTRICALS LTD,5100281046,145.15
UNITED KINGDOM ATOMIC ENERGY AUTHORITY,UNITED KINGDOM ATOMIC ENERGY AUTHORITY,29/10/2012,MATERIALS & SPARES,FUSION,FARNELL ELECTRONIC,5100281079,97.8
UNITED KINGDOM ATOMIC ENERGY AUTHORITY,UNITED KINGDOM ATOMIC ENERGY AUTHORITY,29/10/2012,BUILDING REPAIRS,FUSION,TILL & WHITEHEAD LTD,5100281096,120
UNITED KINGDOM ATOMIC ENERGY AUTHORITY,UNITED KINGDOM ATOMIC ENERGY AUTHORITY,29/10/2012,BUILDING REPAIRS,FUSION,TILL & WHITEHEAD LTD,5100281099,59.4
UNITED KINGDOM ATOMIC ENERGY AUTHORITY,UNITED KINGDOM ATOMIC ENERGY AUTHORITY,29/10/2012,BUILDING REPAIRS,FUSION,TILL & WHITEHEAD LTD,5100281100,282.61
UNITED KINGDOM ATOMIC ENERGY AUTHORITY,UNITED KINGDOM ATOMIC ENERGY AUTHORITY,29/10/2012,PLANT & EQUIPMENT,FUSION,EDMUNDSON ELECTRICALS LTD,5100281105,27.16
UNITED KINGDOM ATOMIC ENERGY AUTHORITY,UNITED KINGDOM ATOMIC ENERGY AUTHORITY,05/11/2012,PLANT & EQUIPMENT,FUSION,EDMUNDSON ELECTRICALS LTD,5100281106,1665.8
UNITED KINGDOM ATOMIC ENERGY AUTHORITY,UNITED KINGDOM ATOMIC ENERGY AUTHORITY,29/10/2012,PLANT & EQUIPMENT,FUSION,EDMUNDSON ELECTRICALS LTD,5100281108,221.08
UNITED KINGDOM ATOMIC ENERGY AUTHORITY,UNITED KINGDOM ATOMIC ENERGY AUTHORITY,29/10/2012,PERSONAL PROTECTIVE EQUIPMENT,FUSION,ARCO LTD,5100281111,312.42
UNITED KINGDOM ATOMIC ENERGY AUTHORITY,UNITED KINGDOM ATOMIC ENERGY AUTHORITY,29/10/2012,PERSONAL PROTECTIVE EQUIPMENT,FUSION,ARCO LTD,5100281115,32.89
UNITED KINGDOM ATOMIC ENERGY AUTHORITY,UNITED KINGDOM ATOMIC ENERGY AUTHORITY,29/10/2012,PERSONAL PROTECTIVE EQUIPMENT,FUSION,ARCO LTD,5100281116,9.51
UNITED KINGDOM ATOMIC ENERGY AUTHORITY,UNITED KINGDOM ATOMIC ENERGY AUTHORITY,29/10/2012,STATIONERY,FUSION,LYRECO UK LIMITED,5100281170,517.38
UNITED KINGDOM ATOMIC ENERGY AUTHORITY,UNITED KINGDOM ATOMIC ENERGY AUTHORITY,29/10/2012,STATIONERY,FUSION,LYRECO UK LIMITED,5100281171,324.49
UNITED KINGDOM ATOMIC ENERGY AUTHORITY,UNITED KINGDOM ATOMIC ENERGY AUTHORITY,29/10/2012,STATIONERY,FUSION,LYRECO UK LIMITED,5100281172,151.62
UNITED KINGDOM ATOMIC ENERGY AUTHORITY,UNITED KINGDOM ATOMIC ENERGY AUTHORITY,29/10/2012,STATIONERY,FUSION,LYRECO UK LIMITED,5100281173,135.55
UNITED KINGDOM ATOMIC ENERGY AUTHORITY,UNITED KINGDOM ATOMIC ENERGY AUTHORITY,29/10/2012,STATIONERY,FUSION,LYRECO UK LIMITED,5100281174,267.36
UNITED KINGDOM ATOMIC ENERGY AUTHORITY,UNITED KINGDOM ATOMIC ENERGY AUTHORITY,29/10/2012,STATIONERY,FUSION,LYRECO UK LIMITED,5100281175,54.14
UNITED KINGDOM ATOMIC ENERGY AUTHORITY,UNITED KINGDOM ATOMIC ENERGY AUTHORITY,29/10/2012,STATIONERY,FUSION,LYRECO UK LIMITED,5100281176,319.48
UNITED KINGDOM ATOMIC ENERGY AUTHORITY,UNITED KINGDOM ATOMIC ENERGY AUTHORITY,29/10/2012,STATIONERY,FUSION,LYRECO UK LIMITED,5100281177,204.78
UNITED KINGDOM ATOMIC ENERGY AUTHORITY,UNITED KINGDOM ATOMIC ENERGY AUTHORITY,29/10/2012,STATIONERY,FUSION,LYRECO UK LIMITED,5100281178,91.6
UNITED KINGDOM ATOMIC ENERGY AUTHORITY,UNITED KINGDOM ATOMIC ENERGY AUTHORITY,29/10/2012,MATERIALS & SPARES,FUSION,FARNELL ELECTRONIC,5100281185,87.29
UNITED KINGDOM ATOMIC ENERGY AUTHORITY,UNITED KINGDOM ATOMIC ENERGY AUTHORITY,21/11/2012,MATERIALS & SPARES,FUSION,FARNELL ELECTRONIC,5100281197,155.72
UNITED KINGDOM ATOMIC ENERGY AUTHORITY,UNITED KINGDOM ATOMIC ENERGY AUTHORITY,29/10/2012,PERSONAL PROTECTIVE EQUIPMENT,FUSION,ARCO LTD,5100281232,31.99
UNITED KINGDOM ATOMIC ENERGY AUTHORITY,UNITED KINGDOM ATOMIC ENERGY AUTHORITY,05/11/2012,PLANT & EQUIPMENT,FUSION,EDMUNDSON ELECTRICALS LTD,5100281240,147.09
UNITED KINGDOM ATOMIC ENERGY AUTHORITY,UNITED KINGDOM ATOMIC ENERGY AUTHORITY,05/11/2012,PLANT & EQUIPMENT,FUSION,EDMUNDSON ELECTRICALS LTD,5100281242,179.73
UNITED KINGDOM ATOMIC ENERGY AUTHORITY,UNITED KINGDOM ATOMIC ENERGY AUTHORITY,07/11/2012,PLANT & EQUIPMENT,FUSION,EDMUNDSON ELECTRICALS LTD,5100281243,62.04
UNITED KINGDOM ATOMIC ENERGY AUTHORITY,UNITED KINGDOM ATOMIC ENERGY AUTHORITY,29/10/2012,PERSONAL PROTECTIVE EQUIPMENT,FUSION,ARCO LTD,5100281253,41.72
UNITED KINGDOM ATOMIC ENERGY AUTHORITY,UNITED KINGDOM ATOMIC ENERGY AUTHORITY,29/10/2012,MATERIALS & SPARES,FUSION,RS COMPONENTS LTD,5100281255,55.79
UNITED KINGDOM ATOMIC ENERGY AUTHORITY,UNITED KINGDOM ATOMIC ENERGY AUTHORITY,29/10/2012,PERSONAL PROTECTIVE EQUIPMENT,FUSION,ARCO LTD,5100281258,604.68
UNITED KINGDOM ATOMIC ENERGY AUTHORITY,UNITED KINGDOM ATOMIC ENERGY AUTHORITY,29/10/2012,MATERIALS & SPARES,FUSION,RS COMPONENTS LTD,5100281275,432.39
UNITED KINGDOM ATOMIC ENERGY AUTHORITY,UNITED KINGDOM ATOMIC ENERGY AUTHORITY,29/10/2012,MATERIALS & SPARES,FUSION,PIRTEK OXFORD,5100281282,280
UNITED KINGDOM ATOMIC ENERGY AUTHORITY,UNITED KINGDOM ATOMIC ENERGY AUTHORITY,31/10/2012,REPAIRS & MAINTENANCE,FUSION,HITEK LTD,5100281294,52
UNITED KINGDOM ATOMIC ENERGY AUTHORITY,UNITED KINGDOM ATOMIC ENERGY AUTHORITY,31/10/2012,REPAIRS & MAINTENANCE,FUSION,HITEK LTD,5100281296,42
UNITED KINGDOM ATOMIC ENERGY AUTHORITY,UNITED KINGDOM ATOMIC ENERGY AUTHORITY,05/11/2012,MATERIALS & SPARES,FUSION,RS COMPONENTS LTD,5100281317,220.5
UNITED KINGDOM ATOMIC ENERGY AUTHORITY,UNITED KINGDOM ATOMIC ENERGY AUTHORITY,05/11/2012,PLANT & EQUIPMENT,FUSION,EDMUNDSON ELECTRICALS LTD,5100281331,795.46
UNITED KINGDOM ATOMIC ENERGY AUTHORITY,UNITED KINGDOM ATOMIC ENERGY AUTHORITY,07/11/2012,BUILDING REPAIRS,FUSION,LORNE STEWART PLC,5100281332,159096.16
UNITED KINGDOM ATOMIC ENERGY AUTHORITY,UNITED KINGDOM ATOMIC ENERGY AUTHORITY,05/11/2012,PLANT & EQUIPMENT,FUSION,EDMUNDSON ELECTRICALS LTD,5100281334,89.7
UNITED KINGDOM ATOMIC ENERGY AUTHORITY,UNITED KINGDOM ATOMIC ENERGY AUTHORITY,31/10/2012,PERSONAL PROTECTIVE EQUIPMENT,FUSION,ARCO LTD,5100281337,1641
UNITED KINGDOM ATOMIC ENERGY AUTHORITY,UNITED KINGDOM ATOMIC ENERGY AUTHORITY,05/11/2012,PLANT & EQUIPMENT,FUSION,LSW SUPPLIES,5100281340,82.25
UNITED KINGDOM ATOMIC ENERGY AUTHORITY,UNITED KINGDOM ATOMIC ENERGY AUTHORITY,31/10/2012,PERSONAL PROTECTIVE EQUIPMENT,FUSION,ARCO LTD,5100281354,67.28
UNITED KINGDOM ATOMIC ENERGY AUTHORITY,UNITED KINGDOM ATOMIC ENERGY AUTHORITY,31/10/2012,PERSONAL PROTECTIVE EQUIPMENT,FUSION,ARCO LTD,5100281357,912
UNITED KINGDOM ATOMIC ENERGY AUTHORITY,UNITED KINGDOM ATOMIC ENERGY AUTHORITY,07/11/2012,MATERIALS & SPARES,FUSION,RS COMPONENTS LTD,5100281376,172.91
UNITED KINGDOM ATOMIC ENERGY AUTHORITY,UNITED KINGDOM ATOMIC ENERGY AUTHORITY,05/11/2012,PERSONAL PROTECTIVE EQUIPMENT,FUSION,ARCO LTD,5100281378,208.76
UNITED KINGDOM ATOMIC ENERGY AUTHORITY,UNITED KINGDOM ATOMIC ENERGY AUTHORITY,05/11/2012,REPAIRS & MAINTENANCE,FUSION,BATT CABLES PLC,5100281453,3216.2
UNITED KINGDOM ATOMIC ENERGY AUTHORITY,UNITED KINGDOM ATOMIC ENERGY AUTHORITY,05/11/2012,PERSONAL PROTECTIVE EQUIPMENT,FUSION,ARCO LTD,5100281481,182.24
UNITED KINGDOM ATOMIC ENERGY AUTHORITY,UNITED KINGDOM ATOMIC ENERGY AUTHORITY,05/11/2012,PERSONAL PROTECTIVE EQUIPMENT,FUSION,ARCO LTD,5100281485,35.09
UNITED KINGDOM ATOMIC ENERGY AUTHORITY,UNITED KINGDOM ATOMIC ENERGY AUTHORITY,05/11/2012,PERSONAL PROTECTIVE EQUIPMENT,FUSION,ARCO LTD,5100281487,268.08
UNITED KINGDOM ATOMIC ENERGY AUTHORITY,UNITED KINGDOM ATOMIC ENERGY AUTHORITY,05/11/2012,MATERIALS & SPARES,FUSION,ANIXTER (UK) LTD,5100281495,704
UNITED KINGDOM ATOMIC ENERGY AUTHORITY,UNITED KINGDOM ATOMIC ENERGY AUTHORITY,05/11/2012,PLANT & EQUIPMENT,FUSION,EDMUNDSON ELECTRICALS LTD,5100281500,396.25
UNITED KINGDOM ATOMIC ENERGY AUTHORITY,UNITED KINGDOM ATOMIC ENERGY AUTHORITY,07/11/2012,PLANT & EQUIPMENT,FUSION,EDMUNDSON ELECTRICALS LTD,5100281501,324.44
UNITED KINGDOM ATOMIC ENERGY AUTHORITY,UNITED KINGDOM ATOMIC ENERGY AUTHORITY,07/11/2012,PLANT & EQUIPMENT,FUSION,EDMUNDSON ELECTRICALS LTD,5100281503,157.12
UNITED KINGDOM ATOMIC ENERGY AUTHORITY,UNITED KINGDOM ATOMIC ENERGY AUTHORITY,05/11/2012,MATERIALS & SPARES,FUSION,FARNELL ELECTRONIC,5100281509,31.74
UNITED KINGDOM ATOMIC ENERGY AUTHORITY,UNITED KINGDOM ATOMIC ENERGY AUTHORITY,05/11/2012,MATERIALS & SPARES,FUSION,FARNELL ELECTRONIC,5100281514,113.34
UNITED KINGDOM ATOMIC ENERGY AUTHORITY,UNITED KINGDOM ATOMIC ENERGY AUTHORITY,05/11/2012,MATERIALS & SPARES,FUSION,OXFORD BOLTS & BEARINGS,5100281531,287.32
UNITED KINGDOM ATOMIC ENERGY AUTHORITY,UNITED KINGDOM ATOMIC ENERGY AUTHORITY,05/11/2012,STATIONERY,FUSION,LYRECO UK LIMITED,5100281540,238.66
UNITED KINGDOM ATOMIC ENERGY AUTHORITY,UNITED KINGDOM ATOMIC ENERGY AUTHORITY,05/11/2012,STATIONERY,FUSION,LYRECO UK LIMITED,5100281541,121.74
UNITED KINGDOM ATOMIC ENERGY AUTHORITY,UNITED KINGDOM ATOMIC ENERGY AUTHORITY,05/11/2012,STATIONERY,FUSION,LYRECO UK LIMITED,5100281542,0.72
UNITED KINGDOM ATOMIC ENERGY AUTHORITY,UNITED KINGDOM ATOMIC ENERGY AUTHORITY,05/11/2012,MATERIALS & SPARES,FUSION,OXFORD BOLTS & BEARINGS,5100281557,270.78
UNITED KINGDOM ATOMIC ENERGY AUTHORITY,UNITED KINGDOM ATOMIC ENERGY AUTHORITY,05/11/2012,MATERIALS & SPARES,FUSION,OXFORD BOLTS & BEARINGS,5100281558,168.6
UNITED KINGDOM ATOMIC ENERGY AUTHORITY,UNITED KINGDOM ATOMIC ENERGY AUTHORITY,05/11/2012,MATERIALS & SPARES,FUSION,CROMWELL LTD,5100281581,18.34
UNITED KINGDOM ATOMIC ENERGY AUTHORITY,UNITED KINGDOM ATOMIC ENERGY AUTHORITY,14/11/2012,BUILDING REPAIRS,FUSION,MCNAUGHTON BAILEY LTD,5100281609,3900
UNITED KINGDOM ATOMIC ENERGY AUTHORITY,UNITED KINGDOM ATOMIC ENERGY AUTHORITY,12/11/2012,MATERIALS & SPARES,FUSION,ALPHA ENGINEERING SUPPLIES,5100281614,59
UNITED KINGDOM ATOMIC ENERGY AUTHORITY,UNITED KINGDOM ATOMIC ENERGY AUTHORITY,12/11/2012,PERSONAL PROTECTIVE EQUIPMENT,FUSION,ARCO LTD,5100281647,64.74
UNITED KINGDOM ATOMIC ENERGY AUTHORITY,UNITED KINGDOM ATOMIC ENERGY AUTHORITY,07/11/2012,REPAIRS & MAINTENANCE,FUSION,BATT CABLES PLC,5100281658,102
UNITED KINGDOM ATOMIC ENERGY AUTHORITY,UNITED KINGDOM ATOMIC ENERGY AUTHORITY,12/11/2012,MATERIALS & SPARES,FUSION,RS COMPONENTS LTD,5100281659,21.52
UNITED KINGDOM ATOMIC ENERGY AUTHORITY,UNITED KINGDOM ATOMIC ENERGY AUTHORITY,07/11/2012,REPAIRS & MAINTENANCE,FUSION,BATT CABLES PLC,5100281660,1346.4
UNITED KINGDOM ATOMIC ENERGY AUTHORITY,UNITED KINGDOM ATOMIC ENERGY AUTHORITY,12/11/2012,PERSONAL PROTECTIVE EQUIPMENT,FUSION,ARCO LTD,5100281671,186.12
UNITED KINGDOM ATOMIC ENERGY AUTHORITY,UNITED KINGDOM ATOMIC ENERGY AUTHORITY,12/11/2012,PERSONAL PROTECTIVE EQUIPMENT,FUSION,ARCO LTD,5100281675,850
UNITED KINGDOM ATOMIC ENERGY AUTHORITY,UNITED KINGDOM ATOMIC ENERGY AUTHORITY,12/11/2012,MATERIALS & SPARES,FUSION,BSS OXFORD,5100281683,270.07
UNITED KINGDOM ATOMIC ENERGY AUTHORITY,UNITED KINGDOM ATOMIC ENERGY AUTHORITY,12/11/2012,PERSONAL PROTECTIVE EQUIPMENT,FUSION,ARCO LTD,5100281684,58.69
UNITED KINGDOM ATOMIC ENERGY AUTHORITY,UNITED KINGDOM ATOMIC ENERGY AUTHORITY,12/11/2012,PLANT & EQUIPMENT,FUSION,LSW SUPPLIES,5100281685,135.96
UNITED KINGDOM ATOMIC ENERGY AUTHORITY,UNITED KINGDOM ATOMIC ENERGY AUTHORITY,12/11/2012,PERSONAL PROTECTIVE EQUIPMENT,FUSION,ARCO LTD,5100281686,47.66
UNITED KINGDOM ATOMIC ENERGY AUTHORITY,UNITED KINGDOM ATOMIC ENERGY AUTHORITY,12/11/2012,PLANT & EQUIPMENT,FUSION,LSW SUPPLIES,5100281687,555.9
UNITED KINGDOM ATOMIC ENERGY AUTHORITY,UNITED KINGDOM ATOMIC ENERGY AUTHORITY,12/11/2012,PLANT & EQUIPMENT,FUSION,EDMUNDSON ELECTRICALS LTD,5100281689,7.88
UNITED KINGDOM ATOMIC ENERGY AUTHORITY,UNITED KINGDOM ATOMIC ENERGY AUTHORITY,12/11/2012,PLANT & EQUIPMENT,FUSION,EDMUNDSON ELECTRICALS LTD,5100281690,425.11
UNITED KINGDOM ATOMIC ENERGY AUTHORITY,UNITED KINGDOM ATOMIC ENERGY AUTHORITY,12/11/2012,PLANT & EQUIPMENT,FUSION,EDMUNDSON ELECTRICALS LTD,5100281691,601.6
UNITED KINGDOM ATOMIC ENERGY AUTHORITY,UNITED KINGDOM ATOMIC ENERGY AUTHORITY,12/11/2012,VEHICLE REPAIRS,FUSION,SUTTON COURTENAY TYRES,5100281701,135
UNITED KINGDOM ATOMIC ENERGY AUTHORITY,UNITED KINGDOM ATOMIC ENERGY AUTHORITY,12/11/2012,VEHICLE REPAIRS,FUSION,SUTTON COURTENAY TYRES,5100281702,30
UNITED KINGDOM ATOMIC ENERGY AUTHORITY,UNITED KINGDOM ATOMIC ENERGY AUTHORITY,12/11/2012,BUILDING REPAIRS,FUSION,TILL & WHITEHEAD LTD,5100281705,17.5
UNITED KINGDOM ATOMIC ENERGY AUTHORITY,UNITED KINGDOM ATOMIC ENERGY AUTHORITY,12/11/2012,BUILDING REPAIRS,FUSION,TILL & WHITEHEAD LTD,5100281706,151.74
UNITED KINGDOM ATOMIC ENERGY AUTHORITY,UNITED KINGDOM ATOMIC ENERGY AUTHORITY,12/11/2012,BUILDING REPAIRS,FUSION,TILL & WHITEHEAD LTD,5100281707,95.24
UNITED KINGDOM ATOMIC ENERGY AUTHORITY,UNITED KINGDOM ATOMIC ENERGY AUTHORITY,12/11/2012,LAUNDRY,FUSION,BLUEBELL LAUNDRY,5100281708,156.18
UNITED KINGDOM ATOMIC ENERGY AUTHORITY,UNITED KINGDOM ATOMIC ENERGY AUTHORITY,21/11/2012,MATERIALS & SPARES,FUSION,ANIXTER (UK) LTD,5100281725,517.5
UNITED KINGDOM ATOMIC ENERGY AUTHORITY,UNITED KINGDOM ATOMIC ENERGY AUTHORITY,12/11/2012,MATERIALS & SPARES,FUSION,ANIXTER (UK) LTD,5100281726,2325
UNITED KINGDOM ATOMIC ENERGY AUTHORITY,UNITED KINGDOM ATOMIC ENERGY AUTHORITY,12/11/2012,GASES,FUSION,BOC LTD,5100281733,61.88
UNITED KINGDOM ATOMIC ENERGY AUTHORITY,UNITED KINGDOM ATOMIC ENERGY AUTHORITY,14/11/2012,MATERIALS & SPARES,FUSION,HOTCHKISS AIR SUPPLY,5100281752,72.04
UNITED KINGDOM ATOMIC ENERGY AUTHORITY,UNITED KINGDOM ATOMIC ENERGY AUTHORITY,12/11/2012,STATIONERY,FUSION,LYRECO UK LIMITED,5100281773,9.9
UNITED KINGDOM ATOMIC ENERGY AUTHORITY,UNITED KINGDOM ATOMIC ENERGY AUTHORITY,12/11/2012,STATIONERY,FUSION,LYRECO UK LIMITED,5100281775,495.16
UNITED KINGDOM ATOMIC ENERGY AUTHORITY,UNITED KINGDOM ATOMIC ENERGY AUTHORITY,12/11/2012,STATIONERY,FUSION,LYRECO UK LIMITED,5100281776,779.54
UNITED KINGDOM ATOMIC ENERGY AUTHORITY,UNITED KINGDOM ATOMIC ENERGY AUTHORITY,12/11/2012,STATIONERY,FUSION,LYRECO UK LIMITED,5100281777,160.16
UNITED KINGDOM ATOMIC ENERGY AUTHORITY,UNITED KINGDOM ATOMIC ENERGY AUTHORITY,12/11/2012,MATERIALS & SPARES,FUSION,CBL ELECTRIC VEHICLES LTD,5100281785,771.24
UNITED KINGDOM ATOMIC ENERGY AUTHORITY,UNITED KINGDOM ATOMIC ENERGY AUTHORITY,12/11/2012,MATERIALS & SPARES,FUSION,CBL ELECTRIC VEHICLES LTD,5100281786,696.6
UNITED KINGDOM ATOMIC ENERGY AUTHORITY,UNITED KINGDOM ATOMIC ENERGY AUTHORITY,12/11/2012,MATERIALS & SPARES,FUSION,CBL ELECTRIC VEHICLES LTD,5100281787,12.64
UNITED KINGDOM ATOMIC ENERGY AUTHORITY,UNITED KINGDOM ATOMIC ENERGY AUTHORITY,12/11/2012,MATERIALS & SPARES,FUSION,CBL ELECTRIC VEHICLES LTD,5100281788,699.3
UNITED KINGDOM ATOMIC ENERGY AUTHORITY,UNITED KINGDOM ATOMIC ENERGY AUTHORITY,12/11/2012,MATERIALS & SPARES,FUSION,CBL ELECTRIC VEHICLES LTD,5100281789,12.64
UNITED KINGDOM ATOMIC ENERGY AUTHORITY,UNITED KINGDOM ATOMIC ENERGY AUTHORITY,12/11/2012,MATERIALS & SPARES,FUSION,CBL ELECTRIC VEHICLES LTD,5100281790,114.28
UNITED KINGDOM ATOMIC ENERGY AUTHORITY,UNITED KINGDOM ATOMIC ENERGY AUTHORITY,12/11/2012,MATERIALS & SPARES,FUSION,CBL ELECTRIC VEHICLES LTD,5100281791,516.86
UNITED KINGDOM ATOMIC ENERGY AUTHORITY,UNITED KINGDOM ATOMIC ENERGY AUTHORITY,12/11/2012,MATERIALS & SPARES,FUSION,RS COMPONENTS LTD,5100281806,351.08
UNITED KINGDOM ATOMIC ENERGY AUTHORITY,UNITED KINGDOM ATOMIC ENERGY AUTHORITY,12/11/2012,MATERIALS & SPARES,FUSION,RS COMPONENTS LTD,5100281809,233.64
UNITED KINGDOM ATOMIC ENERGY AUTHORITY,UNITED KINGDOM ATOMIC ENERGY AUTHORITY,12/11/2012,MATERIALS & SPARES,FUSION,FARNELL ELECTRONIC,5100281827,24.81
UNITED KINGDOM ATOMIC ENERGY AUTHORITY,UNITED KINGDOM ATOMIC ENERGY AUTHORITY,14/11/2012,REPAIRS & MAINTENANCE,FUSION,BATT CABLES PLC,5100281851,230.4
UNITED KINGDOM ATOMIC ENERGY AUTHORITY,UNITED KINGDOM ATOMIC ENERGY AUTHORITY,14/11/2012,REPAIRS & MAINTENANCE,FUSION,BATT CABLES PLC,5100281853,303.7
UNITED KINGDOM ATOMIC ENERGY AUTHORITY,UNITED KINGDOM ATOMIC ENERGY AUTHORITY,12/11/2012,BUILDING REPAIRS,FUSION,LORNE STEWART PLC,5100281855,411.86
UNITED KINGDOM ATOMIC ENERGY AUTHORITY,UNITED KINGDOM ATOMIC ENERGY AUTHORITY,12/11/2012,BUILDING REPAIRS,FUSION,LORNE STEWART PLC,5100281861,9297.48
UNITED KINGDOM ATOMIC ENERGY AUTHORITY,UNITED KINGDOM ATOMIC ENERGY AUTHORITY,12/11/2012,BUILDING REPAIRS,FUSION,LORNE STEWART PLC,5100281863,20517.14
UNITED KINGDOM ATOMIC ENERGY AUTHORITY,UNITED KINGDOM ATOMIC ENERGY AUTHORITY,12/11/2012,BUILDING REPAIRS,FUSION,LORNE STEWART PLC,5100281872,20481.45
UNITED KINGDOM ATOMIC ENERGY AUTHORITY,UNITED KINGDOM ATOMIC ENERGY AUTHORITY,12/11/2012,BUILDING REPAIRS,FUSION,LORNE STEWART PLC,5100281883,19454.18
UNITED KINGDOM ATOMIC ENERGY AUTHORITY,UNITED KINGDOM ATOMIC ENERGY AUTHORITY,12/11/2012,BUILDING REPAIRS,FUSION,LORNE STEWART PLC,5100281884,798.38
UNITED KINGDOM ATOMIC ENERGY AUTHORITY,UNITED KINGDOM ATOMIC ENERGY AUTHORITY,19/11/2012,MATERIALS & SPARES,FUSION,RS COMPONENTS LTD,5100281973,205.62
UNITED KINGDOM ATOMIC ENERGY AUTHORITY,UNITED KINGDOM ATOMIC ENERGY AUTHORITY,19/11/2012,MATERIALS & SPARES,FUSION,RS COMPONENTS LTD,5100281974,260.27
UNITED KINGDOM ATOMIC ENERGY AUTHORITY,UNITED KINGDOM ATOMIC ENERGY AUTHORITY,12/11/2012,MATERIALS & SPARES,FUSION,RS COMPONENTS LTD,5100281981,1305
UNITED KINGDOM ATOMIC ENERGY AUTHORITY,UNITED KINGDOM ATOMIC ENERGY AUTHORITY,14/11/2012,PERSONAL PROTECTIVE EQUIPMENT,FUSION,ARCO LTD,5100282026,570
UNITED KINGDOM ATOMIC ENERGY AUTHORITY,UNITED KINGDOM ATOMIC ENERGY AUTHORITY,14/11/2012,PLANT & EQUIPMENT,FUSION,EDMUNDSON ELECTRICALS LTD,5100282028,13.94
UNITED KINGDOM ATOMIC ENERGY AUTHORITY,UNITED KINGDOM ATOMIC ENERGY AUTHORITY,21/11/2012,PLANT & EQUIPMENT,FUSION,EDMUNDSON ELECTRICALS LTD,5100282029,23.01
UNITED KINGDOM ATOMIC ENERGY AUTHORITY,UNITED KINGDOM ATOMIC ENERGY AUTHORITY,19/11/2012,PLANT & EQUIPMENT,FUSION,EDMUNDSON ELECTRICALS LTD,5100282046,484.96
UNITED KINGDOM ATOMIC ENERGY AUTHORITY,UNITED KINGDOM ATOMIC ENERGY AUTHORITY,19/11/2012,PLANT & EQUIPMENT,FUSION,EDMUNDSON ELECTRICALS LTD,5100282047,89.8
UNITED KINGDOM ATOMIC ENERGY AUTHORITY,UNITED KINGDOM ATOMIC ENERGY AUTHORITY,19/11/2012,PLANT & EQUIPMENT,FUSION,EDMUNDSON ELECTRICALS LTD,5100282048,473.69
UNITED KINGDOM ATOMIC ENERGY AUTHORITY,UNITED KINGDOM ATOMIC ENERGY AUTHORITY,21/11/2012,PLANT & EQUIPMENT,FUSION,EDMUNDSON ELECTRICALS LTD,5100282049,629.23
UNITED KINGDOM ATOMIC ENERGY AUTHORITY,UNITED KINGDOM ATOMIC ENERGY AUTHORITY,19/11/2012,PERSONAL PROTECTIVE EQUIPMENT,FUSION,ARCO LTD,5100282061,1641
UNITED KINGDOM ATOMIC ENERGY AUTHORITY,UNITED KINGDOM ATOMIC ENERGY AUTHORITY,19/11/2012,PERSONAL PROTECTIVE EQUIPMENT,FUSION,ARCO LTD,5100282062,103.68
UNITED KINGDOM ATOMIC ENERGY AUTHORITY,UNITED KINGDOM ATOMIC ENERGY AUTHORITY,19/11/2012,MATERIALS & SPARES,FUSION,RS COMPONENTS LTD,5100282096,235.86
UNITED KINGDOM ATOMIC ENERGY AUTHORITY,UNITED KINGDOM ATOMIC ENERGY AUTHORITY,19/11/2012,MATERIALS & SPARES,FUSION,RS COMPONENTS LTD,5100282131,49.98
UNITED KINGDOM ATOMIC ENERGY AUTHORITY,UNITED KINGDOM ATOMIC ENERGY AUTHORITY,21/11/2012,MATERIALS & SPARES,FUSION,RS COMPONENTS LTD,5100282148,170.15
UNITED KINGDOM ATOMIC ENERGY AUTHORITY,UNITED KINGDOM ATOMIC ENERGY AUTHORITY,21/11/2012,PLANT & EQUIPMENT,FUSION,EDMUNDSON ELECTRICALS LTD,5100282176,613.1
UNITED KINGDOM ATOMIC ENERGY AUTHORITY,UNITED KINGDOM ATOMIC ENERGY AUTHORITY,21/11/2012,PLANT & EQUIPMENT,FUSION,EDMUNDSON ELECTRICALS LTD,5100282178,160.98
UNITED KINGDOM ATOMIC ENERGY AUTHORITY,UNITED KINGDOM ATOMIC ENERGY AUTHORITY,21/11/2012,PLANT & EQUIPMENT,FUSION,EDMUNDSON ELECTRICALS LTD,5100282179,525.28
UNITED KINGDOM ATOMIC ENERGY AUTHORITY,UNITED KINGDOM ATOMIC ENERGY AUTHORITY,19/11/2012,REPAIRS & MAINTENANCE,FUSION,BATT CABLES PLC,5100282180,514.7
UNITED KINGDOM ATOMIC ENERGY AUTHORITY,UNITED KINGDOM ATOMIC ENERGY AUTHORITY,19/11/2012,REPAIRS & MAINTENANCE,FUSION,BATT CABLES PLC,5100282181,470
UNITED KINGDOM ATOMIC ENERGY AUTHORITY,UNITED KINGDOM ATOMIC ENERGY AUTHORITY,19/11/2012,MATERIALS & SPARES,FUSION,FARNELL ELECTRONIC,5100282198,19.38
UNITED KINGDOM ATOMIC ENERGY AUTHORITY,UNITED KINGDOM ATOMIC ENERGY AUTHORITY,16/11/2012,MATERIALS & SPARES,FUSION,FARNELL ELECTRONIC,5100282203,80.8
UNITED KINGDOM ATOMIC ENERGY AUTHORITY,UNITED KINGDOM ATOMIC ENERGY AUTHORITY,16/11/2012,MATERIALS & SPARES,FUSION,FARNELL ELECTRONIC,5100282204,-80.8
UNITED KINGDOM ATOMIC ENERGY AUTHORITY,UNITED KINGDOM ATOMIC ENERGY AUTHORITY,21/11/2012,MATERIALS & SPARES,FUSION,FARNELL ELECTRONIC,5100282205,80.8
UNITED KINGDOM ATOMIC ENERGY AUTHORITY,UNITED KINGDOM ATOMIC ENERGY AUTHORITY,21/11/2012,MATERIALS & SPARES,FUSION,FARNELL ELECTRONIC,5100282213,87.29
UNITED KINGDOM ATOMIC ENERGY AUTHORITY,UNITED KINGDOM ATOMIC ENERGY AUTHORITY,19/11/2012,PLANT & EQUIPMENT,FUSION,LSW SUPPLIES,5100282221,419.82
UNITED KINGDOM ATOMIC ENERGY AUTHORITY,UNITED KINGDOM ATOMIC ENERGY AUTHORITY,19/11/2012,STATIONERY,FUSION,LYRECO UK LIMITED,5100282229,551.22
UNITED KINGDOM ATOMIC ENERGY AUTHORITY,UNITED KINGDOM ATOMIC ENERGY AUTHORITY,19/11/2012,STATIONERY,FUSION,LYRECO UK LIMITED,5100282230,91.18
UNITED KINGDOM ATOMIC ENERGY AUTHORITY,UNITED KINGDOM ATOMIC ENERGY AUTHORITY,19/11/2012,STATIONERY,FUSION,LYRECO UK LIMITED,5100282231,6.84
UNITED KINGDOM ATOMIC ENERGY AUTHORITY,UNITED KINGDOM ATOMIC ENERGY AUTHORITY,19/11/2012,STATIONERY,FUSION,LYRECO UK LIMITED,5100282232,91.39
UNITED KINGDOM ATOMIC ENERGY AUTHORITY,UNITED KINGDOM ATOMIC ENERGY AUTHORITY,19/11/2012,PLANT & EQUIPMENT,FUSION,EDMUNDSON ELECTRICALS LTD,5100282240,-1314.19
UNITED KINGDOM ATOMIC ENERGY AUTHORITY,UNITED KINGDOM ATOMIC ENERGY AUTHORITY,12/11/2012,PLANT SPARES,FUSION,Part Tracker,1900057550,2898.16
UNITED KINGDOM ATOMIC ENERGY AUTHORITY,UNITED KINGDOM ATOMIC ENERGY AUTHORITY,29/10/2012,MEDICAL EXPENSES,FUSION,IMASS LTD,5100281168,4143.75
UNITED KINGDOM ATOMIC ENERGY AUTHORITY,UNITED KINGDOM ATOMIC ENERGY AUTHORITY,21/11/2012,SAFETY STORES,FUSION,SPECSAVERS CORPORATE EYE CARE,5100282174,425
UNITED KINGDOM ATOMIC ENERGY AUTHORITY,UNITED KINGDOM ATOMIC ENERGY AUTHORITY,31/10/2012,PROFESSIONAL SERVICES,FUSION,SCIENTIFICS LTD,5100280935,470
UNITED KINGDOM ATOMIC ENERGY AUTHORITY,UNITED KINGDOM ATOMIC ENERGY AUTHORITY,31/10/2012,PROFESSIONAL SERVICES,FUSION,SCIENTIFICS LTD,5100280983,900
UNITED KINGDOM ATOMIC ENERGY AUTHORITY,UNITED KINGDOM ATOMIC ENERGY AUTHORITY,29/10/2012,MATERIALS & SPARES,FUSION,ALLBATTERIES UK LTD,5100281065,354
UNITED KINGDOM ATOMIC ENERGY AUTHORITY,UNITED KINGDOM ATOMIC ENERGY AUTHORITY,31/10/2012,PLANT & EQUIPMENT,FUSION,FISHER SCIENTIFIC UK LTD,5100281211,3125.96
UNITED KINGDOM ATOMIC ENERGY AUTHORITY,UNITED KINGDOM ATOMIC ENERGY AUTHORITY,29/10/2012,GASES,FUSION,BOC LTD,5100281252,1298.46
UNITED KINGDOM ATOMIC ENERGY AUTHORITY,UNITED KINGDOM ATOMIC ENERGY AUTHORITY,29/10/2012,PLANT & EQUIPMENT,FUSION,ARVAL UK LIMITED,5100281287,271.62
UNITED KINGDOM ATOMIC ENERGY AUTHORITY,UNITED KINGDOM ATOMIC ENERGY AUTHORITY,21/11/2012,PROFESSIONAL SERVICES,FUSION,VT NUCLEAR SERVICES LTD,5100281426,972.48
UNITED KINGDOM ATOMIC ENERGY AUTHORITY,UNITED KINGDOM ATOMIC ENERGY AUTHORITY,12/11/2012,PROFESSIONAL SERVICES,FUSION,SCIENTIFICS LTD,5100281474,470
UNITED KINGDOM ATOMIC ENERGY AUTHORITY,UNITED KINGDOM ATOMIC ENERGY AUTHORITY,05/11/2012,PROFESSIONAL SERVICES,FUSION,PERKIN ELMER LAS UK LTD,5100281528,479
UNITED KINGDOM ATOMIC ENERGY AUTHORITY,UNITED KINGDOM ATOMIC ENERGY AUTHORITY,05/11/2012,HEALTH PHYSICS,FUSION,NUVIA LIMITED,5100281559,19621.5
UNITED KINGDOM ATOMIC ENERGY AUTHORITY,UNITED KINGDOM ATOMIC ENERGY AUTHORITY,07/11/2012,PLANT & EQUIPMENT,FUSION,SOHAM SCIENTIFIC,5100281611,1010
UNITED KINGDOM ATOMIC ENERGY AUTHORITY,UNITED KINGDOM ATOMIC ENERGY AUTHORITY,12/11/2012,PROFESSIONAL SERVICES,FUSION,VT NUCLEAR SERVICES LTD,5100281619,663.87
UNITED KINGDOM ATOMIC ENERGY AUTHORITY,UNITED KINGDOM ATOMIC ENERGY AUTHORITY,12/11/2012,PROFESSIONAL SERVICES,FUSION,PERKIN ELMER LAS UK LTD,5100281779,4363
UNITED KINGDOM ATOMIC ENERGY AUTHORITY,UNITED KINGDOM ATOMIC ENERGY AUTHORITY,12/11/2012,PLANT & EQUIPMENT,FUSION,ARVAL UK LIMITED,5100281800,271.62
UNITED KINGDOM ATOMIC ENERGY AUTHORITY,UNITED KINGDOM ATOMIC ENERGY AUTHORITY,12/11/2012,BUILDING REPAIRS,FUSION,LORNE STEWART PLC,5100281873,4618.95
UNITED KINGDOM ATOMIC ENERGY AUTHORITY,UNITED KINGDOM ATOMIC ENERGY AUTHORITY,21/11/2012,PROFESSIONAL SERVICES,FUSION,VT NUCLEAR SERVICES LTD,5100281966,349.86
UNITED KINGDOM ATOMIC ENERGY AUTHORITY,UNITED KINGDOM ATOMIC ENERGY AUTHORITY,21/11/2012,PROFESSIONAL SERVICES,FUSION,VT NUCLEAR SERVICES LTD,5100281968,349.86
UNITED KINGDOM ATOMIC ENERGY AUTHORITY,UNITED KINGDOM ATOMIC ENERGY AUTHORITY,14/11/2012,REPAIRS & MAINTENANCE,FUSION,CROWCON DETECTION INSTRUMENTS LTD,5100282032,195
UNITED KINGDOM ATOMIC ENERGY AUTHORITY,UNITED KINGDOM ATOMIC ENERGY AUTHORITY,19/11/2012,PROFESSIONAL SERVICES,FUSION,RADIOCARBON DATING,5100282073,1876
UNITED KINGDOM ATOMIC ENERGY AUTHORITY,UNITED KINGDOM ATOMIC ENERGY AUTHORITY,19/11/2012,PROFESSIONAL SERVICES,FUSION,RADIOCARBON DATING,5100282074,16478.8
UNITED KINGDOM ATOMIC ENERGY AUTHORITY,UNITED KINGDOM ATOMIC ENERGY AUTHORITY,21/11/2012,PROFESSIONAL SERVICES,FUSION,VT NUCLEAR SERVICES LTD,5100282353,-349.86
UNITED KINGDOM ATOMIC ENERGY AUTHORITY,UNITED KINGDOM ATOMIC ENERGY AUTHORITY,21/11/2012,INSPECTION SERVICES,FUSION,ROYAL & SUN ALLIANCE ENGINEERING LT,5100282077,2213.18
UNITED KINGDOM ATOMIC ENERGY AUTHORITY,UNITED KINGDOM ATOMIC ENERGY AUTHORITY,05/11/2012,CAR HIRE,FUSION,LEASEDRIVE VELO,5100281547,91.72
UNITED KINGDOM ATOMIC ENERGY AUTHORITY,UNITED KINGDOM ATOMIC ENERGY AUTHORITY,04/11/2012,SUBSISTENCE,FUSION,EMPLOYEE EXPENSES,100665420,5.00
UNITED KINGDOM ATOMIC ENERGY AUTHORITY,UNITED KINGDOM ATOMIC ENERGY AUTHORITY,04/11/2012,SUBSISTENCE,FUSION,EMPLOYEE EXPENSES,100665420,4.53
UNITED KINGDOM ATOMIC ENERGY AUTHORITY,UNITED KINGDOM ATOMIC ENERGY AUTHORITY,04/11/2012,ROAD TRAVEL,FUSION,EMPLOYEE EXPENSES,100665420,48.02
UNITED KINGDOM ATOMIC ENERGY AUTHORITY,UNITED KINGDOM ATOMIC ENERGY AUTHORITY,21/11/2012,PROFESSIONAL SERVICES,FUSION,GLANVILLE CONSULTANTS,5100280467,924.4
UNITED KINGDOM ATOMIC ENERGY AUTHORITY,UNITED KINGDOM ATOMIC ENERGY AUTHORITY,29/10/2012,PROFESSIONAL SERVICES,FUSION,KITSONS ENVIRONMENTAL EUROPE LTD,5100281040,3887.94
UNITED KINGDOM ATOMIC ENERGY AUTHORITY,UNITED KINGDOM ATOMIC ENERGY AUTHORITY,05/11/2012,PROFESSIONAL SERVICES,FUSION,GLANVILLE CONSULTANTS,5100281416,1240.29
UNITED KINGDOM ATOMIC ENERGY AUTHORITY,UNITED KINGDOM ATOMIC ENERGY AUTHORITY,05/11/2012,PROFESSIONAL SERVICES,FUSION,CONNAUGHT COMPLIANCE SERVICES LTD,5100281490,1140
UNITED KINGDOM ATOMIC ENERGY AUTHORITY,UNITED KINGDOM ATOMIC ENERGY AUTHORITY,12/11/2012,PROFESSIONAL SERVICES,FUSION,CONNAUGHT COMPLIANCE SERVICES LTD,5100281741,1900
UNITED KINGDOM ATOMIC ENERGY AUTHORITY,UNITED KINGDOM ATOMIC ENERGY AUTHORITY,19/11/2012,SOFTWARE,FUSION,SPIDEX SOFTWARE LTD,5100282092,579.4
UNITED KINGDOM ATOMIC ENERGY AUTHORITY,UNITED KINGDOM ATOMIC ENERGY AUTHORITY,07/11/2012,CAR HIRE,FUSION,LEASEDRIVE VELO,5100281546,72.88
UNITED KINGDOM ATOMIC ENERGY AUTHORITY,UNITED KINGDOM ATOMIC ENERGY AUTHORITY,07/11/2012,PROFESSIONAL SERVICES,FUSION,INSTITUTE OF CHEMICAL ENGINEERS,5100281556,1500
UNITED KINGDOM ATOMIC ENERGY AUTHORITY,UNITED KINGDOM ATOMIC ENERGY AUTHORITY,12/11/2012,ADVERTISING STAFF,FUSION,TMP (UK) LTD,5100281695,833
UNITED KINGDOM ATOMIC ENERGY AUTHORITY,UNITED KINGDOM ATOMIC ENERGY AUTHORITY,12/11/2012,RRC TRAINING,FUSION,TRAINING COSTS,5100281753,2170
UNITED KINGDOM ATOMIC ENERGY AUTHORITY,UNITED KINGDOM ATOMIC ENERGY AUTHORITY,12/11/2012,TRAINING COURSE FEES,FUSION,London South Bank University,1900057549,2010.00
UNITED KINGDOM ATOMIC ENERGY AUTHORITY,UNITED KINGDOM ATOMIC ENERGY AUTHORITY,31/10/2012,SUBSISTENCE,FUSION,EMPLOYEE EXPENSES,100665264,5.00
UNITED KINGDOM ATOMIC ENERGY AUTHORITY,UNITED KINGDOM ATOMIC ENERGY AUTHORITY,31/10/2012,ROAD TRAVEL,FUSION,EMPLOYEE EXPENSES,100665264,39.93
UNITED KINGDOM ATOMIC ENERGY AUTHORITY,UNITED KINGDOM ATOMIC ENERGY AUTHORITY,29/10/2012,F&F,FUSION,EFG MATTHEWS OFFICE FURNITURE LTD,5100281067,520
UNITED KINGDOM ATOMIC ENERGY AUTHORITY,UNITED KINGDOM ATOMIC ENERGY AUTHORITY,29/10/2012,F&F,FUSION,EFG MATTHEWS OFFICE FURNITURE LTD,5100281070,94.5
UNITED KINGDOM ATOMIC ENERGY AUTHORITY,UNITED KINGDOM ATOMIC ENERGY AUTHORITY,29/10/2012,F&F,FUSION,EFG MATTHEWS OFFICE FURNITURE LTD,5100281071,94.5
UNITED KINGDOM ATOMIC ENERGY AUTHORITY,UNITED KINGDOM ATOMIC ENERGY AUTHORITY,05/11/2012,F&F,FUSION,EFG MATTHEWS OFFICE FURNITURE LTD,5100281400,355
UNITED KINGDOM ATOMIC ENERGY AUTHORITY,UNITED KINGDOM ATOMIC ENERGY AUTHORITY,19/11/2012,BUILDING REPAIRS,FUSION,KNOWLES & SONS (OXFORD) LTD,5100281758,76.02
UNITED KINGDOM ATOMIC ENERGY AUTHORITY,UNITED KINGDOM ATOMIC ENERGY AUTHORITY,19/11/2012,BUILDING REPAIRS,FUSION,KNOWLES & SONS (OXFORD) LTD,5100281759,23.81
UNITED KINGDOM ATOMIC ENERGY AUTHORITY,UNITED KINGDOM ATOMIC ENERGY AUTHORITY,19/11/2012,BUILDING REPAIRS,FUSION,KNOWLES & SONS (OXFORD) LTD,5100281760,17.03
UNITED KINGDOM ATOMIC ENERGY AUTHORITY,UNITED KINGDOM ATOMIC ENERGY AUTHORITY,19/11/2012,BUILDING REPAIRS,FUSION,KNOWLES & SONS (OXFORD) LTD,5100281761,23.81
UNITED KINGDOM ATOMIC ENERGY AUTHORITY,UNITED KINGDOM ATOMIC ENERGY AUTHORITY,12/11/2012,F&F,FUSION,EFG MATTHEWS OFFICE FURNITURE LTD,5100281847,329
UNITED KINGDOM ATOMIC ENERGY AUTHORITY,UNITED KINGDOM ATOMIC ENERGY AUTHORITY,12/11/2012,F&F,FUSION,EFG MATTHEWS OFFICE FURNITURE LTD,5100281960,730.52
UNITED KINGDOM ATOMIC ENERGY AUTHORITY,UNITED KINGDOM ATOMIC ENERGY AUTHORITY,31/10/2012,PLANT & EQUIPMENT,FUSION,ABB LIMITED,5100281141,22431.4
UNITED KINGDOM ATOMIC ENERGY AUTHORITY,UNITED KINGDOM ATOMIC ENERGY AUTHORITY,05/11/2012,PLANT & EQUIPMENT,FUSION,ABB LIMITED,5100281375,33647.1
UNITED KINGDOM ATOMIC ENERGY AUTHORITY,UNITED KINGDOM ATOMIC ENERGY AUTHORITY,17/11/2012,ROAD TRAVEL,FUSION,EMPLOYEE EXPENSES,100669722,18.91
UNITED KINGDOM ATOMIC ENERGY AUTHORITY,UNITED KINGDOM ATOMIC ENERGY AUTHORITY,31/10/2012,PLANT & EQUIPMENT,FUSION,REINHOLD MUHLEISEN GMBH,5100280350,2817.33
UNITED KINGDOM ATOMIC ENERGY AUTHORITY,UNITED KINGDOM ATOMIC ENERGY AUTHORITY,31/10/2012,PLANT & EQUIPMENT,FUSION,REINHOLD MUHLEISEN GMBH,5100280351,4211.22
UNITED KINGDOM ATOMIC ENERGY AUTHORITY,UNITED KINGDOM ATOMIC ENERGY AUTHORITY,21/11/2012,MATERIALS & SPARES,FUSION,WRES LTD,5100280352,298.5
UNITED KINGDOM ATOMIC ENERGY AUTHORITY,UNITED KINGDOM ATOMIC ENERGY AUTHORITY,29/10/2012,PROFESSIONAL SERVICES,FUSION,M.G. SANDERS COMPANY LIMITED,5100281061,200
UNITED KINGDOM ATOMIC ENERGY AUTHORITY,UNITED KINGDOM ATOMIC ENERGY AUTHORITY,07/11/2012,PLANT & EQUIPMENT,FUSION,REINHOLD MUHLEISEN GMBH,5100281307,58249.67
UNITED KINGDOM ATOMIC ENERGY AUTHORITY,UNITED KINGDOM ATOMIC ENERGY AUTHORITY,07/11/2012,PLANT SPARES,FUSION,PRECISION CERAMICS,5100281536,442.29
UNITED KINGDOM ATOMIC ENERGY AUTHORITY,UNITED KINGDOM ATOMIC ENERGY AUTHORITY,05/11/2012,CAR HIRE,FUSION,LEASEDRIVE VELO,5100281545,36.44
UNITED KINGDOM ATOMIC ENERGY AUTHORITY,UNITED KINGDOM ATOMIC ENERGY AUTHORITY,05/11/2012,POPE AND MEADS LTD,FUSION,PLANT & EQUIPMENT,5100281554,2955.1
UNITED KINGDOM ATOMIC ENERGY AUTHORITY,UNITED KINGDOM ATOMIC ENERGY AUTHORITY,07/11/2012,PLANT & EQUIPMENT,FUSION,REINHOLD MUHLEISEN GMBH,5100281606,-4231.82
UNITED KINGDOM ATOMIC ENERGY AUTHORITY,UNITED KINGDOM ATOMIC ENERGY AUTHORITY,07/11/2012,PLANT & EQUIPMENT,FUSION,REINHOLD MUHLEISEN GMBH,5100281607,12725.16
UNITED KINGDOM ATOMIC ENERGY AUTHORITY,UNITED KINGDOM ATOMIC ENERGY AUTHORITY,12/11/2012,CAR HIRE,FUSION,LEASEDRIVE VELO,5100281678,36.06
UNITED KINGDOM ATOMIC ENERGY AUTHORITY,UNITED KINGDOM ATOMIC ENERGY AUTHORITY,12/11/2012,GOODFELLOW CAMBRIDGE LTD,FUSION,PLANT & EQUIPMENT,5100281769,3550.15
UNITED KINGDOM ATOMIC ENERGY AUTHORITY,UNITED KINGDOM ATOMIC ENERGY AUTHORITY,12/11/2012,MATERIALS & SPARES,FUSION,WRES LTD,5100281802,988.23
UNITED KINGDOM ATOMIC ENERGY AUTHORITY,UNITED KINGDOM ATOMIC ENERGY AUTHORITY,21/11/2012,MATERIALS & SPARES,FUSION,WRES LTD,5100281804,1075.05
UNITED KINGDOM ATOMIC ENERGY AUTHORITY,UNITED KINGDOM ATOMIC ENERGY AUTHORITY,20/11/2012,MATERIALS & SPARES,FUSION,WRES LTD,5100281835,6264.63
UNITED KINGDOM ATOMIC ENERGY AUTHORITY,UNITED KINGDOM ATOMIC ENERGY AUTHORITY,12/11/2012,MATERIALS & SPARES,FUSION,WRES LTD,5100281836,5030.32
UNITED KINGDOM ATOMIC ENERGY AUTHORITY,UNITED KINGDOM ATOMIC ENERGY AUTHORITY,12/11/2012,MATERIALS & SPARES,FUSION,WRES LTD,5100281837,4308.03
UNITED KINGDOM ATOMIC ENERGY AUTHORITY,UNITED KINGDOM ATOMIC ENERGY AUTHORITY,21/11/2012,MATERIALS & SPARES,FUSION,WRES LTD,5100281838,583.63
UNITED KINGDOM ATOMIC ENERGY AUTHORITY,UNITED KINGDOM ATOMIC ENERGY AUTHORITY,12/11/2012,PLANT SPARES,FUSION,SKEGNESS SPRINGS LTD,5100281857,735
UNITED KINGDOM ATOMIC ENERGY AUTHORITY,UNITED KINGDOM ATOMIC ENERGY AUTHORITY,21/11/2012,MATERIALS & SPARES,FUSION,RS COMPONENTS LTD,5100281993,114.7
UNITED KINGDOM ATOMIC ENERGY AUTHORITY,UNITED KINGDOM ATOMIC ENERGY AUTHORITY,21/11/2012,PLANT SPARES,FUSION,HARDMETAL ENG CORNWALL LTD,5100282153,834.65
UNITED KINGDOM ATOMIC ENERGY AUTHORITY,UNITED KINGDOM ATOMIC ENERGY AUTHORITY,21/11/2012,MATERIALS & SPARES,FUSION,WRES LTD,5100282157,3789.37
UNITED KINGDOM ATOMIC ENERGY AUTHORITY,UNITED KINGDOM ATOMIC ENERGY AUTHORITY,21/11/2012,PLANT & EQUIPMENT,FUSION,CERAMIC SUBSTRATES AND COMPONENTS L,5100282293,624
UNITED KINGDOM ATOMIC ENERGY AUTHORITY,UNITED KINGDOM ATOMIC ENERGY AUTHORITY,21/11/2012,PLANT & EQUIPMENT,FUSION,CERAMIC SUBSTRATES AND COMPONENTS L,5100282346,202
UNITED KINGDOM ATOMIC ENERGY AUTHORITY,UNITED KINGDOM ATOMIC ENERGY AUTHORITY,20/11/2012,MATERIALS & SPARES,FUSION,WRES LTD,5100282354,-6264.63
UNITED KINGDOM ATOMIC ENERGY AUTHORITY,UNITED KINGDOM ATOMIC ENERGY AUTHORITY,21/11/2012,MATERIALS & SPARES,FUSION,WRES LTD,5100282355,6264.63
UNITED KINGDOM ATOMIC ENERGY AUTHORITY,UNITED KINGDOM ATOMIC ENERGY AUTHORITY,05/11/2012,PROFESSIONAL SERVICES,FUSION,OXFORD TECHNOLOGIES LTD,5100280498,178.71
UNITED KINGDOM ATOMIC ENERGY AUTHORITY,UNITED KINGDOM ATOMIC ENERGY AUTHORITY,19/11/2012,PROFESSIONAL SERVICES,FUSION,OXFORD TECHNOLOGIES LTD,5100282066,127.65
UNITED KINGDOM ATOMIC ENERGY AUTHORITY,UNITED KINGDOM ATOMIC ENERGY AUTHORITY,05/11/2012,PLANT SPARES,FUSION,BRITE PRECISION,5100281293,1040
UNITED KINGDOM ATOMIC ENERGY AUTHORITY,UNITED KINGDOM ATOMIC ENERGY AUTHORITY,12/11/2012,RIDGEWAY PRECISION ENGINEERING LTD,FUSION,REPAIRS & MAINTENANCE,5100281544,1426.71
UNITED KINGDOM ATOMIC ENERGY AUTHORITY,UNITED KINGDOM ATOMIC ENERGY AUTHORITY,07/11/2012,MATERIALS & SPARES,FUSION,3D METAL-FORMING,5100279998,9996.47
UNITED KINGDOM ATOMIC ENERGY AUTHORITY,UNITED KINGDOM ATOMIC ENERGY AUTHORITY,05/11/2012,POUNDFIELD PRODUCTS,FUSION,MATERIALS & SPARES,5100280581,36840
UNITED KINGDOM ATOMIC ENERGY AUTHORITY,UNITED KINGDOM ATOMIC ENERGY AUTHORITY,29/10/2012,MATERIALS & SPARES,FUSION,RS COMPONENTS LTD,5100281024,102.79
UNITED KINGDOM ATOMIC ENERGY AUTHORITY,UNITED KINGDOM ATOMIC ENERGY AUTHORITY,29/10/2012,CASTLE & PRYOR LTD,FUSION,FACILITIES MANAGEMENT,5100281087,10495
UNITED KINGDOM ATOMIC ENERGY AUTHORITY,UNITED KINGDOM ATOMIC ENERGY AUTHORITY,29/10/2012,PLANT & EQUIPMENT,FUSION,TESLA ENGINEERING LTD,5100281148,25397
UNITED KINGDOM ATOMIC ENERGY AUTHORITY,UNITED KINGDOM ATOMIC ENERGY AUTHORITY,31/10/2012,CAR HIRE,FUSION,LEASEDRIVE VELO,5100281205,45.86
UNITED KINGDOM ATOMIC ENERGY AUTHORITY,UNITED KINGDOM ATOMIC ENERGY AUTHORITY,21/11/2012,PLANT & EQUIPMENT,FUSION,LONDON FLUID SYSTEM TECHNOLOGIES LT,5100281235,36.51
UNITED KINGDOM ATOMIC ENERGY AUTHORITY,UNITED KINGDOM ATOMIC ENERGY AUTHORITY,07/11/2012,PROFESSIONAL SERVICES,FUSION,FREYA CONSULTING,5100281306,16380
UNITED KINGDOM ATOMIC ENERGY AUTHORITY,UNITED KINGDOM ATOMIC ENERGY AUTHORITY,05/11/2012,MATERIALS & SPARES,FUSION,XP PLC,5100281405,160.8
UNITED KINGDOM ATOMIC ENERGY AUTHORITY,UNITED KINGDOM ATOMIC ENERGY AUTHORITY,05/11/2012,PROFESSIONAL SERVICES,FUSION,GLANVILLE CONSULTANTS,5100281414,1425.6
UNITED KINGDOM ATOMIC ENERGY AUTHORITY,UNITED KINGDOM ATOMIC ENERGY AUTHORITY,05/11/2012,PROFESSIONAL SERVICES,FUSION,GLANVILLE CONSULTANTS,5100281415,501.5
UNITED KINGDOM ATOMIC ENERGY AUTHORITY,UNITED KINGDOM ATOMIC ENERGY AUTHORITY,05/11/2012,PLANT SPARES,FUSION,CITY ELECTRICAL FACTORS LTD,5100281439,300.17
UNITED KINGDOM ATOMIC ENERGY AUTHORITY,UNITED KINGDOM ATOMIC ENERGY AUTHORITY,05/11/2012,PLANT SPARES,FUSION,CITY ELECTRICAL FACTORS LTD,5100281440,7.95
UNITED KINGDOM ATOMIC ENERGY AUTHORITY,UNITED KINGDOM ATOMIC ENERGY AUTHORITY,05/11/2012,PLANT SPARES,FUSION,CITY ELECTRICAL FACTORS LTD,5100281441,207.67
UNITED KINGDOM ATOMIC ENERGY AUTHORITY,UNITED KINGDOM ATOMIC ENERGY AUTHORITY,05/11/2012,PLANT SPARES,FUSION,CITY ELECTRICAL FACTORS LTD,5100281444,70.2
UNITED KINGDOM ATOMIC ENERGY AUTHORITY,UNITED KINGDOM ATOMIC ENERGY AUTHORITY,05/11/2012,PLANT SPARES,FUSION,CITY ELECTRICAL FACTORS LTD,5100281446,492.74
UNITED KINGDOM ATOMIC ENERGY AUTHORITY,UNITED KINGDOM ATOMIC ENERGY AUTHORITY,05/11/2012,PLANT SPARES,FUSION,CITY ELECTRICAL FACTORS LTD,5100281447,772.2
UNITED KINGDOM ATOMIC ENERGY AUTHORITY,UNITED KINGDOM ATOMIC ENERGY AUTHORITY,05/11/2012,PERSONAL PROTECTIVE EQUIPMENT,FUSION,BUCK & HICKMAN LTD,5100281477,247.63
UNITED KINGDOM ATOMIC ENERGY AUTHORITY,UNITED KINGDOM ATOMIC ENERGY AUTHORITY,05/11/2012,CAR HIRE,FUSION,LEASEDRIVE VELO,5100281548,36.44
UNITED KINGDOM ATOMIC ENERGY AUTHORITY,UNITED KINGDOM ATOMIC ENERGY AUTHORITY,05/11/2012,PLANT SPARES,FUSION,SKEGNESS SPRINGS LTD,5100281573,1384
UNITED KINGDOM ATOMIC ENERGY AUTHORITY,UNITED KINGDOM ATOMIC ENERGY AUTHORITY,05/11/2012,POUNDFIELD PRODUCTS,FUSION,MATERIALS & SPARES,5100281608,-2762
UNITED KINGDOM ATOMIC ENERGY AUTHORITY,UNITED KINGDOM ATOMIC ENERGY AUTHORITY,12/11/2012,CAR HIRE,FUSION,LEASEDRIVE VELO,5100281676,24.12
UNITED KINGDOM ATOMIC ENERGY AUTHORITY,UNITED KINGDOM ATOMIC ENERGY AUTHORITY,12/11/2012,CAR HIRE,FUSION,LEASEDRIVE VELO,5100281840,36.44
UNITED KINGDOM ATOMIC ENERGY AUTHORITY,UNITED KINGDOM ATOMIC ENERGY AUTHORITY,12/11/2012,MATERIALS & SPARES,FUSION,XP PLC,5100281913,619.8
UNITED KINGDOM ATOMIC ENERGY AUTHORITY,UNITED KINGDOM ATOMIC ENERGY AUTHORITY,12/11/2012,MATERIALS & SPARES,FUSION,ACRONA ENGINEERING LTD,5100281918,75
UNITED KINGDOM ATOMIC ENERGY AUTHORITY,UNITED KINGDOM ATOMIC ENERGY AUTHORITY,12/11/2012,CAR HIRE,FUSION,LEASEDRIVE VELO,5100281944,34.39
UNITED KINGDOM ATOMIC ENERGY AUTHORITY,UNITED KINGDOM ATOMIC ENERGY AUTHORITY,12/11/2012,MATERIALS & SPARES,FUSION,VEROTEC LTD,5100281946,2382.6
UNITED KINGDOM ATOMIC ENERGY AUTHORITY,UNITED KINGDOM ATOMIC ENERGY AUTHORITY,31/10/2012,SUBSISTENCE,FUSION,EMPLOYEE EXPENSES,100665277,3.91
UNITED KINGDOM ATOMIC ENERGY AUTHORITY,UNITED KINGDOM ATOMIC ENERGY AUTHORITY,31/10/2012,ROAD TRAVEL,FUSION,EMPLOYEE EXPENSES,100665277,47.33
UNITED KINGDOM ATOMIC ENERGY AUTHORITY,UNITED KINGDOM ATOMIC ENERGY AUTHORITY,04/11/2012,PROFESSIONAL SUBSCRIPTION,FUSION,EMPLOYEE EXPENSES,100665430,88.00
UNITED KINGDOM ATOMIC ENERGY AUTHORITY,UNITED KINGDOM ATOMIC ENERGY AUTHORITY,23/11/2012,ROAD TRAVEL,FUSION,EMPLOYEE EXPENSES,100669781,16.12
UNITED KINGDOM ATOMIC ENERGY AUTHORITY,UNITED KINGDOM ATOMIC ENERGY AUTHORITY,15/11/2012,CONSUMABLES,FUSION,PURCHASE CARDS,100669633,9.49
UNITED KINGDOM ATOMIC ENERGY AUTHORITY,UNITED KINGDOM ATOMIC ENERGY AUTHORITY,15/11/2012,CONSUMABLES,FUSION,PURCHASE CARDS,100669635,17.40
UNITED KINGDOM ATOMIC ENERGY AUTHORITY,UNITED KINGDOM ATOMIC ENERGY AUTHORITY,15/11/2012,RENT OF VEHICLE & EQUIPMENT,FUSION,PURCHASE CARDS,100669633,138.00
UNITED KINGDOM ATOMIC ENERGY AUTHORITY,UNITED KINGDOM ATOMIC ENERGY AUTHORITY,05/11/2012,MATERIALS & SPARES,FUSION,RS COMPONENTS LTD,5100281314,520.54
UNITED KINGDOM ATOMIC ENERGY AUTHORITY,UNITED KINGDOM ATOMIC ENERGY AUTHORITY,05/11/2012,MATERIALS & SPARES,FUSION,RS COMPONENTS LTD,5100281364,108.39
UNITED KINGDOM ATOMIC ENERGY AUTHORITY,UNITED KINGDOM ATOMIC ENERGY AUTHORITY,05/11/2012,PROFESSIONAL SERVICES,FUSION,MARCHAM SCIENTIFIC LTD,5100281419,3000
UNITED KINGDOM ATOMIC ENERGY AUTHORITY,UNITED KINGDOM ATOMIC ENERGY AUTHORITY,19/11/2012,MATERIALS & SPARES,FUSION,THORLABS LTD,5100281963,4541.48
UNITED KINGDOM ATOMIC ENERGY AUTHORITY,UNITED KINGDOM ATOMIC ENERGY AUTHORITY,21/11/2012,McPHERSIN INC,FUSION,MATERIALS & SPARES,5100282064,53517.74
UNITED KINGDOM ATOMIC ENERGY AUTHORITY,UNITED KINGDOM ATOMIC ENERGY AUTHORITY,06/11/2012,MATERIALS & SPARES,FUSION,NNR Global Logistics UK Ltd,1900057540,104.44
UNITED KINGDOM ATOMIC ENERGY AUTHORITY,UNITED KINGDOM ATOMIC ENERGY AUTHORITY,31/10/2012,RAIL TRAVEL,FUSION,EMPLOYEE EXPENSES,100665284,59.90
UNITED KINGDOM ATOMIC ENERGY AUTHORITY,UNITED KINGDOM ATOMIC ENERGY AUTHORITY,31/10/2012,OTHER EMPLOYEE EXPENSES,FUSION,EMPLOYEE EXPENSES,100665284,29.35
UNITED KINGDOM ATOMIC ENERGY AUTHORITY,UNITED KINGDOM ATOMIC ENERGY AUTHORITY,31/10/2012,TAXIS,FUSION,EMPLOYEE EXPENSES,100665285,7.51
UNITED KINGDOM ATOMIC ENERGY AUTHORITY,UNITED KINGDOM ATOMIC ENERGY AUTHORITY,31/10/2012,SUBSISTENCE,FUSION,EMPLOYEE EXPENSES,100665285,635.44
UNITED KINGDOM ATOMIC ENERGY AUTHORITY,UNITED KINGDOM ATOMIC ENERGY AUTHORITY,31/10/2012,SUBSISTENCE,FUSION,EMPLOYEE EXPENSES,100665285,11.96
UNITED KINGDOM ATOMIC ENERGY AUTHORITY,UNITED KINGDOM ATOMIC ENERGY AUTHORITY,31/10/2012,ROAD TRAVEL,FUSION,EMPLOYEE EXPENSES,100665285,23.26
UNITED KINGDOM ATOMIC ENERGY AUTHORITY,UNITED KINGDOM ATOMIC ENERGY AUTHORITY,31/10/2012,OTHER EMPLOYEE EXPENSES,FUSION,EMPLOYEE EXPENSES,100665285,6.46
UNITED KINGDOM ATOMIC ENERGY AUTHORITY,UNITED KINGDOM ATOMIC ENERGY AUTHORITY,01/11/2012,TAXIS,FUSION,EMPLOYEE EXPENSES,100665330,86.88
UNITED KINGDOM ATOMIC ENERGY AUTHORITY,UNITED KINGDOM ATOMIC ENERGY AUTHORITY,01/11/2012,SUBSISTENCE,FUSION,EMPLOYEE EXPENSES,100665330,668.03
UNITED KINGDOM ATOMIC ENERGY AUTHORITY,UNITED KINGDOM ATOMIC ENERGY AUTHORITY,01/11/2012,ROAD TRAVEL,FUSION,EMPLOYEE EXPENSES,100665330,6.83
UNITED KINGDOM ATOMIC ENERGY AUTHORITY,UNITED KINGDOM ATOMIC ENERGY AUTHORITY,01/11/2012,OTHER EMPLOYEE EXPENSES,FUSION,EMPLOYEE EXPENSES,100665330,18.23
UNITED KINGDOM ATOMIC ENERGY AUTHORITY,UNITED KINGDOM ATOMIC ENERGY AUTHORITY,04/11/2012,SUBSISTENCE,FUSION,EMPLOYEE EXPENSES,100665429,110.19
UNITED KINGDOM ATOMIC ENERGY AUTHORITY,UNITED KINGDOM ATOMIC ENERGY AUTHORITY,04/11/2012,SUBSISTENCE,FUSION,EMPLOYEE EXPENSES,100665429,2.99
UNITED KINGDOM ATOMIC ENERGY AUTHORITY,UNITED KINGDOM ATOMIC ENERGY AUTHORITY,04/11/2012,RAIL TRAVEL,FUSION,EMPLOYEE EXPENSES,100665429,8.04
UNITED KINGDOM ATOMIC ENERGY AUTHORITY,UNITED KINGDOM ATOMIC ENERGY AUTHORITY,04/11/2012,ROAD TRAVEL,FUSION,EMPLOYEE EXPENSES,100665429,2.01
UNITED KINGDOM ATOMIC ENERGY AUTHORITY,UNITED KINGDOM ATOMIC ENERGY AUTHORITY,08/11/2012,TAXIS,FUSION,EMPLOYEE EXPENSES,100665461,15.17
UNITED KINGDOM ATOMIC ENERGY AUTHORITY,UNITED KINGDOM ATOMIC ENERGY AUTHORITY,08/11/2012,SUBSISTENCE,FUSION,EMPLOYEE EXPENSES,100665461,886.51
UNITED KINGDOM ATOMIC ENERGY AUTHORITY,UNITED KINGDOM ATOMIC ENERGY AUTHORITY,08/11/2012,SUBSISTENCE,FUSION,EMPLOYEE EXPENSES,100665461,4.33
UNITED KINGDOM ATOMIC ENERGY AUTHORITY,UNITED KINGDOM ATOMIC ENERGY AUTHORITY,22/11/2012,SUBSISTENCE,FUSION,EMPLOYEE EXPENSES,100669756,"1,116.74"
UNITED KINGDOM ATOMIC ENERGY AUTHORITY,UNITED KINGDOM ATOMIC ENERGY AUTHORITY,22/11/2012,ROAD TRAVEL,FUSION,EMPLOYEE EXPENSES,100669756,1.71
UNITED KINGDOM ATOMIC ENERGY AUTHORITY,UNITED KINGDOM ATOMIC ENERGY AUTHORITY,22/11/2012,OTHER EMPLOYEE EXPENSES,FUSION,EMPLOYEE EXPENSES,100669756,3.00
UNITED KINGDOM ATOMIC ENERGY AUTHORITY,UNITED KINGDOM ATOMIC ENERGY AUTHORITY,31/10/2012,SUBSISTENCE,FUSION,EMPLOYEE EXPENSES,100665281,"1,445.18"
UNITED KINGDOM ATOMIC ENERGY AUTHORITY,UNITED KINGDOM ATOMIC ENERGY AUTHORITY,31/10/2012,SUBSISTENCE,FUSION,EMPLOYEE EXPENSES,100665281,3.92
UNITED KINGDOM ATOMIC ENERGY AUTHORITY,UNITED KINGDOM ATOMIC ENERGY AUTHORITY,31/10/2012,RAIL TRAVEL,FUSION,EMPLOYEE EXPENSES,100665281,45.70
UNITED KINGDOM ATOMIC ENERGY AUTHORITY,UNITED KINGDOM ATOMIC ENERGY AUTHORITY,31/10/2012,ROAD TRAVEL,FUSION,EMPLOYEE EXPENSES,100665281,29.00
UNITED KINGDOM ATOMIC ENERGY AUTHORITY,UNITED KINGDOM ATOMIC ENERGY AUTHORITY,31/10/2012,ROAD TRAVEL,FUSION,EMPLOYEE EXPENSES,100665281,1.86
UNITED KINGDOM ATOMIC ENERGY AUTHORITY,UNITED KINGDOM ATOMIC ENERGY AUTHORITY,31/10/2012,OTHER EMPLOYEE EXPENSES,FUSION,EMPLOYEE EXPENSES,100665281,8.65
UNITED KINGDOM ATOMIC ENERGY AUTHORITY,UNITED KINGDOM ATOMIC ENERGY AUTHORITY,17/11/2012,SUBSISTENCE,FUSION,EMPLOYEE EXPENSES,100669718,10.75
UNITED KINGDOM ATOMIC ENERGY AUTHORITY,UNITED KINGDOM ATOMIC ENERGY AUTHORITY,22/11/2012,SUBSISTENCE,FUSION,EMPLOYEE EXPENSES,100669762,81.27
UNITED KINGDOM ATOMIC ENERGY AUTHORITY,UNITED KINGDOM ATOMIC ENERGY AUTHORITY,04/11/2012,TAXIS,FUSION,EMPLOYEE EXPENSES,100665427,20.00
UNITED KINGDOM ATOMIC ENERGY AUTHORITY,UNITED KINGDOM ATOMIC ENERGY AUTHORITY,04/11/2012,SUBSISTENCE,FUSION,EMPLOYEE EXPENSES,100665427,101.26
UNITED KINGDOM ATOMIC ENERGY AUTHORITY,UNITED KINGDOM ATOMIC ENERGY AUTHORITY,04/11/2012,SUBSISTENCE,FUSION,EMPLOYEE EXPENSES,100665427,171.52
UNITED KINGDOM ATOMIC ENERGY AUTHORITY,UNITED KINGDOM ATOMIC ENERGY AUTHORITY,04/11/2012,RAIL TRAVEL,FUSION,EMPLOYEE EXPENSES,100665427,30.50
UNITED KINGDOM ATOMIC ENERGY AUTHORITY,UNITED KINGDOM ATOMIC ENERGY AUTHORITY,04/11/2012,RAIL TRAVEL,FUSION,EMPLOYEE EXPENSES,100665427,2.73
UNITED KINGDOM ATOMIC ENERGY AUTHORITY,UNITED KINGDOM ATOMIC ENERGY AUTHORITY,04/11/2012,TAXIS,FUSION,EMPLOYEE EXPENSES,100665437,23.62
UNITED KINGDOM ATOMIC ENERGY AUTHORITY,UNITED KINGDOM ATOMIC ENERGY AUTHORITY,04/11/2012,SUBSISTENCE,FUSION,EMPLOYEE EXPENSES,100665437,7.88
UNITED KINGDOM ATOMIC ENERGY AUTHORITY,UNITED KINGDOM ATOMIC ENERGY AUTHORITY,04/11/2012,SUBSISTENCE,FUSION,EMPLOYEE EXPENSES,100665437,853.41
UNITED KINGDOM ATOMIC ENERGY AUTHORITY,UNITED KINGDOM ATOMIC ENERGY AUTHORITY,04/11/2012,AIR TRAVEL,FUSION,EMPLOYEE EXPENSES,100665437,21.90
UNITED KINGDOM ATOMIC ENERGY AUTHORITY,UNITED KINGDOM ATOMIC ENERGY AUTHORITY,04/11/2012,RAIL TRAVEL,FUSION,EMPLOYEE EXPENSES,100665437,10.19
UNITED KINGDOM ATOMIC ENERGY AUTHORITY,UNITED KINGDOM ATOMIC ENERGY AUTHORITY,04/11/2012,ROAD TRAVEL,FUSION,EMPLOYEE EXPENSES,100665437,29.00
UNITED KINGDOM ATOMIC ENERGY AUTHORITY,UNITED KINGDOM ATOMIC ENERGY AUTHORITY,10/11/2012,TAXIS,FUSION,EMPLOYEE EXPENSES,100665496,9.00
UNITED KINGDOM ATOMIC ENERGY AUTHORITY,UNITED KINGDOM ATOMIC ENERGY AUTHORITY,10/11/2012,SUBSISTENCE,FUSION,EMPLOYEE EXPENSES,100665496,7.87
UNITED KINGDOM ATOMIC ENERGY AUTHORITY,UNITED KINGDOM ATOMIC ENERGY AUTHORITY,10/11/2012,RAIL TRAVEL,FUSION,EMPLOYEE EXPENSES,100665496,30.50
UNITED KINGDOM ATOMIC ENERGY AUTHORITY,UNITED KINGDOM ATOMIC ENERGY AUTHORITY,10/11/2012,ROAD TRAVEL,FUSION,EMPLOYEE EXPENSES,100665496,2.10
UNITED KINGDOM ATOMIC ENERGY AUTHORITY,UNITED KINGDOM ATOMIC ENERGY AUTHORITY,22/11/2012,PROFESSIONAL SUBSCRIPTION,FUSION,EMPLOYEE EXPENSES,100669760,111.00
UNITED KINGDOM ATOMIC ENERGY AUTHORITY,UNITED KINGDOM ATOMIC ENERGY AUTHORITY,15/11/2012,BOOKS & PUBLICATIONS,FUSION,PURCHASE CARDS,100669628,31.99
UNITED KINGDOM ATOMIC ENERGY AUTHORITY,UNITED KINGDOM ATOMIC ENERGY AUTHORITY,15/11/2012,BOOKS & PUBLICATIONS,FUSION,PURCHASE CARDS,100669628,15.29
UNITED KINGDOM ATOMIC ENERGY AUTHORITY,UNITED KINGDOM ATOMIC ENERGY AUTHORITY,15/11/2012,BOOKS & PUBLICATIONS,FUSION,PURCHASE CARDS,100669628,87.16
UNITED KINGDOM ATOMIC ENERGY AUTHORITY,UNITED KINGDOM ATOMIC ENERGY AUTHORITY,15/11/2012,CONFERENCES/MEETINGS,FUSION,PURCHASE CARDS,100669624,381.32
UNITED KINGDOM ATOMIC ENERGY AUTHORITY,UNITED KINGDOM ATOMIC ENERGY AUTHORITY,15/11/2012,CONFERENCES/MEETINGS,FUSION,PURCHASE CARDS,100669624,381.32
UNITED KINGDOM ATOMIC ENERGY AUTHORITY,UNITED KINGDOM ATOMIC ENERGY AUTHORITY,15/11/2012,CONFERENCES/MEETINGS,FUSION,PURCHASE CARDS,100669624,381.32
UNITED KINGDOM ATOMIC ENERGY AUTHORITY,UNITED KINGDOM ATOMIC ENERGY AUTHORITY,15/11/2012,CONFERENCES/MEETINGS,FUSION,PURCHASE CARDS,100669624,379.90
UNITED KINGDOM ATOMIC ENERGY AUTHORITY,UNITED KINGDOM ATOMIC ENERGY AUTHORITY,08/11/2012,MILEAGE ALLOWANCE,FUSION,EMPLOYEE EXPENSES,100665480,77.20
UNITED KINGDOM ATOMIC ENERGY AUTHORITY,UNITED KINGDOM ATOMIC ENERGY AUTHORITY,08/11/2012,RELOCATION COSTS,FUSION,EMPLOYEE EXPENSES,100665480,644.60
UNITED KINGDOM ATOMIC ENERGY AUTHORITY,UNITED KINGDOM ATOMIC ENERGY AUTHORITY,10/11/2012,SUBSISTENCE,FUSION,EMPLOYEE EXPENSES,100665488,748.47
UNITED KINGDOM ATOMIC ENERGY AUTHORITY,UNITED KINGDOM ATOMIC ENERGY AUTHORITY,15/11/2012,SOFTWARE - NON-CAP,FUSION,PURCHASE CARDS,100669637,414.04
UNITED KINGDOM ATOMIC ENERGY AUTHORITY,UNITED KINGDOM ATOMIC ENERGY AUTHORITY,14/11/2012,PROFESSIONAL SERVICES,FUSION,INSTITUTE OF PHYSICS,5100282067,1120
UNITED KINGDOM ATOMIC ENERGY AUTHORITY,UNITED KINGDOM ATOMIC ENERGY AUTHORITY,31/10/2012,TAXIS,FUSION,EMPLOYEE EXPENSES,100665254,25.29
UNITED KINGDOM ATOMIC ENERGY AUTHORITY,UNITED KINGDOM ATOMIC ENERGY AUTHORITY,31/10/2012,SUBSISTENCE,FUSION,EMPLOYEE EXPENSES,100665254,"1,536.56"
UNITED KINGDOM ATOMIC ENERGY AUTHORITY,UNITED KINGDOM ATOMIC ENERGY AUTHORITY,31/10/2012,AIR TRAVEL,FUSION,EMPLOYEE EXPENSES,100665254,30.88
UNITED KINGDOM ATOMIC ENERGY AUTHORITY,UNITED KINGDOM ATOMIC ENERGY AUTHORITY,31/10/2012,RAIL TRAVEL,FUSION,EMPLOYEE EXPENSES,100665254,51.26
UNITED KINGDOM ATOMIC ENERGY AUTHORITY,UNITED KINGDOM ATOMIC ENERGY AUTHORITY,31/10/2012,ROAD TRAVEL,FUSION,EMPLOYEE EXPENSES,100665254,14.20
UNITED KINGDOM ATOMIC ENERGY AUTHORITY,UNITED KINGDOM ATOMIC ENERGY AUTHORITY,31/10/2012,SUBSISTENCE,FUSION,EMPLOYEE EXPENSES,100665269,4.41
UNITED KINGDOM ATOMIC ENERGY AUTHORITY,UNITED KINGDOM ATOMIC ENERGY AUTHORITY,31/10/2012,MILEAGE ALLOWANCE,FUSION,EMPLOYEE EXPENSES,100665269,8.00
UNITED KINGDOM ATOMIC ENERGY AUTHORITY,UNITED KINGDOM ATOMIC ENERGY AUTHORITY,31/10/2012,ROAD TRAVEL,FUSION,EMPLOYEE EXPENSES,100665269,6.60
UNITED KINGDOM ATOMIC ENERGY AUTHORITY,UNITED KINGDOM ATOMIC ENERGY AUTHORITY,31/10/2012,ROAD TRAVEL,FUSION,EMPLOYEE EXPENSES,100665270,30.01
UNITED KINGDOM ATOMIC ENERGY AUTHORITY,UNITED KINGDOM ATOMIC ENERGY AUTHORITY,31/10/2012,TAXIS,FUSION,EMPLOYEE EXPENSES,100665271,8.94
UNITED KINGDOM ATOMIC ENERGY AUTHORITY,UNITED KINGDOM ATOMIC ENERGY AUTHORITY,31/10/2012,SUBSISTENCE,FUSION,EMPLOYEE EXPENSES,100665271,236.36
UNITED KINGDOM ATOMIC ENERGY AUTHORITY,UNITED KINGDOM ATOMIC ENERGY AUTHORITY,31/10/2012,SUBSISTENCE,FUSION,EMPLOYEE EXPENSES,100665271,3.50
UNITED KINGDOM ATOMIC ENERGY AUTHORITY,UNITED KINGDOM ATOMIC ENERGY AUTHORITY,31/10/2012,SUBSISTENCE,FUSION,EMPLOYEE EXPENSES,100665272,4.69
UNITED KINGDOM ATOMIC ENERGY AUTHORITY,UNITED KINGDOM ATOMIC ENERGY AUTHORITY,31/10/2012,ROAD TRAVEL,FUSION,EMPLOYEE EXPENSES,100665272,3.00
UNITED KINGDOM ATOMIC ENERGY AUTHORITY,UNITED KINGDOM ATOMIC ENERGY AUTHORITY,31/10/2012,ROAD TRAVEL,FUSION,EMPLOYEE EXPENSES,100665272,25.00
UNITED KINGDOM ATOMIC ENERGY AUTHORITY,UNITED KINGDOM ATOMIC ENERGY AUTHORITY,01/11/2012,OTHER STAFF COSTS,FUSION,EMPLOYEE EXPENSES,100665334,4.80
UNITED KINGDOM ATOMIC ENERGY AUTHORITY,UNITED KINGDOM ATOMIC ENERGY AUTHORITY,08/11/2012,MILEAGE ALLOWANCE,FUSION,EMPLOYEE EXPENSES,100665466,16.00
UNITED KINGDOM ATOMIC ENERGY AUTHORITY,UNITED KINGDOM ATOMIC ENERGY AUTHORITY,08/11/2012,ROAD TRAVEL,FUSION,EMPLOYEE EXPENSES,100665466,3.00
UNITED KINGDOM ATOMIC ENERGY AUTHORITY,UNITED KINGDOM ATOMIC ENERGY AUTHORITY,15/11/2012,CONSUMABLES,FUSION,PURCHASE CARDS,100669648,4.33
UNITED KINGDOM ATOMIC ENERGY AUTHORITY,UNITED KINGDOM ATOMIC ENERGY AUTHORITY,29/10/2012,TRAINING COURSE FEES,FUSION,OXFORD UNIVERSITY,5100281038,7526.78
UNITED KINGDOM ATOMIC ENERGY AUTHORITY,UNITED KINGDOM ATOMIC ENERGY AUTHORITY,29/10/2012,CAR HIRE,FUSION,LEASEDRIVE VELO,5100281134,34.39
UNITED KINGDOM ATOMIC ENERGY AUTHORITY,UNITED KINGDOM ATOMIC ENERGY AUTHORITY,29/10/2012,CONFERENCES ,FUSION,ST EDMUND HALL,5100281152,2375.41
UNITED KINGDOM ATOMIC ENERGY AUTHORITY,UNITED KINGDOM ATOMIC ENERGY AUTHORITY,29/10/2012,UNIVERSITY PLACEMENT,FUSION,UNIVERSITY OF LIVERPOOL,5100281203,570
UNITED KINGDOM ATOMIC ENERGY AUTHORITY,UNITED KINGDOM ATOMIC ENERGY AUTHORITY,29/10/2012,CAR HIRE,FUSION,LEASEDRIVE VELO,5100281209,34.39
UNITED KINGDOM ATOMIC ENERGY AUTHORITY,UNITED KINGDOM ATOMIC ENERGY AUTHORITY,29/10/2012,UNIVERSITY PLACEMENT,FUSION,UNIVERSITY OF YORK,5100281216,1992.53
UNITED KINGDOM ATOMIC ENERGY AUTHORITY,UNITED KINGDOM ATOMIC ENERGY AUTHORITY,29/10/2012,UNIVERSITY PLACEMENT,FUSION,UNIVERSITY OF YORK,5100281217,1431.43
UNITED KINGDOM ATOMIC ENERGY AUTHORITY,UNITED KINGDOM ATOMIC ENERGY AUTHORITY,29/10/2012,UNIVERSITY PLACEMENT,FUSION,UNIVERSITY OF YORK,5100281218,1431.43
UNITED KINGDOM ATOMIC ENERGY AUTHORITY,UNITED KINGDOM ATOMIC ENERGY AUTHORITY,29/10/2012,UNIVERSITY PLACEMENT,FUSION,UNIVERSITY OF YORK,5100281219,1857
UNITED KINGDOM ATOMIC ENERGY AUTHORITY,UNITED KINGDOM ATOMIC ENERGY AUTHORITY,29/10/2012,UNIVERSITY PLACEMENT,FUSION,UNIVERSITY OF YORK,5100281221,1914.86
UNITED KINGDOM ATOMIC ENERGY AUTHORITY,UNITED KINGDOM ATOMIC ENERGY AUTHORITY,29/10/2012,UNIVERSITY PLACEMENT,FUSION,UNIVERSITY OF YORK,5100281222,2758.75
UNITED KINGDOM ATOMIC ENERGY AUTHORITY,UNITED KINGDOM ATOMIC ENERGY AUTHORITY,31/10/2012,TRAINING COSTS,FUSION,ENGINEERING DEVELOPMENT TRUST,5100281266,2500
UNITED KINGDOM ATOMIC ENERGY AUTHORITY,UNITED KINGDOM ATOMIC ENERGY AUTHORITY,05/11/2012,UNIVERSITY PLACEMENT,FUSION,MERTON COLLEGE,5100281347,7336.77
UNITED KINGDOM ATOMIC ENERGY AUTHORITY,UNITED KINGDOM ATOMIC ENERGY AUTHORITY,05/11/2012,TRAINING COSTS,FUSION,ISIS TRAINING SERVICES LTD,5100281395,37440
UNITED KINGDOM ATOMIC ENERGY AUTHORITY,UNITED KINGDOM ATOMIC ENERGY AUTHORITY,05/11/2012,UNIVERSITY PLACEMENT,FUSION,IMPERIAL COLLEGE,5100281427,1646
UNITED KINGDOM ATOMIC ENERGY AUTHORITY,UNITED KINGDOM ATOMIC ENERGY AUTHORITY,05/11/2012,CAR HIRE,FUSION,LEASEDRIVE VELO,5100281552,34.39
UNITED KINGDOM ATOMIC ENERGY AUTHORITY,UNITED KINGDOM ATOMIC ENERGY AUTHORITY,05/11/2012,UNIVERSITY PLACEMENT,FUSION,UNIVERSITY OF YORK,5100281576,1841
UNITED KINGDOM ATOMIC ENERGY AUTHORITY,UNITED KINGDOM ATOMIC ENERGY AUTHORITY,05/11/2012,UNIVERSITY PLACEMENT,FUSION,UNIVERSITY OF YORK,5100281577,1984.7
UNITED KINGDOM ATOMIC ENERGY AUTHORITY,UNITED KINGDOM ATOMIC ENERGY AUTHORITY,12/11/2012,TRAINING COURSE FEES,FUSION,PETER METCALF MANAGEMENT COACH,5100281713,550
UNITED KINGDOM ATOMIC ENERGY AUTHORITY,UNITED KINGDOM ATOMIC ENERGY AUTHORITY,12/11/2012,UNIVERSITY PLACEMENT,FUSION,UNIVERSITY OF YORK,5100281715,1841
UNITED KINGDOM ATOMIC ENERGY AUTHORITY,UNITED KINGDOM ATOMIC ENERGY AUTHORITY,12/11/2012,UNIVERSITY PLACEMENT,FUSION,UNIVERSITY OF YORK,5100281716,1841
UNITED KINGDOM ATOMIC ENERGY AUTHORITY,UNITED KINGDOM ATOMIC ENERGY AUTHORITY,19/11/2012,PROFESSIONAL SERVICES,FUSION,SIGMA - ALDRICH CO LTD,5100282183,85.7
UNITED KINGDOM ATOMIC ENERGY AUTHORITY,UNITED KINGDOM ATOMIC ENERGY AUTHORITY,21/11/2012,CAR HIRE,FUSION,LEASEDRIVE VELO,5100282218,31.62
UNITED KINGDOM ATOMIC ENERGY AUTHORITY,UNITED KINGDOM ATOMIC ENERGY AUTHORITY,31/10/2012,SUBSISTENCE,FUSION,EMPLOYEE EXPENSES,1900057526,69.18
UNITED KINGDOM ATOMIC ENERGY AUTHORITY,UNITED KINGDOM ATOMIC ENERGY AUTHORITY,31/10/2012,SUBSISTENCE,FUSION,EMPLOYEE EXPENSES,100665266,8.01
UNITED KINGDOM ATOMIC ENERGY AUTHORITY,UNITED KINGDOM ATOMIC ENERGY AUTHORITY,31/10/2012,ROAD TRAVEL,FUSION,EMPLOYEE EXPENSES,100665266,50.41
UNITED KINGDOM ATOMIC ENERGY AUTHORITY,UNITED KINGDOM ATOMIC ENERGY AUTHORITY,31/10/2012,SUBSISTENCE,FUSION,EMPLOYEE EXPENSES,100665274,8.33
UNITED KINGDOM ATOMIC ENERGY AUTHORITY,UNITED KINGDOM ATOMIC ENERGY AUTHORITY,31/10/2012,MILEAGE ALLOWANCE,FUSION,EMPLOYEE EXPENSES,100665274,48.00
UNITED KINGDOM ATOMIC ENERGY AUTHORITY,UNITED KINGDOM ATOMIC ENERGY AUTHORITY,31/10/2012,ROAD TRAVEL,FUSION,EMPLOYEE EXPENSES,100665274,3.00
UNITED KINGDOM ATOMIC ENERGY AUTHORITY,UNITED KINGDOM ATOMIC ENERGY AUTHORITY,04/11/2012,OTHER EMPLOYEE EXPENSES,FUSION,EMPLOYEE EXPENSES,100665431,129.00
UNITED KINGDOM ATOMIC ENERGY AUTHORITY,UNITED KINGDOM ATOMIC ENERGY AUTHORITY,04/11/2012,SUBSISTENCE,FUSION,EMPLOYEE EXPENSES,100665435,6.69
UNITED KINGDOM ATOMIC ENERGY AUTHORITY,UNITED KINGDOM ATOMIC ENERGY AUTHORITY,04/11/2012,SUBSISTENCE,FUSION,EMPLOYEE EXPENSES,100665435,5.00
UNITED KINGDOM ATOMIC ENERGY AUTHORITY,UNITED KINGDOM ATOMIC ENERGY AUTHORITY,04/11/2012,SUBSISTENCE,FUSION,EMPLOYEE EXPENSES,100665435,95.42
UNITED KINGDOM ATOMIC ENERGY AUTHORITY,UNITED KINGDOM ATOMIC ENERGY AUTHORITY,04/11/2012,OTHER EMPLOYEE EXPENSES,FUSION,EMPLOYEE EXPENSES,100665436,129.00
UNITED KINGDOM ATOMIC ENERGY AUTHORITY,UNITED KINGDOM ATOMIC ENERGY AUTHORITY,04/11/2012,SUBSISTENCE,FUSION,EMPLOYEE EXPENSES,100665440,15.48
UNITED KINGDOM ATOMIC ENERGY AUTHORITY,UNITED KINGDOM ATOMIC ENERGY AUTHORITY,04/11/2012,SUBSISTENCE,FUSION,EMPLOYEE EXPENSES,100665440,227.98
UNITED KINGDOM ATOMIC ENERGY AUTHORITY,UNITED KINGDOM ATOMIC ENERGY AUTHORITY,04/11/2012,RAIL TRAVEL,FUSION,EMPLOYEE EXPENSES,100665440,28.30
UNITED KINGDOM ATOMIC ENERGY AUTHORITY,UNITED KINGDOM ATOMIC ENERGY AUTHORITY,04/11/2012,ROAD TRAVEL,FUSION,EMPLOYEE EXPENSES,100665440,18.00
UNITED KINGDOM ATOMIC ENERGY AUTHORITY,UNITED KINGDOM ATOMIC ENERGY AUTHORITY,08/11/2012,TAXIS,FUSION,EMPLOYEE EXPENSES,100665458,24.88
UNITED KINGDOM ATOMIC ENERGY AUTHORITY,UNITED KINGDOM ATOMIC ENERGY AUTHORITY,08/11/2012,SUBSISTENCE,FUSION,EMPLOYEE EXPENSES,100665458,771.62
UNITED KINGDOM ATOMIC ENERGY AUTHORITY,UNITED KINGDOM ATOMIC ENERGY AUTHORITY,08/11/2012,SUBSISTENCE,FUSION,EMPLOYEE EXPENSES,100665458,2.04
UNITED KINGDOM ATOMIC ENERGY AUTHORITY,UNITED KINGDOM ATOMIC ENERGY AUTHORITY,08/11/2012,MILEAGE ALLOWANCE,FUSION,EMPLOYEE EXPENSES,100665458,2.40
UNITED KINGDOM ATOMIC ENERGY AUTHORITY,UNITED KINGDOM ATOMIC ENERGY AUTHORITY,08/11/2012,ROAD TRAVEL,FUSION,EMPLOYEE EXPENSES,100665458,29.00
UNITED KINGDOM ATOMIC ENERGY AUTHORITY,UNITED KINGDOM ATOMIC ENERGY AUTHORITY,08/11/2012,SUBSISTENCE,FUSION,EMPLOYEE EXPENSES,100665479,103.51
UNITED KINGDOM ATOMIC ENERGY AUTHORITY,UNITED KINGDOM ATOMIC ENERGY AUTHORITY,08/11/2012,SUBSISTENCE,FUSION,EMPLOYEE EXPENSES,100665479,86.26
UNITED KINGDOM ATOMIC ENERGY AUTHORITY,UNITED KINGDOM ATOMIC ENERGY AUTHORITY,15/11/2012,SUBSISTENCE,FUSION,EMPLOYEE EXPENSES,100669622,5.00
UNITED KINGDOM ATOMIC ENERGY AUTHORITY,UNITED KINGDOM ATOMIC ENERGY AUTHORITY,15/11/2012,SUBSISTENCE,FUSION,EMPLOYEE EXPENSES,100669622,12.44
UNITED KINGDOM ATOMIC ENERGY AUTHORITY,UNITED KINGDOM ATOMIC ENERGY AUTHORITY,17/11/2012,ROAD TRAVEL,FUSION,EMPLOYEE EXPENSES,100669724,4.65
UNITED KINGDOM ATOMIC ENERGY AUTHORITY,UNITED KINGDOM ATOMIC ENERGY AUTHORITY,22/11/2012,SUBSISTENCE,FUSION,EMPLOYEE EXPENSES,100669753,5.00
UNITED KINGDOM ATOMIC ENERGY AUTHORITY,UNITED KINGDOM ATOMIC ENERGY AUTHORITY,22/11/2012,SUBSISTENCE,FUSION,EMPLOYEE EXPENSES,100669753,61.79
UNITED KINGDOM ATOMIC ENERGY AUTHORITY,UNITED KINGDOM ATOMIC ENERGY AUTHORITY,22/11/2012,MILEAGE ALLOWANCE,FUSION,EMPLOYEE EXPENSES,100669753,48.00
UNITED KINGDOM ATOMIC ENERGY AUTHORITY,UNITED KINGDOM ATOMIC ENERGY AUTHORITY,22/11/2012,SUBSISTENCE,FUSION,EMPLOYEE EXPENSES,100669754,221.00
UNITED KINGDOM ATOMIC ENERGY AUTHORITY,UNITED KINGDOM ATOMIC ENERGY AUTHORITY,22/11/2012,RAIL TRAVEL,FUSION,EMPLOYEE EXPENSES,100669761,21.70
UNITED KINGDOM ATOMIC ENERGY AUTHORITY,UNITED KINGDOM ATOMIC ENERGY AUTHORITY,23/11/2012,TAXIS,FUSION,EMPLOYEE EXPENSES,100669778,42.60
UNITED KINGDOM ATOMIC ENERGY AUTHORITY,UNITED KINGDOM ATOMIC ENERGY AUTHORITY,23/11/2012,SUBSISTENCE,FUSION,EMPLOYEE EXPENSES,100669778,5.00
UNITED KINGDOM ATOMIC ENERGY AUTHORITY,UNITED KINGDOM ATOMIC ENERGY AUTHORITY,23/11/2012,SUBSISTENCE,FUSION,EMPLOYEE EXPENSES,100669778,187.23
UNITED KINGDOM ATOMIC ENERGY AUTHORITY,UNITED KINGDOM ATOMIC ENERGY AUTHORITY,15/11/2012,OTHER EXTERNAL COSTS,FUSION,PURCHASE CARDS,100669629,550.00
UNITED KINGDOM ATOMIC ENERGY AUTHORITY,UNITED KINGDOM ATOMIC ENERGY AUTHORITY,07/11/2012,TAXIS,FUSION,Findlays Chauffeur Service,1900057543,195.00
UNITED KINGDOM ATOMIC ENERGY AUTHORITY,UNITED KINGDOM ATOMIC ENERGY AUTHORITY,01/11/2012,SUBSISTENCE,FUSION,EMPLOYEE EXPENSES,100665321,10.00
UNITED KINGDOM ATOMIC ENERGY AUTHORITY,UNITED KINGDOM ATOMIC ENERGY AUTHORITY,01/11/2012,SUBSISTENCE,FUSION,EMPLOYEE EXPENSES,100665321,200.64
UNITED KINGDOM ATOMIC ENERGY AUTHORITY,UNITED KINGDOM ATOMIC ENERGY AUTHORITY,01/11/2012,MILEAGE ALLOWANCE,FUSION,EMPLOYEE EXPENSES,100665321,192.40
UNITED KINGDOM ATOMIC ENERGY AUTHORITY,UNITED KINGDOM ATOMIC ENERGY AUTHORITY,01/11/2012,ROAD TRAVEL,FUSION,EMPLOYEE EXPENSES,100665321,13.50
UNITED KINGDOM ATOMIC ENERGY AUTHORITY,UNITED KINGDOM ATOMIC ENERGY AUTHORITY,15/11/2012,OTHER EXTERNAL COSTS,FUSION,PURCHASE CARDS,100669639,50.00
UNITED KINGDOM ATOMIC ENERGY AUTHORITY,UNITED KINGDOM ATOMIC ENERGY AUTHORITY,07/11/2012,MATERIALS & SPARES,FUSION,THORLABS LTD,5100281617,37.69
UNITED KINGDOM ATOMIC ENERGY AUTHORITY,UNITED KINGDOM ATOMIC ENERGY AUTHORITY,31/10/2012,SUBSISTENCE,FUSION,EMPLOYEE EXPENSES,100665258,30.00
UNITED KINGDOM ATOMIC ENERGY AUTHORITY,UNITED KINGDOM ATOMIC ENERGY AUTHORITY,31/10/2012,SUBSISTENCE,FUSION,EMPLOYEE EXPENSES,100665258,6.25
UNITED KINGDOM ATOMIC ENERGY AUTHORITY,UNITED KINGDOM ATOMIC ENERGY AUTHORITY,31/10/2012,ROAD TRAVEL,FUSION,EMPLOYEE EXPENSES,100665258,42.60
UNITED KINGDOM ATOMIC ENERGY AUTHORITY,UNITED KINGDOM ATOMIC ENERGY AUTHORITY,12/11/2012,MATERIALS & SPARES,FUSION,RS COMPONENTS LTD,5100281812,65.31
UNITED KINGDOM ATOMIC ENERGY AUTHORITY,UNITED KINGDOM ATOMIC ENERGY AUTHORITY,31/10/2012,TAXIS,FUSION,EMPLOYEE EXPENSES,100665286,14.19
UNITED KINGDOM ATOMIC ENERGY AUTHORITY,UNITED KINGDOM ATOMIC ENERGY AUTHORITY,31/10/2012,SUBSISTENCE,FUSION,EMPLOYEE EXPENSES,100665286,"1,013.05"
UNITED KINGDOM ATOMIC ENERGY AUTHORITY,UNITED KINGDOM ATOMIC ENERGY AUTHORITY,31/10/2012,OTHER EMPLOYEE EXPENSES,FUSION,EMPLOYEE EXPENSES,100665286,57.45
UNITED KINGDOM ATOMIC ENERGY AUTHORITY,UNITED KINGDOM ATOMIC ENERGY AUTHORITY,04/11/2012,CAR HIRE,FUSION,EMPLOYEE EXPENSES,100665426,271.19
UNITED KINGDOM ATOMIC ENERGY AUTHORITY,UNITED KINGDOM ATOMIC ENERGY AUTHORITY,04/11/2012,SUBSISTENCE,FUSION,EMPLOYEE EXPENSES,100665426,359.24
UNITED KINGDOM ATOMIC ENERGY AUTHORITY,UNITED KINGDOM ATOMIC ENERGY AUTHORITY,04/11/2012,SUBSISTENCE,FUSION,EMPLOYEE EXPENSES,100665426,1.79
UNITED KINGDOM ATOMIC ENERGY AUTHORITY,UNITED KINGDOM ATOMIC ENERGY AUTHORITY,04/11/2012,ROAD TRAVEL,FUSION,EMPLOYEE EXPENSES,100665426,37.00
UNITED KINGDOM ATOMIC ENERGY AUTHORITY,UNITED KINGDOM ATOMIC ENERGY AUTHORITY,04/11/2012,ROAD TRAVEL,FUSION,EMPLOYEE EXPENSES,100665426,18.90
UNITED KINGDOM ATOMIC ENERGY AUTHORITY,UNITED KINGDOM ATOMIC ENERGY AUTHORITY,04/11/2012,OTHER EMPLOYEE EXPENSES,FUSION,EMPLOYEE EXPENSES,100665426,3.77
UNITED KINGDOM ATOMIC ENERGY AUTHORITY,UNITED KINGDOM ATOMIC ENERGY AUTHORITY,10/11/2012,TAXIS,FUSION,EMPLOYEE EXPENSES,100665494,27.68
UNITED KINGDOM ATOMIC ENERGY AUTHORITY,UNITED KINGDOM ATOMIC ENERGY AUTHORITY,10/11/2012,SUBSISTENCE,FUSION,EMPLOYEE EXPENSES,100665494,313.56
UNITED KINGDOM ATOMIC ENERGY AUTHORITY,UNITED KINGDOM ATOMIC ENERGY AUTHORITY,10/11/2012,RAIL TRAVEL,FUSION,EMPLOYEE EXPENSES,100665494,404.30
UNITED KINGDOM ATOMIC ENERGY AUTHORITY,UNITED KINGDOM ATOMIC ENERGY AUTHORITY,10/11/2012,TAXIS,FUSION,EMPLOYEE EXPENSES,100665501,22.59
UNITED KINGDOM ATOMIC ENERGY AUTHORITY,UNITED KINGDOM ATOMIC ENERGY AUTHORITY,10/11/2012,SUBSISTENCE,FUSION,EMPLOYEE EXPENSES,100665501,350.72
UNITED KINGDOM ATOMIC ENERGY AUTHORITY,UNITED KINGDOM ATOMIC ENERGY AUTHORITY,10/11/2012,SUBSISTENCE,FUSION,EMPLOYEE EXPENSES,100665501,7.83
UNITED KINGDOM ATOMIC ENERGY AUTHORITY,UNITED KINGDOM ATOMIC ENERGY AUTHORITY,10/11/2012,ROAD TRAVEL,FUSION,EMPLOYEE EXPENSES,100665501,37.00
UNITED KINGDOM ATOMIC ENERGY AUTHORITY,UNITED KINGDOM ATOMIC ENERGY AUTHORITY,10/11/2012,ROAD TRAVEL,FUSION,EMPLOYEE EXPENSES,100665501,12.56
UNITED KINGDOM ATOMIC ENERGY AUTHORITY,UNITED KINGDOM ATOMIC ENERGY AUTHORITY,10/11/2012,OTHER EMPLOYEE EXPENSES,FUSION,EMPLOYEE EXPENSES,100665501,1.91
UNITED KINGDOM ATOMIC ENERGY AUTHORITY,UNITED KINGDOM ATOMIC ENERGY AUTHORITY,17/11/2012,SUBSISTENCE,FUSION,EMPLOYEE EXPENSES,100669716,427.66
UNITED KINGDOM ATOMIC ENERGY AUTHORITY,UNITED KINGDOM ATOMIC ENERGY AUTHORITY,17/11/2012,SUBSISTENCE,FUSION,EMPLOYEE EXPENSES,100669716,9.17
UNITED KINGDOM ATOMIC ENERGY AUTHORITY,UNITED KINGDOM ATOMIC ENERGY AUTHORITY,17/11/2012,ROAD TRAVEL,FUSION,EMPLOYEE EXPENSES,100669716,39.50
UNITED KINGDOM ATOMIC ENERGY AUTHORITY,UNITED KINGDOM ATOMIC ENERGY AUTHORITY,17/11/2012,ROAD TRAVEL,FUSION,EMPLOYEE EXPENSES,100669716,12.38
